{"text_format":"3","workbook":"xlsx","n_sheets":7,"sheets":["Copyright","Empieza aquí","Introducción","Ley 2277 de 2022","Intereses moratorios","Tasas de interés Dian","Listado completo de archivo"],"not_rendered":{"images":23,"macros":1,"defined_names":2,"comments":2},"read":"whole","date_system":"1900"}

{"sheet":"Copyright","index":0,"n_rows":16,"n_cols":3,"rows_kept":16,"merged":[[1,4,1,7],[3,1,3,7],[4,1,4,7],[5,1,5,7],[6,1,6,7],[7,1,7,7],[9,2,9,6],[10,1,10,7],[11,1,11,7],[15,2,15,8]]}
{"$rows_empty":15}
[null,null,"https://actualicese.com/intereses-moratorios-sobre-deudas-tributarias/"]

{"sheet":"Empieza aquí","index":1,"n_rows":1,"n_cols":1,"rows_kept":1,"merged":[[9,1,9,9],[11,1,11,9],[12,1,12,9],[14,1,14,9],[15,1,15,9],[21,1,21,5],[21,7,21,9],[23,1,23,5],[23,7,24,9],[24,1,24,5],[25,1,26,5],[25,7,27,9],[27,1,28,5],[28,7,28,9],[29,1,30,5],[29,7,29,9],[30,7,30,9]]}
[" "]

{"sheet":"Introducción","index":2,"n_rows":37,"n_cols":2,"rows_kept":37,"merged":[[1,1,1,5],[3,1,3,5],[4,1,4,5],[5,1,5,5],[6,1,6,5],[7,1,7,5],[8,1,8,5],[9,1,9,5],[10,1,10,5],[11,1,11,5],[12,1,12,5],[13,1,13,5],[15,1,15,5],[16,1,16,5],[17,1,17,5],[18,1,18,5],[19,1,19,5],[20,1,20,5],[21,1,21,5],[22,1,22,5],[23,1,23,5],[24,1,24,5],[25,1,25,5],[26,1,26,5],[27,1,27,5],[36,1,36,5],[38,1,38,5]]}
[]
[]
[]
[null,"Liquidador de intereses de mora sobre deudas tributarias"]
[null,"Fecha de actualización: diciembre 2 de 2024"]
[null,"Importante: antes de iniciar te invitamos a revisar la hoja de cálculo denominada \"Ley 2277 de 2022\""]
[null,"Recuerde que el 30 de junio de 2023 finalizaron los beneficios para acceder a reducciones de sanciones e intereses de mora."]
[null,"Condiciones generales para el cálculo de los intereses de mora"]
[null,"Relación de las normas que han regulado el cálculo de los intereses moratorios\n\n- Ley 1607 de 2012: con la modificación efectuada por el artículo 141 de la Ley 1607 de diciembre 26 de 2012 al artículo 635 del ET, se estableció que a partir del 26 de diciembre de 2012 la fórmula para el cálculo de los intereses de mora sobre obligaciones tributarias volvía a ser una fórmula simple donde la tasa de usura que se aplique no se utilizará de forma \"efectiva\", como se usaba hasta diciembre de 2012 (lo cual implicaba sumar los intereses de un trimestre al valor de la deuda y sobre esa base acumulativa seguir calculando los intereses de los siguientes trimestres en que la deuda permaneciera en mora). Para interpretar la forma de aplicar los cambios que en su momento introdujo la Ley 1607 de 2012, la Dian expidió su Circular 000003 de marzo de 2013. \n\n- Ley 1819 de 2016: el artículo 279 de la Ley 1819 de 2016 modificó el artículo 635 del ET para establecer que cada una de las tasas de usura de cada período (trimestral o mensual) por el cual la deuda llegue a estar en mora serían tasas a las que primero se les debe reducir 2 puntos. \n\n- Decreto Ley 2106 de 2016: el Decreto Ley 2106 de noviembre 22 de 2019 anexó un inciso al artículo 635 del ET, el cual expone que para liquidar los intereses moratorios se debe observar la fórmula del artículo 590 del ET. Esta fórmula, incorporada también por dicho decreto, introduce al Estatuto Tributario la fórmula utilizada en la Circular 000003 de marzo de 2013. Por tanto, la fórmula para liquidar los intereses no cambia. \n\nTeniendo en cuenta lo mencionado anteriormente, el artículo 635 del ET a hoy menciona lo siguiente:"]
[null,"ARTÍCULO 635. Determinación de la tasa de interés moratorio. Para efectos de las obligaciones administradas por la Dirección de Impuestos y Aduanas Nacionales, el interés moratorio se liquidará diariamente a la tasa de interés diario que sea equivalente a la tasa de usura vigente determinada por la Superintendencia Financiera de Colombia para las modalidades de crédito de consumo, menos dos (2) puntos. La Dirección de Impuestos y Aduanas Nacionales publicará la tasa correspondiente en su página web.\n\nLas obligaciones insolutas a la fecha de entrada en vigencia de esta ley generarán intereses de mora a la tasa prevista en este artículo sobre los saldos de capital que no incorporen los intereses de mora generados antes de la entrada en vigor de la presente ley.\n\n<Inciso adicionado por el artículo 49 del Decreto Ley 2106 de 2019. El nuevo texto es el siguiente:> Para liquidar los intereses moratorios de que trata este artículo aplicará la fórmula establecida en el parágrafo del artículo 590 del Estatuto Tributario.\n\nParágrafo. Lo previsto en este artículo y en el artículo 867-1 tendrá efectos en relación con los impuestos nacionales, departamentales, municipales y distritales.\n"]
[null,"De otra parte, para responder al interrogante sobre la fecha en que se empezaría a aplicar el cambio que introdujo el artículo 279 de la Ley 1819 de 2016, la Dian, a través de su Concepto 5033 de marzo 10 de 2017, indicó lo siguiente: \n"]
[null,"\nLe manifestamos que en efecto el artículo 279 de la Ley 1819 de 2016 modificó el artículo 635 del Estatuto Tributario, el cual determinó que la tasa de interés moratorio para las obligaciones tributarias se liquidará diariamente a la tasa de interés diario equivalente a la tasa de usura certificada por la Superintendencia Financiera, para la modalidad de crédito de consumo reducida en dos puntos.\n\nAsí las cosas, para la liquidación de interés de mora se deben seguir aplicando los mismos parámetros señalados en la Circular 0003 de 2013, pero utilizando la tasa de interés moratorio establecida a partir de la vigencia de la Ley 1819 de 2016."]
[null,"Por tanto, desde enero de 2017, al momento de calcular intereses moratorios, se podía entender que todas las tasas de usura de todos los diferentes períodos (trimestrales o mensuales) por los cuales la deuda haya llegado a estar en mora (y sin importar que algunos trimestres sean anteriores a enero de 2017), son tasas que primero se deben reducir en dos (2) puntos porcentuales y que adicionalmente el interés seguirá siendo un interés simple, de acuerdo con lo indicado en el artículo 48 del Decreto 2106 de 2019, que modifica el artículo 590 del ET:"]
[null,"Para liquidar los intereses moratorios de que trata este parágrafo o el artículo 635 del Estatuto Tributario, el contribuyente, responsable, agente retenedor, declarante o la administración tributaria, según sea el caso, aplicará la siguiente fórmula de interés simple, así:\n\n(K x T x t). Donde:\n\nK: valor insoluto de la obligación.\n\nT: factor de la tasa de interés (corresponde a la tasa de interés establecida en el parágrafo\ndel artículo 590 o artículo 635 del Estatuto Tributario, según corresponda, dividida en 365 o\n366 días según el caso).\n\nt: número de días calendario de mora desde la fecha en que se debió realizar el pago. "]
[]
[null,"Adicionalmente, debe tenerse presente que, aunque desde enero de 2007 la Superfinanciera venía fijando de forma trimestral la respectiva tasa de interés bancario corriente para los créditos de la modalidad \"consumo y ordinario\" (tasa que al multiplicarse por 1,5 veces y restarle luego 2 puntos porcentuales permitía obtener la tasa de usura para efectos tributarios), a raíz de lo que sucedió en agosto de 2017, por instrucción de la presidencia de la Nación, la Superfinanciera volvería a fijar dicha tasa de forma mensual. Por tanto, desde septiembre de 2017 (empezando con la tasa que fue fijada a través de la Resolución 1155 de agosto 30 de 2017), la tasa de usura para efectos tributarios se ha estado definiendo de forma mensual. "]
[null,"(Ver nuestro editorial: Tasa de mora tributaria cambiará cada mes a partir de septiembre de 2017)."]
[null,"Interpretación inicial de Actualícese\n\nCabe anotar que, al momento de calcular los intereses de mora sobre deudas tributarias, surgían diferentes inquietudes como: ¿se debe contar con el historial de todas las tasas de usura que hayan estado vigentes en cada mes o solo se tiene en cuenta la última tasa emitida por la Superfinanciera para realizar el cálculo de todos los días de mora? Cuando el artículo 590 del ET expone que la tasa se divide entre 365 o 366 días según el caso, ¿qué se entiende por \"según el caso\"?, ¿que si se liquida en año bisiesto se divide entre 366 o que se tienen en cuenta los años de la mora (si incluyen o no años bisiestos) y que se debe hacer un cálculo diferente por año?\n\nSobre estas inquietudes se generaron diferentes interpretaciones; siendo así, interpretamos en un inicio que se utilizaban todas las tasas del histórico para calcular el interés diario y, además, que si la obligación era liquidada en un año bisiesto, como el 2020 y 2024, el cálculo debe realizarse con 366 para todos los meses del histórico de la mora. Por ejemplo, para 2021, 2022 y 2023 ya debemos realizar el cálculo con 365 días. De esta forma emitimos este liquidador hasta noviembre de 2021.\n\n"]
[null,"Postura de la Dian\n\nAl respecto, con la emisión de la Ley de Inversión Social y los nuevos programas que adelanta la Dian, finalmente se dio a conocer una interpretación concreta sobre este asunto. \n\nEl 5 de noviembre de 2021 la entidad compartió el video ¿Cómo lograr reducciones en obligaciones pendientes por COVID-19? ; en este (en el minuto 19:36), el subdirector de cobranzas, el Dr. Argemiro Franco, explica que la Dian utiliza únicamente la última tasa emitida por la Superfinanciera para realizar el cálculo, además utiliza la tasa dividida en 365 debido a que el cálculo se realiza en 2021 y no es año bisiesto."]
[null,{"$f":"+B4","v":"Liquidador de intereses de mora sobre deudas tributarias"}]
[null,"\nEn concordancia con esto, en la respuesta 6 del Concepto Dian 415 de noviembre 5 de 2021 se expone que se debe utilizar la tasa de interés vigente al momento de realizar el cálculo y no la tasa del mes en el que se incurrió la mora.\n\nCon esto en mente, hemos ajustado el cálculo de este liquidador. No obstante, como entendemos que la regulación de este tema se presta para diferentes interpretaciones, es importante anotar que esta herramienta es una guía diseñada con base en la interpretación que realizamos de la normativa vigente y de las explicaciones suministradas por la Dian. Por lo tanto, Actualícese no es responsable de la información emitida a dicha entidad; será el/la contador/a quien, utilizando esta guía y atendiendo las normas relacionadas, pueda emitir sus propias conclusiones.\n\n"]
[null,"Para conocer el total de intereses de mora solo se tendrá que conocer la fecha de vencimiento de la obligación, la fecha en la que realizará el pago y el monto del impuesto u obligación en mora, e ingresar estos 3 datos en los campos solicitados al dar clic al botón “Ir al liquidador” ubicado en esta misma hoja."]
[null,"Este formato incluye las condiciones actuales y generales para liquidar los intereses moratorios sobre obligaciones tributarias. Si deseas conocer (para efectos de auditoría) cómo operó el cálculo de intereses moratorios para las empresas que se vieron afectadas por el COVID-19 y presentaron unas condiciones distintas, te invitamos a revisar nuestro Liquidador de intereses moratorios reducidos con tasa transitoria de la Ley de Inversión Social 2155 de 2021"]
[null,"Además, se debe tener en cuenta que actualizamos esta herramienta mensualmente, de manera que deberás remitirte cada mes a este enlace: https://actualicese.com/intereses-moratorios-sobre-deudas-tributarias/ para descargar la actualización realizada en este archivo. "]
[null,"Nota: en caso de requerir calcular intereses para una fecha posterior a la publicación en el portal de este liquidador, será necesario incluir la tasa de usura vigente usando el formulario destinado a tal fin."]
[null,"Por último, recuerda que al hacer una revisión del comportamiento de la tasa de interés bancario corriente y su correspondiente tasa de usura se puede concluir que:"]
[null,"Tasa de usura = 1,5 veces la tasa de interés corriente "]
[null,"Esto se podrá verificar en la hoja “Tasas de interés Dian” de este archivo de Excel."]
{"$rows_empty":8}
[null,"Nota: el diseño, los datos o comentarios bajo los cuales se elaboró este formato se entregan a título de guía y hacen parte de la interpretación de Actualícese. Será el usuario quien deba estudiar las normas requeridas, preparar y emitir la información a la que haya lugar. Actualícese no se hace responsable de las interpretaciones, operaciones o información derivadas del uso de esta herramienta."]

{"sheet":"Ley 2277 de 2022","index":3,"n_rows":15,"n_cols":2,"rows_kept":15,"merged":[[1,1,1,5],[3,1,3,5],[4,1,4,5],[6,1,6,5],[7,1,7,5],[7,7,7,10],[8,1,8,5],[9,1,9,5],[10,1,10,5],[12,1,12,5],[14,1,14,5]]}
[]
[]
[]
[null,"Liquidador de intereses de mora sobre deudas tributarias según la Ley de reforma tributaria 2277 de diciembre 13 de 2022"]
[null,{"$f":"+Introducción!B5","v":"Fecha de actualización: diciembre 2 de 2024"}]
[]
[null,"TASA DE INTERÉS MORATORIA TRANSITORIA - LEY 2277 DE REFORMA TRIBUTARIA 2022"]
[null,"Según el artículo 91 de la Ley 2277 de 2022, para las obligaciones tributarias y aduaneras que ya fueron presentadas pero sin pago y que se cancelen totalmente hasta el 30 de junio de 2023, y para las facilidades o acuerdos para el pago de que trata el artículo 814 del Estatuto Tributario que se suscriban a partir de la entrada en vigencia de la presente Ley y hasta el 30 de junio de 2023, la tasa de interés de mora será equivalente al 50% de la tasa de interés establecida en el artículo 635 del Estatuto Tributario. La solicitud para la suscripción de las facilidades o acuerdos para el pago deberán ser radicadas a más tardar el 15 de mayo de 2023. Será válido cualquier medio de pago, incluida la compensación de los saldos a favor que se generen entre la fecha de entrada en vigencia de la presente ley y el 30 de junio de 2023."]
[null,"REDUCCIÓN TRANSITORIA DE SANCIONES Y DE TASA \nDE INTERÉS PARA OMISOS EN LA OBLIGACIÓN DE DECLARAR DE LOS \nIMPUESTOS ADMINISTRADOS POR LA DIAN."]
[null,"Recordemos que, el artículo 93 de la Ley 2277 de Reforma Tributaria 2022, indica que para los contribuyentes que al 31 de diciembre de 2022 no hayan presentado las declaraciones tributarias a que estaban obligados por los impuestos administrados por la Unidad Administrativa Especial Dirección de Impuestos y Aduanas Nacionales -DIAN y que las presenten antes del 31 de mayo de 2023, con pago o con facilidades o acuerdos para el pago solicitadas a esta fecha y suscritas antes del 30 de junio de 2023, se reducirán y liquidarán las sanciones y la tasa de interés moratoria en los siguientes términos: \n1. La sanción de extemporaneidad se reducirá en un sesenta por ciento (60%) del monto determinado después de aplicar los artículos 641 y 640 del Estatuto Tributario. \n2. La tasa de interés de mora se reducirá en un sesenta por ciento (60%) de la tasa de interés establecida en el artículo 635 del Estatuto Tributario. "]
[]
[]
[null,"Nota: el diseño, los datos o comentarios bajo los cuales se elaboró este formato se entregan a título de guía y hacen parte de la interpretación de Actualícese. Será el usuario quien deba estudiar las normas requeridas, preparar y emitir la información a la que haya lugar. Actualícese no se hace responsable de las interpretaciones, operaciones o información derivadas del uso de esta herramienta."]
[]
[null,"Recuerde que el 30 de junio de 2023 finalizaron los beneficios de la Ley 2277 de 2022 para acceder a reducciones de sanciones e intereses de mora. \n\nSin embargo, hemos decidido dejar esta hoja de cálculo aún disponible en nuestro liquidador, con el ánimo de que los usuarios puedan consultar el histórico de dichos beneficios planteados en los artículos 91 y 93 de la Ley 2277 de 2023."]

{"sheet":"Intereses moratorios","index":4,"n_rows":60,"n_cols":9,"rows_kept":60,"merged":[[6,1,6,11],[9,1,9,11],[11,2,12,11],[16,2,16,6],[18,9,18,10],[19,9,19,10],[21,2,21,6],[27,2,27,4],[27,5,27,6],[28,2,28,4],[28,5,28,6],[30,2,30,4],[30,5,30,6],[32,2,32,4],[32,5,32,6],[37,2,37,4],[37,5,37,6],[38,2,38,4],[38,5,38,6],[40,2,40,4],[40,5,40,6],[42,2,42,4],[42,5,42,6],[47,2,47,4],[47,5,47,6],[48,2,48,4],[48,5,48,6],[50,2,50,4],[50,5,50,6],[52,2,52,4],[52,5,52,6],[57,2,57,11]]}
[]
[]
[]
[]
[]
[]
[null,"Liquidador de intereses de mora sobre obligaciones tributarias"]
[]
[]
[null,{"$f":"+Introducción!B5","v":"Fecha de actualización: diciembre 2 de 2024"}]
[]
[null,null,"Para utilizar esta herramienta es necesario que todas las celdas resaltadas en amarillo sean diligenciadas"]
[]
[]
[null,"1) Datos básicos"]
[]
[null,null,"Valor del impuesto en mora (sin incluir ningún tipo de sanciones)",{"$nulls":5},{"v":49000000,"d":"$ 49,000,000"}]
[{"$nulls":6},"Formato fecha:",null,"día/mes/año"]
[null,{"$f":"IFERROR(VLOOKUP(B20,cod,1,0),0)","v":"202412"},"Fecha en que se venció la obligación",{"$nulls":5},"2019-12-02"]
[{"$f":"EDATE(TODAY(),-12*5)","v":"2019-12-02"},{"$f":"YEAR(I20)&MONTH(I20)","v":"202412"},"Fecha en que se decide hacer el pago",{"$nulls":5},"2024-12-01"]
[]
[null,null,"Tasa de interés bancario corriente para la modalidad de crédito de consumo y ordinario vigente al momento de hacer el cálculo",{"$nulls":5},{"$f":"IFERROR(VLOOKUP(B20,cod,4,0),\"Falta tasa\")","v":26.39}]
[]
[]
[]
[null,"2) Cálculo de los intereses moratorios respectivos"]
[]
[null,null,"Días de mora:",null,null,{"$f":"$I$20-$I$19","v":{"v":1826,"d":"1,826 días"}}]
[null,null,"Tasa diaria aplicable en el período",null,null,{"$f":"IFERROR(($I$22%-2%)/366,\"Error en tasa\")","v":{"v":6.6639344262295092E-4,"d":"0.0666393%"}}]
[]
[null,null,"Intereses de mora:",null,null,{"$f":"IFERROR(ROUNDUP((I17*F29)*F28,-3),\"Error en tasa\")","v":{"v":59625000,"d":"$ 59,625,000"}}]
[]
[null,null,"TOTAL A PAGAR:",null,null,{"$f":"IFERROR(F31+I17,\"Error en tasa\")","v":{"v":108625000,"d":"$ 108,625,000"}}]
[]
[]
[null,"2) Cálculo de los intereses moratorios respectivos (Interés transitorio art. 91)"]
[]
[null,null,"Días de mora:",null,null,{"$f":"$I$20-$I$19","v":{"v":1826,"d":"1,826 días"}}]
[null,null,"Tasa diaria aplicable en el período",null,null,{"$f":"IFERROR((($I$22%-2%)*50%)/365,\"Error en tasa\")","v":{"v":3.3410958904109592E-4,"d":"0.0334110%"}},null,null,"Tasa reducida un 50%"]
[]
[null,null,"Intereses de mora:",null,null,{"$f":"IFERROR(ROUNDUP((I17*F39)*F38,-3),\"Error en tasa\")","v":{"v":29895000,"d":"$ 29,895,000"}}]
[]
[null,null,"TOTAL A PAGAR:",null,null,{"$f":"IFERROR(F41+I17,\"Error en tasa\")","v":{"v":78895000,"d":"$ 78,895,000"}}]
[]
[]
[null,"2) Cálculo de los intereses moratorios respectivos (Reducción intereses art. 93)"]
[]
[null,null,"Días de mora:",null,null,{"$f":"$I$20-$I$19","v":{"v":1826,"d":"1,826 días"}}]
[null,null,"Tasa diaria aplicable en el período",null,null,{"$f":"IFERROR((($I$22%-2%)*40%)/365,\"Error en tasa\")","v":{"v":2.6728767123287679E-4,"d":"0.0267288%"}},null,null,"Tasa reducida en un 60%"]
[]
[null,null,"Intereses de mora:",null,null,{"$f":"IFERROR(ROUNDUP((I17*F49)*F48,-3),\"Error en tasa\")","v":{"v":23916000,"d":"$ 23,916,000"}}]
[]
[null,null,"TOTAL A PAGAR:",null,null,{"$f":"IFERROR(F51+I17,\"Error en tasa\")","v":{"v":72916000,"d":"$ 72,916,000"}}]
[]
[]
[]
[]
[null,null,"Recuerde que según el término de firmeza general indicado en el artículo 715 del ET y siguientes, la Dian solo tiene 5 años (contados desde el vencimiento del plazo para declarar) para exigir una declaración tributaria que no se le haya presentado. Por tanto, si ya han trascurrido esos 5 años de plazo y la Dian no hizo ningún emplazamiento para obligar al contribuyente a presentar dicha declaración, no es obligación presentarla ni cancelar los impuestos e intereses de mora que en ella se hubieran liquidado. \n\nAsí mismo, si la declaración sí se presentó, pero no se le hizo el pago, el artículo 817 del ET y siguientes indican que la Dian tiene 5 años de plazo contados desde el vencimiento del plazo para declarar (o contados desde el día en que se haya presentado, si es que la presentaron extemporáneamente) para exigir el pago de esa declaración. Por tanto, si ya han trascurrido esos 5 años y la Dian no expidió ningún mandamiento de pago, no es obligación cancelar los valores por impuesto e intereses de mora que se estaban adeudando sobre la obligación pendiente de pago (se dice que prescribió la obligación fiscal). Teniendo en cuenta lo anterior, hemos desarrollado este liquidador."]
[]
["Limite1","2023-06-30"]

{"sheet":"Tasas de interés Dian","index":5,"n_rows":108,"n_cols":7,"rows_kept":108,"merged":[[2,1,2,5],[3,1,3,5],[4,1,4,6],[5,1,5,2],[5,3,5,5],[5,6,7,6],[6,1,7,1],[6,2,7,2],[6,3,7,3],[6,4,7,4],[6,5,7,5]]}
[]
[]
[null,"Histórico de tasas que fueron utilizadas para la liquidación de intereses moratorios con la Dian"]
[null,"La información incluida en este anexo se ubica con el fin de entregar un histórico y un comparativo de \nlas tasas utilizadas para la liquidación de intereses de mora. "]
[null,"Condiciones generales"]
[null,"Período",null,"Desde el 1 de octubre de 2014 hasta la fecha",null,null,"Resolución"]
[null,"Desde","hasta","Tasa de usura Superintendencia Financiera de Colombia","Tasa mensual de intereses moratorios Dian (tasa de usura menos 2 puntos)","Tasa diaria aplicable en el período (con tasa de usura)"]
["Cód"]
[{"$f":"IF(D9=0,0,YEAR(B9)&MONTH(B9))","v":"202412"},"2024-12-01","2024-12-31",26.39,{"$f":"IF(D9=\"\",\"Por favor digite la tasa de usura\",IF(D9-2<0,0,D9-2))","v":24.39},{"$f":"IF(D9=\"\",\"Por favor digite la tasa de usura\",IF(((D9%-2%)/366)<0,0,(D9%-2%)/366))","v":{"v":6.6639344262295092E-4,"d":"0.066639%"}},"Resolución 2394 de noviembre 30 de 2024"]
["202411","2024-11-01","2024-11-30",{"v":27.9,"d":"27.90"},{"v":25.9,"d":"25.90"},{"v":7.0765027322404364E-4,"d":"0.070765%"},"Resolución 2168 de octubre 31 de 2024"]
["202410","2024-10-01","2024-10-31",28.17,26.17,{"v":7.1502732240437156E-4,"d":"0.071503%"},"Resolución 1901 de septiembre 30 de 2024"]
["20249","2024-09-01","2024-09-30",28.85,26.85,{"v":7.3360655737704917E-4,"d":"0.073361%"},"Resolución 1688 de agosto 30 de 2024"]
["20248","2024-08-01","2024-08-31",29.21,27.21,{"v":7.434426229508197E-4,"d":"0.074344%"},"Resolución 1519 de julio 31 de 2024"]
["20247","2024-07-01","2024-07-31",29.49,27.49,{"v":7.5109289617486335E-4,"d":"0.075109%"},"Resolución 1308 de junio 28 de 2024"]
["20246","2024-06-01","2024-06-30",30.84,28.84,{"v":7.8797814207650274E-4,"d":"0.078798%"},"Resolución 1143 de mayo 31 de 2024"]
["20245","2024-05-01","2024-05-31",31.53,29.53,{"v":8.0683060109289619E-4,"d":"0.080683%"},"Resolución 0872 de abril 30 de 2024"]
["20244","2024-04-01","2024-04-30",33.09,{"v":31.090000000000003,"d":"31.09"},{"v":8.4945355191256829E-4,"d":"0.084945%"},"Resolución 0598 de marzo 21 de 2024"]
["20243","2024-03-01","2024-03-31",{"v":33.3,"d":"33.30"},{"v":31.299999999999997,"d":"31.30"},{"v":0.000855191256830601,"d":"0.085519%"},"Resolución 0400 de febrero 29 de 2024"]
["20242","2024-02-01","2024-02-29",34.97,32.97,{"v":9.0081967213114747E-4,"d":"0.090082%"},"Resolución 0150 de enero 29 de 2024"]
["20241","2024-01-01","2024-01-31",34.98,32.98,{"v":9.010928961748632E-4,"d":"0.090109%"},"Resolución 2331 de diciembre 29 de 2023"]
["202312","2023-12-01","2023-12-31",37.56,35.56,{"$f":"IF(D21=\"\",\"Por favor digite la tasa de usura\",IF(((D21%-2%)/365)<0,0,(D21%-2%)/365))","v":{"v":9.7424657534246584E-4,"d":"0.097425%"}},"Resolución 2074 de noviembre 30 de 2023"]
[{"$f":"IF(D22=0,0,YEAR(B22)&MONTH(B22))","v":"202311"},"2023-11-01","2023-11-30",38.28,36.28,{"v":0.000993972602739726,"d":"0.099397%"},"Resolución 1801 de octubre 30 2023"]
["202310","2023-10-01","2023-10-31",{"v":39.8,"d":"39.80"},{"v":37.8,"d":"37.80"},{"v":1.0356164383561641E-3,"d":"0.103562%"},"Resolución 1520 de septiembre 27 de 2023"]
["20239","2023-09-01","2023-09-30",42.05,40.05,{"v":1.0972602739726027E-3,"d":"0.109726%"},"Resolución 1328 de agosto 31 de 2023"]
["20238","2023-08-01","2023-08-31",43.13,41.13,{"v":0.001126849315068493,"d":"0.112685%"},"Resolución 1090 de julio 31 de 2023"]
["20237","2023-07-01","2023-07-31",44.04,42.04,{"v":1.1517808219178082E-3,"d":"0.115178%"},"Resolución 0945 de junio 30 de 2023"]
["20236","2023-06-01","2023-06-30",44.64,42.64,{"v":1.1682191780821919E-3,"d":"0.116822%"},"Resolución 0766 de mayo 31 de 2023"]
["20235","2023-05-01","2023-05-31",45.41,43.41,{"v":1.1893150684931504E-3,"d":"0.118932%"},"Resolución 0606 de abril 28 de 2023"]
["20234","2023-04-01","2023-04-30",47.09,{"$f":"IF(D29=\"\",\"\",D29-2)","v":45.09},{"v":1.2353424657534247E-3,"d":"0.123534%"},"Resolución 0472 de marzo 30 de 2023"]
["20233","2023-03-01","2023-03-31",46.26,{"$f":"+D30-2","v":44.26},{"v":1.2126027397260273E-3,"d":"0.121260%"},"Resolución 0236 de febrero 24 de 2023"]
["20232","2023-02-01","2023-02-28",45.27,{"$f":"+D31-2","v":43.27},{"v":1.1854794520547946E-3,"d":"0.118548%"},"Resolución 0100 de enero 27 de 2023"]
["20231","2023-01-01","2023-01-31",43.26,{"$f":"+D32-2","v":41.26},{"v":1.1304109589041094E-3,"d":"0.113041%"},"Resolución 1968 de diciembre 29 de 2022"]
["202212","2022-12-01","2022-12-31",{"$f":"27.64*1.5","v":41.46},{"$f":"+D33-2","v":39.46},{"$f":"(D33%-2%)/365","v":{"v":1.081095890410959E-3,"d":"0.108110%"}},"Resolución 1715 de noviembre 30 de 2022"]
["202211","2022-11-01","2022-11-30",{"$f":"25.78*1.5","v":38.67},{"$f":"+D34-2","v":36.67},{"v":1.0046575342465753E-3,"d":"0.100466%"},"Resolución 1537 de octubre 28 de 2022"]
["202210","2022-10-01","2022-10-31",{"$f":"24.61*1.5","v":{"v":36.915,"d":"36.92"}},{"$f":"+D35-2","v":{"v":34.915,"d":"34.92"}},{"v":9.5657534246575333E-4,"d":"0.095658%"},"Resolución 1327 de septiembre 29 de 2022"]
["20229","2022-09-01","2022-09-30",{"$f":"23.5*1.5","v":35.25},33.25,{"v":0.000910958904109589,"d":"0.091096%"},"Resolución 1126 de agosto 31 de 2022"]
["20228","2022-08-01","2022-08-31",{"$f":"22.21*1.5","v":{"v":33.315,"d":"33.32"}},{"v":31.314999999999998,"d":"31.32"},{"v":0.000857945205479452,"d":"0.085795%"},"Resolución 0973 de julio 29 de 2022"]
["20227","2022-07-01","2022-07-31",{"$f":"21.28*1.5","v":31.92},29.92,{"v":8.1972602739726036E-4,"d":"0.081973%"},"Resolución 0801 de junio 30 de 2022"]
["20226","2022-06-01","2022-06-30",{"$f":"20.4*1.5","v":{"v":30.599999999999998,"d":"30.60"}},{"$f":"D39-2","v":{"v":28.599999999999998,"d":"28.60"}},{"v":7.8356164383561633E-4,"d":"0.078356%"},"Resolución 0617 de mayo 31 de 2022"]
["20225","2022-05-01","2022-05-31",{"v":29.565,"d":"29.57"},{"v":27.565,"d":"27.57"},{"v":7.5520547945205478E-4,"d":"0.075521%"},"Resolución 0498 de abril 29 de 2022"]
["20224","2022-04-01","2022-04-30",{"$f":"19.05*1.5","v":{"v":28.575000000000003,"d":"28.58"}},{"$f":"D41-2","v":{"v":26.575000000000003,"d":"26.58"}},{"v":7.2808219178082192E-4,"d":"0.072808%"},"Resolución 0382 de marzo 31 de 2022"]
["20223","2022-03-01","2022-03-31",27.71,{"$f":"D42-2","v":25.71},{"v":7.0438356164383565E-4,"d":"0.070438%"},"Resolución 0256 de febrero 25 de 2022"]
["20222","2022-02-01","2022-02-28",27.45,25.45,{"v":6.9726027397260264E-4,"d":"0.069726%"},"Resolución 0143 de enero 28 de 2022 "]
["20221","2022-01-01","2022-01-31",26.49,24.49,{"v":0.000670958904109589,"d":"0.067096%"},"Resolución 1597 de diciembre 30 de 2021"]
["202112","2021-12-01","2021-12-31",26.19,24.19,{"v":6.6273972602739735E-4,"d":"0.066274%"},"Resolución 1405 de noviembre 30 de 2021"]
["202111","2021-11-01","2021-11-30",25.91,23.91,{"v":0.000655068493150685,"d":"0.065507%"},"Resolución 1259 de octubre 29 de 2021"]
["202110","2021-10-01","2021-10-31",25.62,23.62,{"v":6.4712328767123285E-4,"d":"0.064712%"},"Resolución 1095 de septiembre 30 de 2021"]
["20219","2021-09-01","2021-09-30",25.79,23.79,{"v":6.5178082191780825E-4,"d":"0.065178%"},"Resolución 0931 de agosto 30 de 2021"]
["20218","2021-08-01","2021-08-31",25.86,23.86,{"v":6.5369863013698629E-4,"d":"0.065370%"},"Resolución 0804 de julio 30 de 2021"]
["20217","2021-07-01","2021-07-31",25.77,23.77,{"v":6.5123287671232878E-4,"d":"0.065123%"},"Resolución 0622 de junio 30 de 2021"]
["20216","2021-06-01","2021-06-30",25.82,23.82,{"v":6.5260273972602735E-4,"d":"0.065260%"},"Resolución 0509 de mayo 28 de 2021"]
["20215","2021-05-01","2021-05-31",25.83,23.83,{"v":6.5287671232876709E-4,"d":"0.065288%"},"Resolución 0407 de abril 30 de 2021"]
["20214","2021-04-01","2021-04-30",25.97,23.97,{"v":6.5671232876712328E-4,"d":"0.065671%"},"Resolución 0305 de marzo 31 de 2021"]
["20213","2021-03-01","2021-03-31",26.12,24.12,{"v":6.608219178082192E-4,"d":"0.066082%"},"Resolución 0161 de febrero 26 de 2021"]
["20212","2021-02-01","2021-02-28",26.31,24.31,{"v":0.000666027397260274,"d":"0.066603%"},"Resolución 0064 de enero 29 de 2021 "]
["20211","2021-01-01","2021-01-31",25.98,23.98,{"$f":"(D56%-2%)/365","v":{"v":6.5698630136986312E-4,"d":"0.065699%"}},"Resolución 1215 de diciembre 30 de 2020"]
["202012","2020-12-01","2020-12-31",26.19,24.19,{"$f":"(D57%-2%)/365","v":{"v":6.6273972602739735E-4,"d":"0.066274%"}},"Resolución 1034 de noviembre 26 de 2020"]
["202011","2020-11-01","2020-11-30",26.76,24.76,{"$f":"(D58%-2%)/365","v":{"v":6.7835616438356163E-4,"d":"0.067836%"}},"Resolución 0947 de octubre 29 de 2020"]
["202010","2020-10-01","2020-10-31",27.14,25.14,{"$f":"(D59%-2%)/365","v":{"v":6.8876712328767126E-4,"d":"0.068877%"}},"Resolución 0869 de septiembre 30 de 2020"]
["20209","2020-09-01","2020-09-30",27.53,25.53,{"v":6.9945205479452052E-4,"d":"0.069945%"},"Resolución 0769 de agosto 28 de 2020"]
["20208","2020-08-01","2020-08-31",27.44,25.44,{"v":0.000696986301369863,"d":"0.069699%"},"Resolución 0685 de julio 31 de 2020"]
["20207","2020-07-01","2020-07-31",27.18,25.18,{"v":6.898630136986301E-4,"d":"0.068986%"},"Resolución 0605 de junio 30 de 2020"]
["20206","2020-06-01","2020-06-30",27.18,25.18,{"v":6.898630136986301E-4,"d":"0.068986%"},"Resolución 0505 de mayo 29 de 2020"]
["20205","2020-05-01","2020-05-31",27.29,25.29,{"v":0.000692876712328767,"d":"0.069288%"},"Resolución 000437 de abril 30 de 2020"]
["20204","2020-04-01","2020-04-30",28.04,26.04,{"$f":"(D65%-2%)/365","v":{"v":7.134246575342465E-4,"d":"0.071342%"}},"Resolución 000351 de marzo 27 de 2020"]
["20203","2020-03-01","2020-03-31",28.43,26.43,{"v":7.2410958904109586E-4,"d":"0.072411%"},"Resolución 000205 de febrero 27 de 2020"]
["20202","2020-02-01","2020-02-29",28.59,26.59,{"v":7.2849315068493142E-4,"d":"0.072849%"},"Resolución 0094 de enero 30 de 2020"]
["20201","2020-01-01","2020-01-31",28.16,26.16,{"v":7.1671232876712333E-4,"d":"0.071671%"},"Resolución 1768 de diciembre 27 de 2019"]
["201912","2019-12-01","2019-12-31",28.37,26.37,{"$f":"(D69%-2%)/365","v":{"v":7.2246575342465756E-4,"d":"0.072247%"}},"Resolución 1603 de noviembre 29 de 2019"]
["201911","2019-11-01","2019-11-30",28.55,26.55,{"v":7.2739726027397269E-4,"d":"0.072740%"},"Resolución 1474 de octubre 30 de 2019"]
["201910","2019-10-01","2019-10-31",28.65,26.65,{"v":7.3013698630136972E-4,"d":"0.073014%"},"Resolución 1293 de septiembre 30 de 2019"]
["20199","2019-09-01","2019-09-30",28.98,26.98,{"v":7.3917808219178078E-4,"d":"0.073918%"},"Resolución 1145 de agosto 30 de 2019"]
["20198","2019-08-01","2019-08-31",28.98,26.98,{"v":7.3917808219178078E-4,"d":"0.073918%"},"Resolución 1018 de julio 31 de 2019"]
["20197","2019-07-01","2019-07-31",28.92,26.92,{"v":7.3753424657534248E-4,"d":"0.073753%"},"Resolución 0829 de junio 28 de 2019"]
["20196","2019-06-01","2019-06-30",28.95,26.95,{"v":7.3835616438356158E-4,"d":"0.073836%"},"Resolución 0697 de mayo 30 de 2019"]
["20195","2019-05-01","2019-05-31",29.01,27.01,{"v":0.00074,"d":"0.074000%"},"Resolución 0574 de abril 30 de 2019"]
["20194","2019-04-01","2019-04-30",28.98,26.98,{"v":7.3917808219178078E-4,"d":"0.073918%"},"Resolución 0389 de marzo 29 de 2019"]
["20193","2019-03-01","2019-03-31",29.06,27.06,{"v":7.4136986301369845E-4,"d":"0.074137%"},"Resolución 0263 de febrero 28 de 2019"]
["20192","2019-02-01","2019-02-28",29.55,27.55,{"v":7.5479452054794506E-4,"d":"0.075479%"},"Resolución 0111 de enero 31 de 2019"]
["20191","2019-01-01","2019-01-31",28.74,26.74,{"v":7.3260273972602734E-4,"d":"0.073260%"},"Resolución 1872 de diciembre 27 de 2018"]
["201812","2018-12-01","2018-12-31",{"v":29.1,"d":"29.10"},{"v":27.1,"d":"27.10"},{"v":7.4246575342465761E-4,"d":"0.074247%"},"Resolución 1708 de noviembre 29 de 2018"]
["201811","2018-11-01","2018-11-30",29.24,27.24,{"v":7.4630136986301358E-4,"d":"0.074630%"},"Resolución 1521 de octubre 28 de 2018"]
["201810","2018-10-01","2018-10-31",29.45,27.45,{"v":7.5205479452054782E-4,"d":"0.075205%"},"Resolución 1294 de septiembre 28 de 2018"]
["20189","2018-09-01","2018-09-30",29.72,27.72,{"v":7.5945205479452035E-4,"d":"0.075945%"},"Resolución 1112 de agosto 31 de 2018"]
["20188","2018-08-01","2018-08-31",29.91,27.91,{"v":7.6465753424657522E-4,"d":"0.076466%"},"Resolución 0954 de julio 31 de 2018"]
[{"$f":"IF(D86=0,0,YEAR(B86)&MONTH(B86))","v":"20187"},"2018-07-01","2018-07-31",30.05,28.05,{"v":7.6849315068493141E-4,"d":"0.076849%"},"Resolución 0820 de junio 28 de 2018"]
["20186","2018-06-01","2018-06-30",30.42,28.42,{"v":7.7863013698630142E-4,"d":"0.077863%"},"Resolución 0687 de mayo 30 de 2018"]
["20185","2018-05-01","2018-05-31",30.66,28.66,{"v":7.8520547945205475E-4,"d":"0.078521%"},"Resolución 0527 de abril 27 de 2018"]
["20184","2018-04-01","2018-04-30",30.72,28.72,{"v":0.000786849315068493,"d":"0.078685%"},"Resolución 0398 de marzo 28 de 2018"]
["20183","2018-03-01","2018-03-31",31.02,29.02,{"v":7.950684931506848E-4,"d":"0.079507%"},"Resolución 0259 de febrero 28 de 2018"]
["20182","2018-02-01","2018-02-28",31.52,29.52,{"v":8.0876712328767115E-4,"d":"0.080877%"},"Resolución 0131 de enero 31 de 2018"]
["20181","2018-01-01","2018-01-31",31.04,29.04,{"v":7.9561643835616438E-4,"d":"0.079562%"},"Resolución 1890 de diciembre 28 de 2017"]
["201712","2017-12-01","2017-12-31",31.16,29.16,{"v":0.000798904109589041,"d":"0.079890%"},"Resolución 1619 de noviembre 29 de 2017"]
["201711","2017-11-01","2017-11-30",31.44,29.44,{"v":8.0657534246575337E-4,"d":"0.080658%"},"Resolución 1447 de octubre 27 de 2017"]
["201710","2017-10-01","2017-10-31",31.73,29.73,{"v":8.1452054794520549E-4,"d":"0.081452%"},"Resolución 1298 de septiembre 29 de 2017"]
["20179","2017-09-01","2017-09-30",32.22,30.22,{"v":0.000827945205479452,"d":"0.082795%"},"Resolución 1155 de agosto 30 de 2017"]
["20177","2017-07-01","2017-08-30",32.97,30.97,{"v":8.4849315068493141E-4,"d":"0.084849%"},"Resolución 907 de junio 30 de 2017"]
["20174","2017-04-01","2017-06-30",{"v":33.5,"d":"33.50"},{"v":31.5,"d":"31.50"},{"v":0.000863013698630137,"d":"0.086301%"},"Resolución 0488 de marzo 28 de 2017"]
["20171","2017-01-01","2017-03-31",{"v":33.510000000000005,"d":"33.51"},{"v":31.510000000000005,"d":"31.51"},{"v":8.6328767123287681E-4,"d":"0.086329%"},"Resolución 1612 de diciembre 26 de 2016"]
["201610","2016-10-01","2016-12-31",32.99,{"v":30.990000000000002,"d":"30.99"},{"v":0.000849041095890411,"d":"0.084904%"},"Resolución 1233 de septiembre 29 de 2016"]
["20167","2016-07-01","2016-09-30",32.01,{"v":30.009999999999998,"d":"30.01"},{"v":8.2219178082191776E-4,"d":"0.082219%"},"Resolución 0811 de junio 28 de 2016"]
["20164","2016-04-01","2016-06-30",30.81,28.81,{"v":7.8931506849315056E-4,"d":"0.078932%"},"Resolución 0334 de marzo 29 de 2016"]
["20161","2016-01-01","2016-03-31",29.52,27.52,{"v":7.5397260273972607E-4,"d":"0.075397%"},"Resolución 1788 de diciembre 28 de 2015"]
["201510","2015-10-01","2015-12-31",{"v":29,"d":"29.00"},{"v":27,"d":"27.00"},{"v":7.3972602739726015E-4,"d":"0.073973%"},"Resolución 1341 de septiembre 29 de 2015"]
["20157","2015-07-01","2015-09-30",28.89,26.89,{"v":7.3671232876712316E-4,"d":"0.073671%"},"Resolución 913 de junio 30 de 2015"]
["20154","2015-04-01","2015-06-30",29.06,{"$f":"D106-2","v":27.06},{"v":7.4136986301369845E-4,"d":"0.074137%"},"Resolución 369 de marzo 30 de 2015"]
["20151","2015-01-01","2015-03-31",28.82,26.82,{"v":7.3479452054794523E-4,"d":"0.073479%"},"Resolución 2359 de diciembre 30 de 2014"]
["201410","2014-10-01","2014-12-31",28.76,26.76,{"v":7.3315068493150681E-4,"d":"0.073315%"},"Resolución 1707 de septiembre 30 de 2014"]

{"sheet":"Listado completo de archivo","index":6,"n_rows":4539,"n_cols":2,"rows_kept":4539,"merged":[[5,0,5,1]]}
[]
[]
[]
[]
[]
["ESTE ES EL LISTADO COMPLETO DE LAS HERRAMIENTAS PUBLICADAS"]
["Fecha de actualización: diciembre 2 de 2024"]
["Haz clic aquí para ver una versión actualizada de este listado"]
["IDEA:","Si quieres buscar una herramienta en especial en este listado, dale \"Buscar\" en Excel (Ctrl + B, en casi todos lados)."]
[]
[null,"Plantilla en Excel para elaborar el estado de cambios en el patrimonio"]
[]
[null,"Simulador en Excel del estado de situación financiera (análisis comparativo)"]
[]
[null,"[Guía] Planeador en Excel para contadores públicos"]
[]
[null,"Liquidador automatizado de la prima de servicios con comprobante de pago"]
[]
[null,"Casos prácticos de deterioro de cartera fiscal (provisión individual y general)"]
[]
[null,"[Pack de Formatos] 15 herramientas clave en Excel para la planeación estratégica, presupuestal, financiera y fiscal"]
[]
[null,"Casos prácticos para comprender la contabilización de pasivos en el cierre contable"]
[]
[null,"Casos prácticos para comprender la contabilización de activos en el cierre contable"]
[]
[null,"Carta de finalización del contrato individual de trabajo por justa causa"]
[]
[null,"Liquidador en Excel para la determinación de diferencias temporarias e impuesto diferido"]
[]
[null,"Impuesto diferido en la depreciación de propiedad, planta y equipo (caso práctico en Excel)"]
[]
[null,"Casos prácticos sobre métodos para determinar la naturaleza del impuesto diferido"]
[]
[null,"Simulador con las diferencias permanentes, temporales y temporarias: efectos en la utilidad contable y fiscal"]
[]
[null,"Simulador para la clasificación de entidades en los grupos 1, 2 o 3 de Estándares Internacionales"]
[]
[null,"Seleccionador de políticas contables y ejemplos prácticos"]
[]
[null,"Ejemplos prácticos sobre CINIIF y SIC aplicados a Colombia"]
[]
[null,"Simulador de préstamo para vivienda: modalidad de cuota fija en pesos"]
[]
[null,"Plantilla en Excel (con macros) del estado de costos de producción y de ventas"]
[]
[null,"Liquidador de indicadores de detrimento patrimonial e insolvencia financiera"]
[]
[null,"Caso práctico en Excel: utilidad del impuesto diferido en la corrección del efecto de las normas fiscales"]
[]
[null,"Casos prácticos en Excel con las diferencias más comunes en el proceso de conciliación fiscal de personas jurídicas"]
[]
[null,"Liquidador de indicadores financieros"]
[]
[null,"Liquidador avanzado en Excel (con macros) de intereses moratorios sobre deudas tributarias"]
[]
[null,"[Liquidador] Tabla de amortización en Excel de un contrato de leasing"]
[]
[null,"Formato de solicitud de licencia de calamidad doméstica"]
[]
[null,"[Simulador] Análisis de propuestas de inversión con el uso del valor presente y valor presente neto"]
[]
[null,"[Liquidador] Modelos y formatos para la elaboración de estados financieros y cálculo de los indicadores financieros"]
[]
[null,"Simulador de casos de descuentos tributarios y donaciones: conciliación contable y tributaria"]
[]
[null,"Simulador en Excel del punto de equilibrio como herramienta de análisis financiero"]
[]
[null,"Análisis de la información de ventas y su pronóstico utilizando el método del índice de estacionalidad"]
[]
[null,"Ejercicios de conversión entre tasas de interés efectiva, nominal y periódica"]
[]
[null,"Lista de chequeo para la evaluación de las 4 fases de la planeación tributaria del impuesto de renta"]
[]
[null,"Contabilización de depreciación bajo Estándares Internacionales: casos prácticos en Excel"]
[]
[null,"Lista de chequeo de las etapas requeridas en el proceso presupuestal"]
[]
[null,"Liquidador para la clasificación de empresas en Colombia según sus ingresos y sector económico"]
[]
[null,"Modelo de certificación del tamaño de una empresa en Colombia"]
[]
[null,"Ejercicio en Excel para el reconocimiento del deterioro de inventarios al cierre contable de una pyme"]
[]
[null,"Guía en Excel con los principales índices de coherencia tributaria para las personas jurídicas  "]
[]
[null,"[Matriz] Tipos de sociedades en Colombia"]
[]
[null,"Liquidador de aportes a seguridad social de independientes bajo el esquema de presunción de costos (Resolución UGPP 532 de 2024)"]
[]
[null,"Ejercicios sobre métodos de depreciación: línea recta, decreciente, unidades de producción y más"]
[]
[null,"Liquidador en Excel para el cálculo de intereses de mora y su IVA en cuentas por cobrar vencidas"]
[]
[null,"Modelo de carta para el incremento anual del arrendamiento comercial"]
[]
[null,"Liquidador avanzado en Excel (con macros) de intereses moratorios sobre deudas tributarias"]
[]
[null,"[Guía] Beneficios tributarios en el impuesto de renta AG 2024"]
[]
[null,"[Liquidador] Formato de hoja de costos en Excel con macros"]
[]
[null,"Estado de flujos de efectivo por el método indirecto: ejercicio práctico y plantilla en Excel"]
[]
[null,"Casos prácticos en Excel de contabilización de contratos de prestación de servicios independientes"]
[]
[null,"Casos prácticos de contabilización de compras e impuestos asumidos"]
[]
[null,"Plantilla de control de cuentas por cobrar y política de recaudo a clientes"]
[]
[null,"[Lista de chequeo] Principales actividades en el cierre mensual de una pyme"]
[]
[null,"Papeles de trabajo del auditor: cuestionarios de control interno para pymes y lista de chequeo"]
[]
[null,"Plantilla de control de cuentas por pagar y política de pago a proveedores"]
[]
[null,"Estado de flujos de efectivo por el método directo: ejercicio práctico y plantilla en Excel"]
[]
[null,"Modelo de contrato de arrendamiento de local comercial, oficina o bodega"]
[]
[null,"Clasificación de arrendamientos según la sección 20 del Estándar para Pymes: 5 casos prácticos en Excel"]
[]
[null,"Formato en Excel de circularización de clientes automatizado"]
[]
[null,"Modelos de conciliación bancaria (individual y conjunta) en Excel"]
[]
[null,"Liquidador en Excel para calcular la contribución 2024 a Supersociedades"]
[]
[null,"Modelo de contrato de outsourcing o tercerización"]
[]
[null,"Liquidador (con macros) de sanciones relacionadas con la declaración informativa de precios de transferencia"]
[]
[null,"Caso práctico en Excel: contabilización de ajustes por conciliación bancaria"]
[]
[null,"Caso práctico en Excel: contabilización de sobrantes y faltantes de caja"]
[]
[null,"Formato en Excel de circularización de proveedores automatizado"]
[]
[null,"Liquidador avanzado en Excel (con macros) de intereses moratorios sobre deudas tributarias"]
[]
[null,"Modelo en Excel: cálculo de intereses presuntivos en 2024 sobre préstamos entre socios y sociedades"]
[]
[null,"Casos prácticos de contabilización de ingresos en pymes bajo Estándares Internacionales"]
[]
[null,"Formato de flujo de caja real y presupuestado"]
[]
[null,"Casos prácticos de contabilización de arrendamientos financiero y operativo"]
[]
[null,"Ejercicio para la distribución de las rentas exentas y deducciones imputables limitadas en las personas naturales residentes (Resolución 000120 de 2024)"]
[]
[null,"Carta de finalización del contrato de arrendamiento por vencimiento del término"]
[]
[null,"Certificación de baja de inventarios por obsolescencia (Excel con macros)"]
[]
[null,"Modelo de notificación de sanción disciplinaria al trabajador"]
[]
[null,"Simulador para comparar créditos bancarios con tabla de amortización"]
[]
[null,"Modelo de pagaré en blanco y carta de instrucción"]
[]
[null,"Comparativo de normas de la Resolución 000165 de 2023 sobre facturación electrónica modificadas con la Resolución 000119 de 2024"]
[]
[null,"Formato de arqueo de caja general con macros"]
[]
[null,"Modelo en Word de acuerdo de pago"]
[]
[null,"Cálculo del límite de subcapitalización: casos prácticos en Excel"]
[]
[null,"Modelo de citación a descargos"]
[]
[null,"[Pack de Formatos] Top 15 de los mejores liquidadores para elaborar tus declaraciones de renta de personas naturales AG 2023"]
[]
[null,"[Liquidador] Excel del formulario 210 para la declaración de renta de personas naturales residentes que no llevan contabilidad AG 2023"]
[]
[null,"[Liquidador] Excel del formulario 210 y formato 2517 para la declaración de renta de personas naturales residentes que llevan contabilidad AG 2023"]
[]
[null,"Modelo de carta de respuesta a la solicitud de un servicio"]
[]
[null,"Liquidador de auxilio de incapacidad (valores asumidos por el empleador, la EPS o la ARL)"]
[]
[null,"Formato de control de clientes de declaración de renta de persona natural"]
[]
[null,"Liquidador en Excel sobre efectos fiscales de escriturar bienes inmuebles por debajo del valor comercial"]
[]
[null,"Liquidador avanzado en Excel (con macros) de intereses moratorios sobre deudas tributarias"]
[]
[null,"Plantilla automática para control y auditoría del gasto de servicios públicos"]
[]
[null,"Casos prácticos sobre AIU: cálculo del IVA y retención en la fuente en esta figura"]
[]
[null,"Caso práctico de contabilización de un préstamo bancario en pymes y microempresas"]
[]
[null,"Caso práctico de declaración de renta a partir de información reportada por terceros"]
[]
[null,"Caso práctico de contabilización de devoluciones en ventas"]
[]
[null,"Valor patrimonial de acciones y aportes en la declaración de renta de personas naturales por el AG 2023"]
[]
[null,"Formato de arqueo de caja menor con macros"]
[]
[null,"Acta de diligencia de descargos"]
[]
[null,"Formato en Excel para la toma de inventario físico (con macros)"]
[]
[null,"[Pack de Formatos] Top 15 de los mejores liquidadores para elaborar tus declaraciones de renta de personas naturales AG 2023"]
[]
[null,"Modelo de carta de renuncia"]
[]
[null,"Modelo de carta de aceptación de renuncia de un trabajador"]
[]
[null,"Modelo de memorial para solicitar al juez librar medida cautelar de embargo  "]
[]
[null,"Simulador del límite de pagos en efectivo"]
[]
[null,"[Liquidador] Excel del formulario 110 y formato 2516 para la declaración de renta de personas naturales no residentes que llevan contabilidad AG 2023"]
[]
[null,"Normas del impuesto de renta de personas naturales afectadas con la Ley 2277 de 2022 que se deben considerar para preparar las declaraciones del AG 2023"]
[]
[null,"Liquidador de aportes a seguridad social durante la licencia de maternidad"]
[]
[null,"Modelo de solicitud de permiso para autorizar el trabajo en horas extra"]
[]
[null,"Caso práctico sobre liquidación de sucesión ilíquida e impuesto de ganancia ocasional"]
[]
[null,"Comparativo de las normas afectadas por la reforma tributaria – Ley 2277 de 2022"]
[]
[null,"Liquidador avanzado en Excel (con macros) de intereses moratorios sobre deudas tributarias"]
[]
[null,"[Liquidador] Excel del formulario 110 para la declaración de renta de personas naturales no residentes que no llevan contabilidad AG 2023"]
[]
[null,"Modelo en Word de un acuerdo de confidencialidad"]
[]
[null,"Modelo de revocatoria de poder otorgado a un abogado  "]
[]
[null,"Carta para solicitar a la empresa de servicios públicos la cancelación del contrato de telefonía e internet"]
[]
[null,"Modelo de carta para solicitar el pago de acreencias laborales"]
[]
[null,"Liquidador del componente inflacionario de los rendimientos o costos financieros"]
[]
[null,"Ejercicios sobre la determinación de la renta líquida de trabajo cuando hay rentas laborales y honorarios"]
[]
[null,"Liquidador del anticipo del impuesto de renta 2024 para personas jurídicas y naturales"]
[]
[null,"Liquidador en Excel del porcentaje fijo de retención en la fuente sobre salarios en junio de 2024 – Procedimiento 2"]
[]
[null,"Modelo de llamado de atención  "]
[]
[null,"Modelo de derecho de petición para solicitar certificado laboral  "]
[]
[null,"Modelo de carta otorgando poder"]
[]
[null,"Liquidador automatizado de la prima de servicios con comprobante de pago"]
[]
[null,"[Guía] Características básicas de la cedulación de personas naturales residentes AG 2023"]
[]
[null,"Cuestionario para definir si una persona natural está obligada a presentar declaración de renta AG 2023"]
[]
[null,"Modelo de derecho de petición para el pago de incapacidades de trabajadores independientes"]
[]
[null,"Simulador del beneficio de auditoría"]
[]
[null,"[Liquidador] Excel del formulario 210 y formato 2517 para la declaración de renta de personas naturales residentes que llevan contabilidad AG 2023"]
[]
[null,"Liquidador avanzado en Excel (con macros) de intereses moratorios sobre deudas tributarias"]
[]
[null,"Liquidador y caso práctico para calcular y contabilizar horas extra y recargos durante la reducción de la jornada laboral en 2024"]
[]
[null,"[Liquidador] Excel del formulario 210 para la declaración de renta de personas naturales residentes que no llevan contabilidad AG 2023"]
[]
[null,"Simulador en Excel para realizar la liquidación de contratos de trabajo"]
[]
[null,"Simulador para determinar si una persona natural es residente fiscal en Colombia"]
[]
[null,"Liquidador en Excel de nómina para trabajadora en licencia de maternidad"]
[]
[null,"Liquidador de auxilio de incapacidad aplicado a salario variable, fijo o integral"]
[]
[null,"[Lista de chequeo] soportes para preparación y presentación de la declaración de renta de personas naturales"]
[]
[null,"Contrato de obra o labor"]
[]
[null,"Simulador de sanción por no pagar la liquidación del contrato laboral"]
[]
[null,"Modelo de contrato de mandato"]
[]
[null,"[Liquidador] Calculadora de monetización de la cuota de aprendizaje Sena"]
[]
[null,"Liquidador de prestaciones sociales y vacaciones con salario variable"]
[]
[null,"Simulador del impuesto para dividendos y participaciones gravados de 2017 y siguientes luego de la Ley 2277 de 2022"]
[]
[null,"Simulador del impuesto para dividendos y participaciones no gravados de 2017 y siguientes luego de la Ley 2277 de 2022"]
[]
[null,"Liquidador de prestaciones sociales para trabajadores domésticos por días"]
[]
[null,"Liquidador de seguridad social para trabajadores domésticos por días con múltiples empleadores"]
[]
[null,"Caso práctico de liquidación de nómina con salario integral"]
[]
[null,"Modelo de contrato de trabajo a término fijo"]
[]
[null,"Liquidador automático de utilidad por venta de activo fijo depreciable que será renta por recuperación de deducciones"]
[]
[null,"Notificación al empleado de la reducción de la jornada laboral"]
[]
[null,"[Liquidador] Excel del formulario 2593 AG 2024: declaración de anticipos bimestrales – régimen simple"]
[]
[null,"[Pack de Formatos] 15 herramientas que te facilitarán la declaración de renta de personas jurídicas AG 2023"]
[]
[null,"Modelo del certificado de donación para que proceda el descuento tributario en la declaración de renta"]
[]
[null,"Liquidador de indemnización por despido sin justa causa (contrato indefinido)"]
[]
[null,"Liquidador automatizado de intereses a las cesantías y su comprobante de pago"]
[]
[null,"Modelo de certificado de no declarante del impuesto de renta y complementario"]
[]
[null,"Plantilla en Excel del formulario 310 AG 2024: declaración del impuesto nacional al consumo –INC–"]
[]
[null,"Plantilla en Excel del formulario 420 AG 2024: declaración anual del impuesto al patrimonio"]
[]
[null,"Modelo de carta de solicitud de corrección de información exógena"]
[]
[null,"[Pack de Formatos] 15 plantillas y guías para el reporte de información exógena 2023"]
[]
[null,"[Liquidador] Plantilla del formato 1647 de exógena 2023: reporte de ingresos recibidos para terceros"]
[]
[null,"[Liquidador] Plantilla del formato 1010 de exógena 2023: información de socios, cooperados o comuneros"]
[]
[null,"[Liquidador] Plantilla del formato 1004 de exógena 2023: reporte de descuentos al impuesto de renta y el SIMPLE"]
[]
[null,"[Matriz] Resumen con las categorías de los informantes de exógena AG 2023 y los formatos que deben usar"]
[]
[null,"Liquidador del cálculo de retención en la fuente por pensiones"]
[]
[null,"Liquidador de aportes al fondo de solidaridad pensional por parte de un empleado"]
[]
[null,"Liquidador (con macros) de nómina de empleados de servicio doméstico que laboran por días"]
[]
[null,"[Liquidador] Plantilla en Excel para el control de entrega de dotación a empleados"]
[]
[null,"[Liquidador] Plantilla de los formatos de exógena del 5247 al 5252 por el AG 2023: reportes de los mandatarios"]
[]
[null,"[Liquidador] Plantilla del formato 1009 de exógena 2023: información de cuentas por pagar"]
[]
[null,"[Liquidador] Plantilla del formato 1008 de exógena 2023: información de cuentas por cobrar"]
[]
[null,"[Liquidador] Plantilla del formato 1007 de exógena 2023: información de ingresos propios"]
[]
[null,"[Lista de chequeo] Guía en Excel para auditar el formato 2516: conciliación fiscal de las personas jurídicas"]
[]
[null,"Liquidador de indemnización por despido sin justa causa (contrato fijo y de obra o labor)"]
[]
[null,"Casos prácticos de retención en la fuente por compras, servicios y honorarios"]
[]
[null,"[Liquidador] Formulario 260 AG 2023 – declaración anual del régimen simple (personas naturales que no llevan contabilidad)"]
[]
[null,"[Liquidador] Formulario 260 AG 2023 – declaración anual del régimen simple (personas naturales y jurídicas que llevan contabilidad)"]
[]
[null,"[Liquidador] Plantilla del formato 2276, 2280 y 2743 para el reporte de información exógena de 2023"]
[]
[null,"[Liquidador] Plantilla del formato 1003 de exógena 2023: retenciones que le practicaron al informante"]
[]
[null,"[Liquidador] Plantilla de los formatos 1005 y 1006 de exógena 2023: reporte del INC e IVA descontable y generados"]
[]
[null,"[Liquidador] Plantilla de los formatos 1011, 1012 y 2275 de exógena 2023 para el reporte de otros datos en renta e IVA"]
[]
[null,"Modelo en Word de un contrato de transacción laboral para la terminación del contrato de trabajo"]
[]
[null,"[Liquidador] Plantilla del formato 1001 del año gravable 2023: reporte de exógena de pagos o abonos en cuenta"]
[]
[null,"Carta para solicitar licencia por luto"]
[]
[null,"Modelo de poder para adelantar sucesión ante notaría"]
[]
[null,"Herramienta en Excel para la consulta de terceros en la Dian"]
[]
[null,"Liquidador del auxilio de incapacidad de origen común para trabajador independiente"]
[]
[null,"Modelo de autorización para el tratamiento y la protección de datos personales"]
[]
[null,"Liquidador en Excel del formulario 110 y el formato 2516: declaración de renta de personas jurídicas AG 2023"]
[]
[null,"[Liquidador] Excel del formulario 350 de retención en la fuente (vigente a partir de agosto 1 de 2024)"]
[]
[null,"Modelo de contrato de trabajo a término indefinido"]
[]
[null,"Liquidador de prestaciones sociales y vacaciones"]
[]
[null,"Liquidador de topes de ingresos para presentar formatos de conciliación fiscal 2516 y 2517"]
[]
[null,"[Guía] Clasificación de las personas jurídicas frente al impuesto de renta y el SIMPLE AG 2023"]
[]
[null,"[Lista de chequeo] Guía para evitar errores en la presentación de información exógena"]
[]
[null,"Formato de cálculo de horas extra y recargos mensuales o quincenales"]
[]
[null,"Modelo de certificado laboral  "]
[]
[null,"Carta de recomendación laboral"]
[]
[null,"Liquidador de prestaciones sociales en período de incapacidad"]
[]
[null,"Tabla en Excel de retención en la fuente 2024"]
[]
[null,"Tabla automatizada con las tarifas de autorretención especial en renta (Decretos 0261 de 2023 y 0242 de 2024)"]
[]
[null,"[Liquidador] Formulario 160 AG 2024 para la declaración de activos en el exterior"]
[]
[null,"[Liquidador] Certificado de ingresos y retenciones: plantilla del formulario 220 y del formato 2276 AG 2023"]
[]
[null,"Simulador para contrastar los efectos de pertenecer al régimen ordinario del impuesto a la renta o al régimen simple de tributación AG 2024"]
[]
[null,"Lista de chequeo de estándares mínimos de SST para empresas con 11 a 50 trabajadores"]
[]
[null,"Lista de chequeo de documentos para la asamblea de accionistas o junta de socios"]
[]
[null,"Modelo en Excel del certificado anual a socios y/o accionistas AG 2023"]
[]
[null,"[Liquidador] Tributación sobre dividendos y cálculo de su retención en la fuente a título de renta durante el año 2024"]
[]
[null,"Simulador de retenciones a practicar entre regímenes"]
[]
[null,"Liquidador de aportes a ARL para trabajadores independientes"]
[]
[null,"Lista de chequeo en Excel para efectuar el cierre contable y fiscal de una entidad"]
[]
[null,"Modelo en Word de un acuerdo de exclusividad laboral"]
[]
[null,"Listado de actividades económicas (códigos CIIU)"]
[]
[null,"Modelo de contrato de prestación de servicios"]
[]
[null,"Acta de entrega de dotación"]
[]
[null,"Solicitud de compensación en dinero de las vacaciones"]
[]
[null,"Modelo de acta de reunión del máximo órgano social para cambio de representante legal"]
[]
[null,"Lista de chequeo de estándares mínimos de SST para empresas con 10 o menos trabajadores"]
[]
[null,"Lista de chequeo para contratación laboral"]
[]
[null,"[Liquidador] Plantilla para elaborar el formulario 300 para las declaraciones del IVA en 2024"]
[]
[null,"Tabla para liquidar indemnizaciones por pérdida de capacidad laboral"]
[]
[null,"Liquidador y desprendible mensual de nómina básico en Excel"]
[]
[null,"Liquidador con macros para calcular la renta gravable por comparación patrimonial"]
[]
[null,"3 modelos del certificado de dependientes para aplicar la deducción en la declaración de renta"]
[]
[null,"12 liquidadores para calcular la prima de servicios semestral"]
[]
[null,"Modelo de certificado de retención en la fuente por conceptos diferentes a rentas laborales"]
[]
[null,"[Liquidador] Cálculo del costo de renovación de matrícula mercantil y de establecimientos de comercio (2024)"]
[]
[null,"Modelo en Word de documento de otorgamiento de viáticos permanentes"]
[]
[null,"Liquidador de sanción por corrección presentada por el contribuyente"]
[]
[null,"Liquidador de sanción por inexactitud con macros"]
[]
[null,"Modelo en Word de carta de terminación del contrato de trabajo sin justa causa por parte del empleador"]
[]
[null,"Calendario tributario 2024 (versión descargable)"]
[]
[null,"Simulador del impuesto para dividendos y participaciones no gravados de 2017 y siguientes luego de la Ley 2277 de 2022"]
[]
[null,"Simulador del impuesto para dividendos y participaciones gravados de 2017 y siguientes luego de la Ley 2277 de 2022"]
[]
[null,"Simulador del impuesto sobre dividendos y participaciones gravados de 2016 y anteriores"]
[]
[null,"Simulador para contrastar los efectos de pertenecer al régimen ordinario del impuesto a la renta o al régimen simple de tributación AG 2024"]
[]
[null,"Liquidador avanzado en Excel (con macros) de intereses moratorios sobre deudas tributarias"]
[]
[null,"Comparativo de pagos a trabajador (contrato de trabajo vs. contrato de prestación de servicios)"]
[]
[null,"Liquidador en Excel para la contabilización de la nómina (ejemplo práctico)"]
[]
[null,"Liquidador de sanción por extemporaneidad antes del emplazamiento"]
[]
[null,"Liquidador de sanción por extemporaneidad después del emplazamiento"]
[]
[null,"[Liquidador] Tributación sobre dividendos y cálculo de su retención en la fuente a título de renta durante el año 2024"]
[]
[null,"Liquidador de sanción por no consignar las cesantías y no pagar los intereses"]
[]
[null,"Liquidador de cesantías y sus intereses aplicado a 11 casos prácticos"]
[]
[null,"Liquidador de vacaciones en Excel aplicado a 10 casos prácticos"]
[]
[null,"[Guía] Requisitos para operar como no responsables de IVA durante el 2024"]
[]
[null,"Calendario para pago de aportes a seguridad social para empleadores e independientes 2023-2024"]
[]
[null,"Tabla en Excel de retención en la fuente 2024"]
[]
[null,"Tablas de retención en la fuente a título de impuestos nacionales durante el año fiscal 2024"]
[]
[null,"Liquidador e histórico de porcentajes de reajuste fiscal 2005-2023"]
[]
[null,"Liquidador en Excel de retención en la fuente con procedimiento 1 durante 2024 sobre rentas de trabajo (laborales y no laborales)"]
[]
[null,"Histórico de la variación nominal del salario mínimo e inflación 1993-2024"]
[]
[null,"Histórico del índice de precios al consumidor –IPC–"]
[]
[null,"Liquidador de horas extra diurnas, nocturnas, dominicales y festivas"]
[]
[null,"Tabla de tarifas de honorarios para contadores públicos en Colombia"]
[]
[null,"Liquidador de aportes a seguridad social para independientes con contrato de prestación de servicios"]
[]
[null,"Liquidador de aportes a seguridad social de independientes por cuenta propia y con contrato diferente al de prestación de servicios"]
[]
[null,"Comparativo de normas del DUT 1625 de 2016 afectadas con el Decreto 2231 de 2023"]
[]
[null,"Histórico del salario mínimo y el auxilio de transporte 1990-2024"]
[]
[null,"Guía de información laboral 2024"]
[]
[null,"Modelo en Excel para el cálculo de cesantías e intereses a las cesantías"]
[]
[null,"Modelo en Word para elaborar el comprobante de pago de intereses a las cesantías"]
[]
[null,"Cuadro comparativo de regímenes pensionales en Colombia"]
[]
[null,"Caso práctico de liquidación de un trabajador doméstico que devenga el salario mínimo"]
[]
[null,"Liquidador avanzado en Excel (con macros) de intereses moratorios sobre deudas tributarias"]
[]
[null,"Liquidador del costo de la contratación de un trabajador con el salario mínimo"]
[]
[null,"Calendario tributario 2024 (versión descargable)"]
[]
[null,"Liquidador de sanciones por incumplir con la obligación de inscribirse en el RUT"]
[]
[null,"Liquidadores de sanciones relacionadas con la información exógena"]
[]
[null,"Liquidadores de sanción por no declarar"]
[]
[null,"Pack de Formatos para la revisoría fiscal: dictámenes, informes, certificaciones y más"]
[]
[null,"Caso práctico de liquidación de un trabajador doméstico que devenga el salario mínimo"]
[]
[null,"Modelo de carta para el incremento anual del arrendamiento comercial"]
[]
[null,"Listado de convenios internacionales para evitar la doble tributación"]
[]
[null,"Convertidor de UVT"]
[]
[null,"Fórmulas para liquidar prestaciones, vacaciones y horas extra"]
[]
[null,"Matriz de responsabilidades en seguridad social de trabajadores independientes"]
[]
[null,"Dictamen de estados financieros consolidados: opinión con salvedades cuando no se obtiene evidencia"]
[]
[null,"Informe sobre los hallazgos obtenidos en la auditoría de inventarios, según la NISR 4400"]
[]
[null,"Informe de compilación de estados financieros con fines específicos"]
[]
[null,"Informe del revisor fiscal sobre irregularidades y deficiencias en el control interno"]
[]
[null,"Presencia económica significativa –PES–: comparativo en Word de las normas del DUT 1625 de 2016 afectadas con el Decreto 2039 de 2023"]
[]
[null,"Modelo de pagaré en blanco y carta de instrucción"]
[]
[null,"Guía: estructura del informe del revisor fiscal bajo NIA 701 (comunicación de las cuestiones clave de auditoría)"]
[]
[null,"Modelo de carta de aceptación de un encargo de auditoría concreto"]
[]
[null,"Dictamen del revisor fiscal con comunicación de cuestiones clave (NIA 700 revisada y NIA 701)"]
[]
[null,"Dictamen del revisor fiscal que incluye opinión con salvedades"]
[]
[null,"Certificación del contador o revisor fiscal para la inscripción de libros en la Cámara de Comercio"]
[]
[null,"Liquidador automatizado de la prima de servicios con comprobante de pago"]
[]
[null,"[Liquidador] Modelos y formatos para la elaboración de estados financieros y cálculo de los indicadores financieros"]
[]
[null,"Modelo básico en Excel para proyectar el impuesto al patrimonio 2023 y años siguientes"]
[]
[null,"Liquidador en Excel del porcentaje fijo de retención en la fuente sobre salarios en diciembre de 2023 – Procedimiento 2"]
[]
[null,"NIA 700 vs. NIA 700 (revisada): comparativo de estructura del informe del revisor fiscal"]
[]
[null,"Modelo en Excel (con macros) del documento soporte para operaciones con no obligados a facturar"]
[]
[null,"Modelo de acta de distribución de utilidades y pago de dividendos"]
[]
[null,"Modelo de acta del máximo órgano social para cambio de los miembros de junta directiva"]
[]
[null,"Modelo de acta de nombramiento del revisor fiscal"]
[]
[null,"Modelo de acta de asamblea general de accionistas"]
[]
[null,"Papeles de trabajo del auditor: cuestionarios de control interno para pymes"]
[]
[null,"Modelo de poder de representación para nombrar delegado en asamblea de copropietarios"]
[]
[null,"Modelo de proyecto de distribución de utilidades en una sociedad comercial"]
[]
[null,"Cuestionario de auditoría y control interno para el área de nómina"]
[]
[null,"Cuestionario de auditoría y control interno para el área de ventas"]
[]
[null,"Modelo de convocatoria a asamblea general ordinaria de copropietarios"]
[]
[null,"Modelo de acta de reunión de junta directiva"]
[]
[null,"Modelo de acta de decisiones de asamblea de copropietarios"]
[]
[null,"Informe del revisor fiscal dirigido a la asamblea de accionistas o junta de socios"]
[]
[null,"Modelo de convocatoria a asamblea general ordinaria de socios o accionistas"]
[]
[null,"Modelo de convocatoria extraordinaria a asamblea de accionistas o junta de socios"]
[]
[null,"Modelo de poder de representación en asamblea de accionistas o junta de socios"]
[]
[null,"Modelo de informe de gestión"]
[]
[null,"Cuestionario de auditoría y control interno para el área de compras"]
[]
[null,"[Pack de Formatos] Liquidadores, simuladores y guías para el cierre contable y fiscal del año gravable 2023"]
[]
[null,"Modelo en Word de acuerdo de pago"]
[]
[null,"Modelo de carta de respuesta a la solicitud de un servicio"]
[]
[null,"Formato de solicitud de permiso compensatorio por votaciones"]
[]
[null,"Modelo de solicitud de compensación y disfrute de vacaciones"]
[]
[null,"Simulador del impuesto sobre dividendos y participaciones gravados de 2016 y anteriores"]
[]
[null,"Cuestionario de auditoría en Excel para el control de propiedades, planta y equipo"]
[]
[null,"Cuestionario en Excel para el control interno de inventarios"]
[]
[null,"Cuestionario en Excel de control interno de provisiones y contingencias"]
[]
[null,"Caso práctico en Excel sobre adquisición de activos (inventarios) con interés implícito"]
[]
[null,"Listado de códigos de responsabilidades tributarias (RUT casilla 53)"]
[]
[null,"Caso práctico en Excel de corrección de errores de períodos anteriores"]
[]
[null,"Formato en Excel de circularización de clientes automatizado"]
[]
[null,"Guía en Excel sobre hechos posteriores al cierre que implican o no ajustes"]
[]
[null,"Formato en Excel de circularización de proveedores automatizado"]
[]
[null,"Liquidador en Excel para revisiones pertinentes en propiedad, planta y equipo en el proceso de cierre contable"]
[]
[null,"Liquidador avanzado en Excel (con macros) de intereses moratorios sobre deudas tributarias"]
[]
[null,"Lista de chequeo en Excel para efectuar el cierre contable y fiscal de una entidad"]
[]
[null,"[Liquidador] Modelos y formatos para la elaboración de estados financieros y cálculo de los indicadores financieros"]
[]
[null,"Guía en Excel y casos prácticos de tributación en el impuesto de renta de los dividendos y participaciones AG 2023"]
[]
[null,"Pack de Formatos para el análisis financiero en Excel"]
[]
[null,"Guía en Word con las revelaciones de la información financiera a presentar según el Estándar para Pymes"]
[]
[null,"Plantilla en Excel (con macros) del estado de costos de producción y de ventas"]
[]
[null,"Ejercicios de conversión entre tasas de interés efectiva, nominal y periódica"]
[]
[null,"Formato de flujo de caja real y presupuestado"]
[]
[null,"Modelo en Excel de la estructura del balance de comprobación"]
[]
[null,"Liquidador en Excel para el cálculo de intereses de mora y su IVA en cuentas por cobrar vencidas"]
[]
[null,"Modelo en Excel del estado de resultados con enfoque de gastos por naturaleza o función"]
[]
[null,"Simulador en Excel del punto de equilibrio como herramienta de análisis financiero"]
[]
[null,"Guía en Excel para el análisis vertical y horizontal aplicado al estado de situación financiera y al estado de resultado integral"]
[]
[null,"[Liquidador] Formato de hoja de costos en Excel con macros"]
[]
[null,"Liquidador de indicadores financieros"]
[]
[null,"Modelo de autorización de descuento por libranza"]
[]
[null,"Liquidador Dupont: índice de rentabilidad  "]
[]
[null,"[Simulador] Análisis de propuestas de inversión con el uso del valor presente y valor presente neto"]
[]
[null,"Estado de flujos de efectivo por el método directo: ejercicio práctico y plantilla en Excel"]
[]
[null,"Estado de flujos de efectivo por el método indirecto: ejercicio práctico y plantilla en Excel"]
[]
[null,"Modelo en Excel de estructura del estado de resultados y ganancias acumuladas"]
[]
[null,"[Simulador] Cálculo del costo amortizado y la TIR"]
[]
[null,"Clasificación de arrendamientos según la sección 20 del Estándar para Pymes: casos prácticos en Excel"]
[]
[null,"Liquidador de indicadores de detrimento patrimonial e insolvencia financiera"]
[]
[null,"Guía en Excel para determinar el control de una entidad sobre otra"]
[]
[null,"Casos prácticos en Excel sobre la distribución de los CIF (costos indirectos de fabricación)"]
[]
[null,"Plantilla en Excel para elaborar el estado de cambios en el patrimonio"]
[]
[null,"Modelo de presentación del estado de resultado integral por enfoques"]
[]
[null,"Modelo de certificación de estados financieros (versión simplificada)"]
[]
[null,"Modelo de certificación de estados financieros consolidados"]
[]
[null,"Simulador en Excel del estado de situación financiera (análisis comparativo)"]
[]
[null,"Casos prácticos para comprender la contabilización de pasivos en el cierre contable"]
[]
[null,"Ejercicios sobre métodos de depreciación: línea recta, decreciente, unidades de producción y más"]
[]
[null,"Modelo de carta de renuncia"]
[]
[null,"Modelo de llamado de atención  "]
[]
[null,"Modelo de carta de aceptación de renuncia de un trabajador"]
[]
[null,"Modelo de certificado laboral  "]
[]
[null,"Modelo de derecho de petición para solicitar certificado laboral  "]
[]
[null,"Liquidador avanzado en Excel (con macros) de intereses moratorios sobre deudas tributarias"]
[]
[null,"Simulador de casos para clasificar instrumentos financieros como pasivos o patrimonio"]
[]
[null,"Guía en Excel sobre el sistema de facturación electrónica, documento soporte y nómina electrónica AG 2023"]
[]
[null,"Casos prácticos para comprender la contabilización de activos en el cierre contable"]
[]
[null,"Modelos de conciliación bancaria (individual y conjunta) en Excel"]
[]
[null,"Ejercicio práctico en Excel: valuación de inventarios por el método de identificación específica"]
[]
[null,"Simulador para la clasificación de entidades en los grupos 1, 2 o 3 de Estándares Internacionales"]
[]
[null,"Guía en Excel con los principales índices de coherencia tributaria para las personas jurídicas  "]
[]
[null,"Casos prácticos en Excel con las diferencias más comunes en el proceso de conciliación fiscal de personas jurídicas"]
[]
[null,"Simulador con las diferencias permanentes, temporales y temporarias: efectos en la utilidad contable y fiscal"]
[]
[null,"Liquidador en Excel para calcular la contribución 2023 a Supersociedades"]
[]
[null,"Caso práctico en Excel sobre bancarización en personas jurídicas"]
[]
[null,"Liquidador de indicadores financieros de actividad y rentabilidad"]
[]
[null,"Liquidador de indicadores financieros de endeudamiento"]
[]
[null,"Liquidador de indicadores financieros: márgenes de utilidad o rentabilidad"]
[]
[null,"Liquidador de indicadores financieros de liquidez"]
[]
[null,"Liquidador de indicadores financieros de mercado"]
[]
[null,"Modelo de cesión de acciones  "]
[]
[null,"Modelo de memorial para solicitar al juez librar medida cautelar de embargo  "]
[]
[null,"Modelo de nota 1 a los estados financieros bajo el Estándar para Pymes  "]
[]
[null,"Modelo de revocatoria de poder otorgado a un abogado  "]
[]
[null,"Modelo de notas a los estados financieros (estado de resultados)"]
[]
[null,"Matriz en Excel: rentas exentas, descuentos, costos y deducciones para personas jurídicas en 2023"]
[]
[null,"Carta para solicitar a la empresa de servicios públicos la cancelación del contrato de telefonía e internet"]
[]
[null,"Carta para solicitar el pago de acreencias laborales"]
[]
[null,"Carta otorgando poder"]
[]
[null,"Cuestionario de control interno para el efectivo y equivalentes al efectivo"]
[]
[null,"[Liquidador] Modelos y Formatos para la elaboración de estados financieros y cálculo de los indicadores financieros"]
[]
[null,"Pack de Formatos en Excel para calcular el impuesto diferido en 2023: guías, casos prácticos y más"]
[]
[null,"Modelo de políticas contables “Base para la preparación de estados financieros” para Pymes"]
[]
[null,"Liquidador de actualización de sanciones tributarias"]
[]
[null,"Liquidador en Excel para la determinación de diferencias temporarias e impuesto diferido"]
[]
[null,"Caso práctico en Excel: utilidad del impuesto diferido en la corrección del efecto de las normas fiscales"]
[]
[null,"Casos prácticos sobre métodos para determinar la naturaleza del impuesto diferido"]
[]
[null,"Liquidador avanzado en Excel (con macros) de intereses moratorios sobre deudas tributarias"]
[]
[null,"Pack de Formatos para realizar contabilizaciones en operaciones diarias"]
[]
[null,"Liquidador de horas extra diurnas, nocturnas, dominicales y festivas"]
[]
[null,"Formato en Excel para la toma de inventario físico (con macros)"]
[]
[null,"Casos prácticos de contabilización de sanciones e intereses tributarios a la Dian"]
[]
[null,"Formato de arqueo de caja general con macros"]
[]
[null,"Formato de arqueo de caja menor con macros"]
[]
[null,"Liquidador y caso práctico para calcular y contabilizar horas extra y recargos durante la reducción de la jornada laboral en 2023"]
[]
[null,"Notificación a empleado de la reducción de la jornada laboral"]
[]
[null,"Casos prácticos de contabilización de ingresos en pymes bajo Estándares Internacionales"]
[]
[null,"Formato de cálculo de horas extra y recargos mensuales o quincenales"]
[]
[null,"Caso práctico de contabilización de un préstamo bancario en pymes y microempresas"]
[]
[null,"Casos prácticos sobre contabilización de combinación de negocios y determinación de la plusvalía"]
[]
[null,"Carta para solicitar licencia por luto"]
[]
[null,"Formato de solicitud de licencia de calamidad doméstica"]
[]
[null,"Liquidador (con macros) de sanciones relacionadas con la declaración informativa de precios de transferencia"]
[]
[null,"Plantilla de control de cuentas por pagar y política de pago a proveedores"]
[]
[null,"Plantilla automática para control y auditoría del gasto de servicios públicos"]
[]
[null,"Casos prácticos de retención en la fuente por compras, servicios y honorarios"]
[]
[null,"Plantilla para el control y auditoría del gasto de celulares"]
[]
[null,"Casos prácticos sobre AIU: cálculo del IVA y retención en la fuente en esta figura"]
[]
[null,"Simulador para la aplicación de la renta exenta de las cesantías y sus intereses AG 2022 (numeral 4 del artículo 206 del ET)"]
[]
[null,"Liquidador en Excel con macros del porcentaje de retención en la fuente sobre salarios, procedimiento 1 (2023)"]
[]
[null,"Caso práctico de contabilización de devoluciones en ventas"]
[]
[null,"Plantilla de control de cuentas por cobrar y política de recaudo a clientes"]
[]
[null,"Impuesto diferido por diferencia en cambio en 2023: caso práctico en Excel"]
[]
[null,"Caso práctico en Excel: impuesto diferido por deterioro de inventario en 2023"]
[]
[null,"Caso práctico en Excel: impuesto diferido por valorización de activos intangibles"]
[]
[null,"Ejercicios para determinar si una persona natural está obligada a presentar renta por el AG 2022"]
[]
[null,"Matriz y ejemplos de residencia fiscal de las personas naturales"]
[]
[null,"Aplicación del impuesto a los dividendos recibidos por personas naturales (caso práctico en Excel)"]
[]
[null,"Simulador para el cálculo del límite del descuento por impuestos pagados en el exterior"]
[]
[null,"Caso práctico de impuesto diferido: compensación de pérdidas fiscales y exceso de renta presuntiva"]
[]
[null,"Caso práctico en Excel: impuesto diferido por provisiones contables no aceptadas fiscalmente"]
[]
[null,"Impuesto diferido por activos biológicos en 2023: caso práctico en Excel"]
[]
[null,"Caso práctico en Excel de impuesto diferido por acciones medidas a valor razonable"]
[]
[null,"Impuesto diferido en la depreciación de propiedad, planta y equipo 2023 (caso práctico en Excel)"]
[]
[null,"Modelo en Excel: cálculo de intereses presuntivos en 2023 sobre préstamos entre socios y sociedades"]
[]
[null,"Casos prácticos de contabilización de compras e impuestos asumidos"]
[]
[null,"Caso práctico de determinación de la renta líquida cedular por pensiones del exterior"]
[]
[null,"Modelo de notas a los estados financieros (estado de situación financiera)"]
[]
[null,"Simulador del límite de pagos en efectivo a partir de 2018"]
[]
[null,"Liquidador del impuesto sobre la renta líquida de las cédulas general y de pensiones"]
[]
[null,"Caso práctico de determinación de la ganancia ocasional gravable de una persona natural residente"]
[]
[null,"Liquidador avanzado en Excel (con macros) de intereses moratorios sobre deudas tributarias"]
[]
[null,"Caso práctico: deducciones y descuentos tributarios con los cambios de la Ley 2277 de 2022"]
[]
[null,"Liquidador con macros del porcentaje fijo de retención en la fuente sobre salarios – procedimiento 2"]
[]
[null,"Caso práctico: cálculo del valor a adicionar y límites de beneficios tributarios"]
[]
[null,"Simulador de casos de descuentos tributarios y donaciones: conciliación contable y tributaria"]
[]
[null,"Liquidador de horas extra diurnas, nocturnas, dominicales y festivas"]
[]
[null,"Listado de contribuyentes inscritos en el régimen simple"]
[]
[null,"Ejemplo en Excel de la declaración de renta de un pensionado en Colombia"]
[]
[null,"Formato de cálculo de horas extra y recargos mensuales o quincenales"]
[]
[null,"Caso práctico en Excel: impuesto diferido por valoración de propiedades de inversión"]
[]
[null,"Pack de Formatos para profundizar en las novedades de la Ley de reforma tributaria 2277 de 2022"]
[]
[null,"Casos prácticos en Excel del impuesto al patrimonio AG 2023"]
[]
[null,"Impuesto diferido por venta de bienes inmuebles a largo plazo en 2023: caso práctico en Excel"]
[]
[null,"Matriz en Excel: rentas exentas, descuentos, costos y deducciones para personas jurídicas en 2023"]
[]
[null,"Guía en Excel y casos prácticos de tributación en el impuesto de renta de los dividendos y participaciones 2022"]
[]
[null,"Modelo de certificado de retención en la fuente por conceptos diferentes a rentas laborales"]
[]
[null,"Formato de control de clientes de declaración de renta de persona natural"]
[]
[null,"Dividendos y sus retenciones: comparativo de normas del DUT 1625 de 2016 modificadas con el Decreto 1103 de 2023"]
[]
[null,"Impuesto diferido por gastos de establecimiento en 2023: caso práctico en Excel"]
[]
[null,"Impuesto diferido ante deterioro de cartera en 2023: caso práctico en Excel"]
[]
[null,"Ejercicio práctico en Excel: impuesto diferido cuando hay compensación de pérdidas fiscales"]
[]
[null,"Simulador del impuesto para dividendos y participaciones gravados de 2017 y siguientes"]
[]
[null,"Simulador del impuesto sobre dividendos y participaciones gravados de 2016 y anteriores"]
[]
[null,"Simulador del impuesto para dividendos y participaciones no gravados de 2017 y siguientes"]
[]
[null,"Notificación a empleado de la reducción de la jornada laboral"]
[]
[null,"Modelo de contrato de mandato: descarga y simplifica tus procesos de delegación"]
[]
[null,"Liquidador de sanciones por incumplir con la obligación de inscribirse en el RUT"]
[]
[null,"Lista de chequeo para trasladarse de régimen de pensiones: pasos esenciales a seguir"]
[]
[null,"Modelos y guías sobre aspectos laborales y comerciales que deben atender los trabajadores independientes"]
[]
[null,"Casos prácticos de liquidación y contabilización de sanciones por no inscribirse o actualizar el RUT"]
[]
[null,"Liquidador automático de utilidad por venta de activo fijo depreciable que será renta por recuperación de deducciones"]
[]
[null,"Caso práctico de declaración de renta a partir de información reportada por terceros"]
[]
[null,"Liquidador avanzado en Excel (con macros) de intereses moratorios sobre deudas tributarias"]
[]
[null,"Formulario 110 y formato 2516 para la declaración de renta de personas naturales no residentes que llevan contabilidad AG 2022"]
[]
[null,"Cuestionario para definir si una persona natural está obligada a presentar declaración de renta AG 2022"]
[]
[null,"Casos prácticos de retención en la fuente sobre prima de servicios"]
[]
[null,"Simulador del beneficio de auditoría para 2021, 2022 y 2023"]
[]
[null,"Modelo de carta de solicitud de corrección de información exógena"]
[]
[null,"Formulario 110: declaración de renta de personas naturales no residentes que no llevan contabilidad AG 2022"]
[]
[null,"Pack de Formatos para elaborar la declaración de renta de personas naturales AG 2022"]
[]
[null,"Beneficio de auditoría para personas naturales AG 2022: casos prácticos en Excel"]
[]
[null,"Listado de actividades económicas (códigos CIIU)"]
[]
[null,"Modelo en Excel (con macros) del documento soporte para operaciones con no obligados a facturar"]
[]
[null,"Valor patrimonial de acciones y aportes en la declaración de renta de personas naturales AG 2022"]
[]
[null,"Ejercicios sobre la determinación de la renta líquida de trabajo cuando hay rentas laborales y honorarios"]
[]
[null,"Cálculo del límite de subcapitalización: casos prácticos en Excel"]
[]
[null,"Caso práctico sobre liquidación de sucesión ilíquida e impuesto de ganancia ocasional"]
[]
[null,"Lista de chequeo: soportes para preparación y presentación de la declaración de renta de personas naturales"]
[]
[null,"Notificación de embargo de la prima de servicios"]
[]
[null,"12 liquidadores para calcular la prima de servicios semestral"]
[]
[null,"Formulario 210 y formato 2517 para la declaración de renta de personas naturales residentes que llevan contabilidad AG 2022"]
[]
[null,"Notificación a trabajadores que no tienen derecho a la prima de servicios"]
[]
[null,"Liquidador automatizado de la prima de servicios con comprobante de pago"]
[]
[null,"Calendario tributario 2023 – versión automatizada en Excel"]
[]
[null,"Excel del formulario 2593 AG 2023: declaración de anticipos bimestrales – régimen simple"]
[]
[null,"[Liquidador] Modelo en Excel para calcular la nueva «tasa mínima de tributación» de personas jurídicas, según Ley 2277 de reforma tributaria 2022"]
[]
[null,"Calendario tributario 2023 – versión para imprimir"]
[]
[null,"Liquidador en Excel del porcentaje fijo de retención en la fuente sobre salarios en junio de 2023 – Procedimiento 2"]
[]
[null,"Formulario 160 AG 2023 para la declaración de activos en el exterior"]
[]
[null,"Formulario 420 AG 2023 para la declaración del impuesto al patrimonio"]
[]
[null,"Liquidador avanzado en Excel (con macros) de intereses moratorios sobre deudas tributarias"]
[]
[null,"3 modelos del certificado de dependientes para aplicar la deducción en la declaración de renta"]
[]
[null,"Liquidador del componente inflacionario de los rendimientos o costos financieros"]
[]
[null,"Liquidadores de sanción por no declarar"]
[]
[null,"Formulario 210: declaración de renta de personas naturales residentes que no llevan contabilidad AG 2022"]
[]
[null,"Formulario 210 y formato 2517 para la declaración de renta de personas naturales residentes que llevan contabilidad AG 2022"]
[]
[null,"Formulario 110: declaración de renta de personas naturales no residentes que no llevan contabilidad AG 2022"]
[]
[null,"Formulario 110 y formato 2516 para la declaración de renta de personas naturales no residentes que llevan contabilidad AG 2022"]
[]
[null,"Liquidador de sanción por corrección presentada por el contribuyente"]
[]
[null,"Liquidador de sanción por inexactitud con macros"]
[]
[null,"Modelo de certificado de no declarante del impuesto de renta y complementario AG 2022"]
[]
[null,"Simulador: cálculo de la distribución de rentas exentas y deducciones limitadas"]
[]
[null,"Tratamiento del ICA como descuento o deducción en la declaración de renta personas naturales: caso práctico en Excel"]
[]
[null,"Plantilla para elaborar el formulario 300 para las declaraciones del IVA en 2023"]
[]
[null,"[Guía] Características básicas de la cedulación de personas naturales residentes AG 2022"]
[]
[null,"Modelo de contrato de outsourcing o tercerización"]
[]
[null,"Liquidador con macros para calcular la renta gravable por comparación patrimonial"]
[]
[null,"Modelo de carta para solicitar el certificado de donación para efectuar el descuento tributario"]
[]
[null,"[Pack de Formatos] Herramientas y guías para el reporte de información exógena 2022"]
[]
[null,"Calendario para pago de aportes a seguridad social para empleadores e independientes 2023-2024"]
[]
[null,"Casos prácticos de criptoactivos de una persona natural en la declaración de renta AG 2022"]
[]
[null,"Simulador para determinar si una persona natural es residente fiscal en Colombia"]
[]
[null,"Comparativo de pagos a trabajador (contrato de trabajo vs. contrato de prestación de servicios)"]
[]
[null,"Liquidador del auxilio de incapacidad de origen común para trabajador independiente"]
[]
[null,"Liquidador de aportes a caja de compensación para trabajadores independientes"]
[]
[null,"Liquidador de topes de ingresos para presentar formatos de conciliación fiscal 2516 y 2517"]
[]
[null,"Herramienta con macros en Excel para elaborar y analizar estados financieros"]
[]
[null,"Liquidador avanzado en Excel (con macros) de intereses moratorios sobre deudas tributarias"]
[]
[null,"Plantilla en Excel del formulario 350 AG 2023 – declaración de retención en la fuente"]
[]
[null,"Plantilla del formulario 310 AG 2023: declaración del impuesto nacional al consumo"]
[]
[null,"Simulador con los efectos de los cambios introducidos por la Ley 2277 de 2022 al impuesto de renta bajo el régimen ordinario de las personas naturales residentes"]
[]
[null,"Cuestionario para definir si una persona natural está obligada a presentar declaración de renta AG 2022"]
[]
[null,"Modelo de contrato de prestación de servicios"]
[]
[null,"Modelo de derecho de petición para el pago de incapacidades de trabajadores independientes"]
[]
[null,"Liquidador en Excel del formulario 110 y el formato 2516: declaración de renta de personas jurídicas AG 2022"]
[]
[null,"Herramienta con macros en Excel para elaborar y analizar estados financieros"]
[]
[null,"[Pack de Formatos] Herramientas y guías para el reporte de información exógena 2022"]
[]
[null,"Casos prácticos de liquidación de intereses moratorios y sanción de extemporaneidad, Ley 2277 de 2022"]
[]
[null,"Liquidador avanzado en Excel (con macros) de intereses moratorios sobre deudas tributarias"]
[]
[null,"Liquidador de sanción por extemporaneidad antes del emplazamiento"]
[]
[null,"Liquidador de sanción por extemporaneidad después del emplazamiento"]
[]
[null,"Simulador del límite de costos y gastos no soportados en factura electrónica"]
[]
[null,"Plantilla del formato 1009 para el reporte de exógena 2022: información de cuentas por pagar"]
[]
[null,"Plantilla del formato 1008 para el reporte de exógena 2022: información de cuentas por cobrar"]
[]
[null,"Plantilla de los formatos 1011, 1012 y 2275 de exógena 2022 para el reporte de otros datos en renta e IVA"]
[]
[null,"Plantilla de los formatos 1005 y 1006 de exógena 2022 para el reporte del IVA descontable e IVA y/o INC generados"]
[]
[null,"Plantilla del formato 1007 para el reporte de exógena 2022: información de ingresos propios"]
[]
[null,"Plantilla del formato 1647 para el reporte de ingresos recibidos para terceros – exógena 2022"]
[]
[null,"Facturación electrónica: comparativo de normas del DUT 1625 de 2016 afectadas con el Decreto 442 de 2023"]
[]
[null,"Plantilla del formato 1004 de exógena de 2022: reporte de descuentos al impuesto de renta y el SIMPLE"]
[]
[null,"Plantilla del formato 1003 para el reporte de exógena 2022: retenciones que le practicaron al informante"]
[]
[null,"Plantilla de los formatos de exógena del 5247 al 5252 por el AG 2022: reportes de los mandatarios"]
[]
[null,"Pack de formatos para elaborar la declaración de renta de personas jurídicas año gravable 2022"]
[]
[null,"Requisitos para reportar información exógena por el AG 2022 (guía y casos prácticos)"]
[]
[null,"Plantilla del formato 1010 para reporte de exógena 2022: información de socios, cooperados o comuneros"]
[]
[null,"Casos prácticos sobre el reporte de información exógena AG 2022"]
[]
[null,"Liquidador en Excel de intereses moratorios sobre deudas tributarias"]
[]
[null,"Herramienta en Excel para la consulta de terceros en la Dian"]
[]
[null,"Plantilla del formato 2276, 2280 y 2743 para el reporte de información exógena de 2022"]
[]
[null,"Plantilla del formato 1001 por el año gravable 2022: reporte de exógena de pagos o abonos en cuenta"]
[]
[null,"Guía en Excel para evitar errores en la presentación de información exógena"]
[]
[null,"Simulador del límite de pagos en efectivo a partir de 2018"]
[]
[null,"Simulador del límite de costos y gastos no soportados en factura electrónica"]
[]
[null,"[Liquidador] Certificado de ingresos y retenciones: plantilla del formulario 220 AG 2022"]
[]
[null,"Listado de códigos de responsabilidades tributarias (RUT casilla 53)"]
[]
[null,"Liquidador en Excel del formulario 110 y el formato 2516: declaración de renta de personas jurídicas AG 2022"]
[]
[null,"Liquidador del anticipo del impuesto de renta 2023 para personas jurídicas y naturales"]
[]
[null,"Modelo del certificado de donación para que proceda el descuento tributario en la declaración de renta"]
[]
[null,"Plantilla para elaborar el formulario 300 para las declaraciones del IVA en 2023"]
[]
[null,"Formulario 260 AG 2022 – declaración anual régimen simple (personas naturales que no llevan contabilidad)"]
[]
[null,"Matriz de categorías para el reporte de información exógena y los formatos para el AG 2022"]
[]
[null,"[Liquidador] Tributación sobre dividendos y cálculo de su retención luego de la Ley 2277 de 2022"]
[]
[null,"Guía en Excel para auditar el formato 2516: conciliación fiscal de las personas jurídicas"]
[]
[null,"Modelo de certificación laboral para deducción del primer empleo"]
[]
[null,"Acta de entrega de dotación"]
[]
[null,"Carta de finalización del contrato individual de trabajo por justa causa"]
[]
[null,"Formatos para la liquidación de la nómina paso a paso"]
[]
[null,"Liquidador de aportes a seguridad social durante la licencia de maternidad"]
[]
[null,"Casos prácticos de liquidación de sanciones relacionadas con la información exógena"]
[]
[null,"Liquidador en Excel del formulario 110 y el formato 2516: declaración de renta de personas jurídicas AG 2022"]
[]
[null,"Tabla para liquidar indemnizaciones por pérdida de capacidad laboral"]
[]
[null,"Liquidador de indemnización por despido sin justa causa (contrato fijo y de obra o labor)"]
[]
[null,"Liquidador en Excel de nómina para trabajadora en licencia de maternidad"]
[]
[null,"Liquidador de seguridad social, parafiscales y prestaciones en vacaciones"]
[]
[null,"Calendario tributario 2023 – versión para imprimir"]
[]
[null,"Modelo en Excel: cálculo de intereses presuntivos en 2022 sobre préstamos entre socios y sociedades"]
[]
[null,"Liquidador de aportes a ARL para trabajadores independientes"]
[]
[null,"Actualícese 110.xls: una herramienta amigable y eficiente para declaraciones de renta de personas jurídicas"]
[]
[null,"Liquidador en Excel de intereses moratorios sobre deudas tributarias"]
[]
[null,"Excel interactivo: resultados de la Encuesta Actualícese ¿Cómo están realmente los honorarios profesionales del contador público?"]
[]
[null,"Caso práctico de liquidación de nómina con salario integral"]
[]
[null,"Caso práctico de liquidación de nómina cuando hay incapacidad"]
[]
[null,"Liquidador en Excel para la contabilización de la nómina (ejemplo práctico)"]
[]
[null,"Liquidador de nómina mensual de trabajador pensionado por vejez"]
[]
[null,"Liquidador y desprendible mensual de nómina básico en Excel"]
[]
[null,"[Liquidador] Plantilla en Excel para el control de entrega de dotación a empleados"]
[]
[null,"Calendario tributario 2023 – versión automatizada en Excel"]
[]
[null,"Formulario 260 AG 2022 – declaración anual régimen simple (personas naturales y jurídicas que llevan contabilidad)"]
[]
[null,"Liquidador de indemnización por despido sin justa causa (contrato indefinido)"]
[]
[null,"Liquidador de aportes al fondo de solidaridad pensional por parte de un empleado"]
[]
[null,"Liquidador de aportes en el piso de protección social: trabajadores dependientes e independientes"]
[]
[null,"Liquidador (con macros) de nómina de empleados de servicio doméstico que laboran por días"]
[]
[null,"Liquidador del costo de renovación de matrícula mercantil y de establecimientos de comercio (2023)"]
[]
[null,"[Pack de formatos] Modelos y guías para asambleas de accionistas, socios y copropietarios al cierre del AG 2022"]
[]
[null,"Modelo de acta de reunión de asamblea general para constituir una empresa o fundación"]
[]
[null,"Modelo de acta de cesión y venta de cuotas sociales a terceros en la sociedad de responsabilidad limitada"]
[]
[null,"Modelo de poder de representación para nombrar delegado en asamblea de copropietarios"]
[]
[null,"Modelo de acta de reunión del máximo órgano social para cambio de representante legal"]
[]
[null,"Modelo de acta de decisiones de asamblea de copropietarios"]
[]
[null,"Modelo de convocatoria a asamblea general ordinaria de copropietarios"]
[]
[null,"Liquidadores de sanciones relacionadas con la información exógena"]
[]
[null,"Modelo de acta del máximo órgano social para cambio de los miembros de junta directiva"]
[]
[null,"Modelo de acta de nombramiento del revisor fiscal"]
[]
[null,"Modelo de acta de reunión de junta de socios o asamblea general de accionistas por derecho propio"]
[]
[null,"Modelo de acta para la ampliación del término de duración de una sociedad"]
[]
[null,"Modelo de carta para notificar la exclusión de un socio de la sociedad"]
[]
[null,"Lista de chequeo de documentos presentados en la asamblea de accionistas o junta de socios"]
[]
[null,"Modelo básico en Excel para proyectar el impuesto al patrimonio 2023 y años siguientes"]
[]
[null,"Modelo de convocatoria a asamblea general ordinaria de socios o accionistas"]
[]
[null,"Modelo de convocatoria extraordinaria a asamblea de accionistas o junta de socios"]
[]
[null,"Modelo de acta de distribución de utilidades y pago de dividendos"]
[]
[null,"Modelo de poder de representación en asamblea de accionistas o junta de socios"]
[]
[null,"Modelo de acta de asamblea general de accionistas"]
[]
[null,"Modelo de segunda convocatoria a asamblea general ordinaria de accionistas o junta de socios"]
[]
[null,"Planilla de asistencia y toma de decisiones en asamblea de accionistas o junta de socios"]
[]
[null,"[Guía] Clasificación de las personas jurídicas frente al impuesto de renta y al SIMPLE – AG 2022"]
[]
[null,"Liquidador de horas extra, diurnas, nocturnas, dominicales y festivas"]
[]
[null,"Liquidador de prestaciones sociales y vacaciones"]
[]
[null,"Liquidador automatizado de la prima de servicios con comprobante de pago"]
[]
[null,"Histórico de salario mínimo y auxilio de transporte 1990-2023"]
[]
[null,"Histórico de la variación nominal del salario mínimo e inflación 1993-2023"]
[]
[null,"Matriz de responsabilidades en seguridad social de trabajadores independientes"]
[]
[null,"Modelo del certificado anual a socios y/o accionistas AG 2022"]
[]
[null,"Liquidador de aportes a seguridad social para independientes con contrato de prestación de servicios"]
[]
[null,"Liquidador de aportes a seguridad social de independientes por cuenta propia y con contrato diferente al de prestación de servicios"]
[]
[null,"Calendario tributario distrital 2023"]
[]
[null,"[Guía] Información laboral 2023"]
[]
[null,"Solicitud de compensación en dinero de las vacaciones"]
[]
[null,"Histórico del índice de precios al consumidor –IPC–"]
[]
[null,"Cuadro comparativo de regímenes pensionales en Colombia"]
[]
[null,"Notificación a trabajadores que no tienen derecho a la prima de servicios"]
[]
[null,"Notificación de embargo de la prima de servicios"]
[]
[null,"[Pack de Formatos] 30 dictámenes e informes del revisor fiscal al cierre del AG 2022"]
[]
[null,"Tabla de retención en la fuente 2023"]
[]
[null,"Tablas de retención en la fuente 2023 a título de impuestos nacionales"]
[]
[null,"12 liquidadores para calcular la prima de servicios semestral"]
[]
[null,"Liquidador de cesantías en Excel aplicado a 11 casos prácticos"]
[]
[null,"Liquidador de vacaciones en Excel aplicado a 10 casos prácticos"]
[]
[null,"Liquidador de retención en la fuente con procedimiento 1 durante 2023 sobre rentas de trabajo (laborales y no laborales)"]
[]
[null,"Histórico de la TRM en 2022"]
[]
[null,"Histórico de tasas de intereses moratorios Dian"]
[]
[null,"Liquidador e histórico de porcentajes de reajuste fiscal 2005-2022"]
[]
[null,"Listado de convenios internacionales para evitar la doble tributación – año gravable 2022 y 2023"]
[]
[null,"Informe del revisor fiscal sobre el control interno: manifestación sobre pruebas de cumplimiento y sustantivas"]
[]
[null,"Modelo de carta de aceptación de un encargo de auditoría concreto"]
[]
[null,"Informe de auditoría sobre un solo estado financiero, elemento, partida o cuenta específicos"]
[]
[null,"Informe del revisor fiscal sobre irregularidades y deficiencias en el control interno"]
[]
[null,"Liquidador de prestaciones sociales en período de incapacidad"]
[]
[null,"Liquidador de auxilio de incapacidad (valores asumidos por el empleador, la EPS o la ARL)"]
[]
[null,"Liquidador del auxilio de incapacidad de origen común para trabajador independiente"]
[]
[null,"Liquidador de auxilio de incapacidad aplicado a salario variable, fijo o integral"]
[]
[null,"Informe sobre los hallazgos obtenidos en el efectivo y equivalentes al efectivo, según la NISR 4400"]
[]
[null,"Liquidador de sanción por no consignar las cesantías y no pagar los intereses"]
[]
[null,"Simulador de sanción por no pagar la liquidación del contrato laboral"]
[]
[null,"Simulador en Excel para realizar la liquidación de contrato de trabajo"]
[]
[null,"Certificación del contador o revisor fiscal para la inscripción de libros en la cámara de comercio"]
[]
[null,"Informe de revisión de información financiera intermedia: conclusión sin salvedades"]
[]
[null,"Informe de revisión de información financiera intermedia: conclusión con salvedades"]
[]
[null,"Dictamen del revisor fiscal para empresas en liquidación: opinión favorable"]
[]
[null,"Informe del revisor fiscal dirigido a la asamblea de accionistas o junta de socios"]
[]
[null,"Informe de verificación del cumplimiento de requerimientos del programa de incentivo por creación de nuevos empleos, según la NISR 4400"]
[]
[null,"Comparativo de las normas afectadas por la reforma tributaria – Ley 2277 de 2022"]
[]
[null,"Tabla de tarifas de honorarios para contadores públicos en Colombia"]
[]
[null,"Liquidador del costo de la contratación de un trabajador: salario mínimo 2023"]
[]
[null,"Cuadro temático con las normas afectadas por la Ley de reforma tributaria 2277 de 2022"]
[]
[null,"Informe sobre los hallazgos obtenidos en las cuentas por pagar, según la NISR 4400"]
[]
[null,"Informe sobre los hallazgos obtenidos en la auditoría de inventarios, según la NISR 4400"]
[]
[null,"Informe de verificación del cumplimiento de los requerimientos del Paef, según la NISR 4400"]
[]
[null,"[Pack de Formatos] 30 formatos de análisis financiero en Excel"]
[]
[null,"Informe de verificación del cumplimiento del sistema de facturación y nómina electrónica, según la NISR 4400"]
[]
[null,"Guía en Word con los principales cambios en el impuesto de renta de personas jurídicas, Ley 2277 de reforma tributaria 2022"]
[]
[null,"Liquidador en Excel del porcentaje fijo de retención en la fuente sobre salarios en diciembre de 2022 – Procedimiento 2"]
[]
[null,"[Liquidador] Modelo en Excel para calcular la nueva «tasa mínima de tributación» de personas jurídicas, según Ley 2277 de reforma tributaria 2022"]
[]
[null,"Modelo en Excel para calcular el valor del impuesto a las bebidas azucaradas, según Ley 2277 de reforma tributaria 2022"]
[]
[null,"Modelo en Excel para el cálculo de intereses a las cesantías"]
[]
[null,"Modelo para elaborar el comprobante de pago de intereses a las cesantías"]
[]
[null,"Fórmulas para liquidar prestaciones, vacaciones y horas extra"]
[]
[null,"Métodos de medición de activos y pasivos según el Estándar para Pymes"]
[]
[null,"Informe de compilación de estados financieros con fines generales"]
[]
[null,"Informe de compilación de estados financieros con fines específicos"]
[]
[null,"Dictamen del revisor fiscal en entidades del grupo 3 (opinión favorable)"]
[]
[null,"Dictamen del revisor fiscal con comunicación de cuestiones clave y párrafo de énfasis"]
[]
[null,"Dictamen de estados financieros consolidados: opinión desfavorable por incorrección material"]
[]
[null,"Dictamen de estados financieros consolidados: opinión con salvedades cuando no se obtiene evidencia"]
[]
[null,"Dictamen del revisor fiscal con párrafos de cuestiones clave y de otras cuestiones"]
[]
[null,"Dictamen de estados financieros consolidados: opinión sin salvedades"]
[]
[null,"Lista de convenios internacionales para evitar la doble tributación – año gravable 2021"]
[]
[null,"Liquidador Dupont: índice de rentabilidad"]
[]
[null,"Dictamen del revisor fiscal con opinión adversa o desfavorable"]
[]
[null,"Liquidador de indicadores financieros de endeudamiento"]
[]
[null,"Guía en Excel y casos prácticos de tributación en el impuesto de renta de los dividendos y participaciones 2022"]
[]
[null,"Casos prácticos de liquidación de aportes a seguridad social de independientes con varios contratos de prestación de servicios"]
[]
[null,"[Liquidador] Grados de apalancamiento operativo, financiero y combinado"]
[]
[null,"Liquidador de indicadores financieros: márgenes de utilidad o rentabilidad"]
[]
[null,"Liquidador de indicadores financieros de liquidez"]
[]
[null,"Guía: estructura del informe del revisor fiscal bajo NIA 701 (comunicación de las cuestiones clave de auditoría)"]
[]
[null,"Dictamen del revisor fiscal que incluye opinión con salvedades"]
[]
[null,"Convertidor de UVT"]
[]
[null,"Pack de Formatos para el cierre contable y fiscal del año gravable 2022"]
[]
[null,"[Liquidador] Caso práctico en Excel sobre bancarización por el año gravable 2022"]
[]
[null,"[Liquidador] Casos prácticos en Excel con las diferencias más comunes en el proceso de conciliación fiscal de personas jurídicas"]
[]
[null,"[Liquidador] Casos prácticos en Excel de liquidación de aportes a seguridad social de independientes del transporte de carga"]
[]
[null,"Liquidador de indicadores financieros de actividad y rentabilidad"]
[]
[null,"Dictamen del revisor fiscal con denegación (abstención) de opinión por no obtener evidencia"]
[]
[null,"Simulador en Excel del punto de equilibrio como herramienta de análisis financiero"]
[]
[null,"Modelo de certificado para acceder al incentivo a la creación de nuevos empleos"]
[]
[null,"Caso práctico en Excel sobre adquisición de activos (inventarios) con interés implícito"]
[]
[null,"Guía en Excel con los principales índices de coherencia tributaria para las personas jurídicas"]
[]
[null,"[Guía] Modelo de notas a los estados financieros (estado de resultados)"]
[]
[null,"[Guía] Funciones, responsabilidades y conocimientos para aplicar al cargo de contador público de una empresa industrial"]
[]
[null,"NIA 700 vs. NIA 700 (revisada): comparativo de estructura del informe del revisor fiscal"]
[]
[null,"Guía en Excel para el análisis vertical y horizontal aplicado al estado de situación financiera y al estado de resultado integral"]
[]
[null,"Análisis en Excel de la información de ventas y su pronóstico utilizando el método del índice de estacionalidad"]
[]
[null,"Simulador del beneficio de auditoría para 2021, 2022 y 2023"]
[]
[null,"Modelo en Excel (con macros) del documento soporte para operaciones con no obligados a facturar"]
[]
[null,"Liquidador de sanción por corrección presentada por el contribuyente"]
[]
[null,"Carta de solicitud de licencia no remunerada"]
[]
[null,"Cuenta de cobro para una persona que presta servicios y no es responsable del IVA"]
[]
[null,"Liquidador en Excel sobre efectos fiscales de escriturar bienes inmuebles por debajo del valor comercial"]
[]
[null,"Dictamen del revisor fiscal con comunicación de cuestiones clave (NIA 700 revisada y NIA 701)"]
[]
[null,"[Liquidador] Casos prácticos en Excel de análisis de propuestas de inversión con el uso del valor presente y valor presente neto"]
[]
[null,"Liquidador de indicadores financieros de mercado"]
[]
[null,"[Liquidador] Ejercicios de conversión entre tasas de interés efectiva, nominal y periódica"]
[]
[null,"Modelo en Word de carta de terminación del contrato de trabajo sin justa causa por parte del empleador"]
[]
[null,"[Liquidador] Modelo para la elaboración de estados financieros y pautas para el análisis financiero"]
[]
[null,"[Guía] Modelo en Word de nota 2 a los estados financieros: bases de elaboración y política contable bajo el Estándar para Pymes"]
[]
[null,"Formulario en Excel (con macros) de reclamos del usuario o cliente"]
[]
[null,"[Carta] Modelo en Word de reclamación directa contra proveedor o productor"]
[]
[null,"[Guía] Plantilla en Excel (con macros) de la nota débito"]
[]
[null,"Lista de chequeo en Excel de las etapas requeridas en el proceso presupuestal"]
[]
[null,"[Guía] Plantilla en Excel (con macros) de la nota crédito"]
[]
[null,"[Guía] Informe de entrega del cargo de contador externo a la dirección de una entidad"]
[]
[null,"Caso práctico en Excel de contabilización de ingresos en contratos de construcción"]
[]
[null,"Casos prácticos en Excel sobre la distribución de los CIF (costos indirectos de fabricación)"]
[]
[null,"Modelo en Word de reclamación por garantía sobre bienes o servicios"]
[]
[null,"[Pack de Formatos] Casos prácticos en Excel sobre impuesto diferido en 2022"]
[]
[null,"[Liquidador] Tabla de amortización en Excel de un contrato de leasing"]
[]
[null,"Ejercicio práctico en Excel: valuación de inventarios por el método de identificación específica"]
[]
[null,"[Liquidador] Kárdex por el método del promedio ponderado: caso práctico en Excel"]
[]
[null,"[Liquidador] Formato de hoja de costos en Excel con macros"]
[]
[null,"Casos prácticos en Excel de contabilización de contratos de prestación de servicios independientes"]
[]
[null,"Caso práctico en Excel: contabilización de beneficios a empleados por terminación"]
[]
[null,"[Liquidador] Casos prácticos en Excel de contabilización de contratos de renting"]
[]
[null,"[Guía] Modelo de notas a los estados financieros (estado de situación financiera)"]
[]
[null,"Caso práctico en Excel de corrección de errores de períodos anteriores"]
[]
[null,"Simulador en Excel del estado de situación financiera (análisis comparativo)"]
[]
[null,"Actualícese Impuesto Diferido: una herramienta en Excel intuitiva y fácil de usar"]
[]
[null,"[Guía] Modelo en Excel de la estructura del balance de comprobación"]
[]
[null,"[Guía] Matriz en Excel de costos y deducciones de las personas jurídicas en 2022"]
[]
[null,"Casos prácticos de liquidación de seguridad social de independientes con contrato de prestación de servicios"]
[]
[null,"[Guía] Caso práctico en Excel: utilidad del impuesto diferido en la corrección del efecto de las normas fiscales"]
[]
[null,"[Liquidador] Casos prácticos sobre métodos para determinar la naturaleza del impuesto diferido"]
[]
[null,"[Guía] Plantilla en Excel (con macros) del estado de costos de producción y de ventas"]
[]
[null,"Casos prácticos de liquidación y contabilización de sanciones por no inscribirse o actualizar el RUT"]
[]
[null,"[Guía] Plantilla para clasificar una entidad en un grupo de aplicación de los Estándares Internacionales"]
[]
[null,"Ejercicio práctico en Excel: impuesto diferido cuando hay compensación de pérdidas fiscales"]
[]
[null,"[Guía] Matriz en Excel: rentas exentas y descuentos tributarios de las personas jurídicas en 2022"]
[]
[null,"[Liquidador] Casos prácticos de liquidación de aportes a seguridad social de independientes cuenta propia y rentistas de capital"]
[]
[null,"Guía en Excel para revisiones pertinentes en propiedad, planta y equipo en el proceso de cierre contable"]
[]
[null,"Ejercicio en Excel para el reconocimiento del deterioro de inventarios al cierre contable de una pyme"]
[]
[null,"[Liquidador] Formato en Excel de circularización de proveedores automatizado"]
[]
[null,"[Liquidador] Impuesto diferido por venta de bienes inmuebles a largo plazo en 2022: caso práctico en Excel"]
[]
[null,"[Liquidador] Liquidador en Excel del capital de trabajo"]
[]
[null,"[Liquidador] Impuesto diferido ante deterioro de cartera en 2022: caso práctico en Excel"]
[]
[null,"Caso práctico de impuesto diferido: compensación de pérdidas fiscales y exceso de renta presuntiva"]
[]
[null,"Impuesto diferido por gastos de establecimiento en 2022: caso práctico en Excel"]
[]
[null,"[Contrato] Modelo en Word de acuerdo de pago"]
[]
[null,"[Guía] Modelo de presentación del estado de resultado integral por enfoques"]
[]
[null,"Guía en Excel para determinar el control de una entidad sobre otra"]
[]
[null,"Modelo de informe de gestión"]
[]
[null,"Listado de actividades económicas (códigos CIIU)"]
[]
[null,"Modelo de certificado de ingresos de persona natural"]
[]
[null,"Formato de control de clientes de declaración de renta de persona natural"]
[]
[null,"Caso práctico en Excel: impuesto diferido por deterioro de inventario en 2022"]
[]
[null,"Impuesto diferido por diferencia en cambio en 2022: caso práctico en Excel"]
[]
[null,"Impuesto diferido en la depreciación de propiedad, planta y equipo 2022 (caso práctico en Excel)"]
[]
[null,"Caso práctico en Excel: contabilización de sobrantes y faltantes de caja"]
[]
[null,"Caso práctico en Excel de evaluación de diferencias temporarias, temporales y permanentes"]
[]
[null,"Caso práctico en Excel: impuesto diferido por valoración de propiedades de inversión"]
[]
[null,"Modelo de contrato de prestación de servicios"]
[]
[null,"Carta de finalización de un contrato de prestación de servicios"]
[]
[null,"Modelo en Excel de solicitud de permiso laboral"]
[]
[null,"Guía en Excel sobre hechos posteriores al cierre que implican o no ajustes"]
[]
[null,"Modelo en Excel de estructura del estado de resultados y ganancias acumuladas"]
[]
[null,"Caso práctico en Excel de impuesto diferido por acciones medidas a valor razonable"]
[]
[null,"Caso práctico en Excel: impuesto diferido por valorización de activos intangibles"]
[]
[null,"Caso práctico en Excel: impuesto diferido por provisiones no aceptadas fiscalmente"]
[]
[null,"Impuesto diferido por activos biológicos en 2022: caso práctico en Excel"]
[]
[null,"Guía y casos prácticos en Excel para la medición de inversiones según el Estándar Internacional"]
[]
[null,"Modelos de conciliación bancaria (individual y conjunta) en Excel"]
[]
[null,"Caso práctico en Excel: contabilización de ajustes por conciliación bancaria"]
[]
[null,"Carta en Word de aviso a empleados para la elección del fondo de cesantías"]
[]
[null,"Cálculo del costo amortizado y la TIR"]
[]
[null,"Clasificación de arrendamientos según la sección 20 del Estándar para Pymes: casos prácticos en Excel"]
[]
[null,"[Guía] Formato en Excel para reembolso de caja menor"]
[]
[null,"Modelo en Excel de orden de compra"]
[]
[null,"Modelo de proyecto de distribución de utilidades en una sociedad comercial"]
[]
[null,"Casos prácticos en Excel del efecto del cálculo del valor residual en el estado de resultados"]
[]
[null,"[Pack de formatos] Pack de Formatos para gestionar tus finanzas personales"]
[]
[null,"Ejemplos de reconocimiento de provisiones y pasivos contingentes según el Estándar para Pymes"]
[]
[null,"Contabilización de depreciación bajo Estándares Internacionales: casos prácticos en Excel"]
[]
[null,"Estado de flujos de efectivo por el método directo: ejercicio práctico y plantilla en Excel"]
[]
[null,"Estado de flujos de efectivo por el método indirecto: ejercicio práctico y plantilla en Excel"]
[]
[null,"Plantilla en Excel para elaborar el estado de cambios en el patrimonio"]
[]
[null,"Modelo de carta de renuncia"]
[]
[null,"Modelo en Excel del estado de resultados con enfoque de gastos por naturaleza o función"]
[]
[null,"[Guía] Planeador en Excel para contadores públicos"]
[]
[null,"Liquidador en Excel para calcular la contribución 2022 a la Supersociedades"]
[]
[null,"[Liquidador] Caso práctico en Excel: contabilización de reembolso de caja menor"]
[]
[null,"Modelo de llamado de atención"]
[]
[null,"[Guía] Modelo de políticas contables “Base para la preparación de Estados Financieros” bajo el Estándar Internacional para Pymes"]
[]
[null,"Modelo de certificación de estados financieros (versión simplificada)"]
[]
[null,"Modelo de carta de respuesta a la solicitud de un servicio"]
[]
[null,"Modelo de certificación de estados financieros consolidados"]
[]
[null,"Simulador de casos para clasificar instrumentos financieros como pasivos o patrimonio"]
[]
[null,"Informe en Word de entrega de soportes de declaración de renta de persona natural"]
[]
[null,"Simulador en Excel de firmeza de las declaraciones de renta del año gravable 2021"]
[]
[null,"Carta en Word de aceptación de renuncia de trabajador"]
[]
[null,"Modelo de nota 1 a los Estados Financieros bajo el Estándar para Pymes"]
[]
[null,"Liquidador en Excel para la determinación de diferencias temporarias e impuesto diferido"]
[]
[null,"Lista de chequeo en Excel para efectuar el cierre contable y fiscal de una entidad"]
[]
[null,"Liquidador en Excel para el cálculo de intereses de mora y su IVA en cuentas por cobrar vencidas"]
[]
[null,"[Liquidador] Casos prácticos en Excel de contabilización de utilidades y dividendos"]
[]
[null,"[Liquidador] Casos prácticos en Excel de contabilización de aportes a capital social"]
[]
[null,"Formulario 210: declaración de renta de personas naturales residentes que no llevan contabilidad AG 2021"]
[]
[null,"Formato de cálculo de horas extra y recargos mensuales o quincenales"]
[]
[null,"[Liquidador] Casos prácticos en Excel de contabilización de inversiones en criptomonedas"]
[]
[null,"[Liquidador] Casos prácticos en Excel de contabilización de inversiones en CDT"]
[]
[null,"Modelo de citación a descargos"]
[]
[null,"Solicitud al banco por desacuerdo en estado de cuenta o extracto"]
[]
[null,"Plantilla de control de cuentas por pagar y política de pago a proveedores"]
[]
[null,"Casos prácticos de contabilización de arrendamientos financiero y operativo"]
[]
[null,"Casos prácticos de contabilización de venta de activos fijos"]
[]
[null,"Formato de arqueo de caja menor"]
[]
[null,"Formato de arqueo de caja general"]
[]
[null,"Solicitud de cancelación de cuenta bancaria"]
[]
[null,"Plantilla de control de cuentas por cobrar y política de recaudo a clientes"]
[]
[null,"Caso práctico de baja de cuentas por cobrar"]
[]
[null,"Caso práctico de contabilización de cheques devueltos"]
[]
[null,"Proyecto de reforma tributaria de Petro: cuadro temático de las normas que se modificarían"]
[]
[null,"Certificación de mora en propiedad horizontal"]
[]
[null,"Casos prácticos de contabilización de compras con tarjetas de crédito"]
[]
[null,"Comparativo de pagos a trabajador (contrato de trabajo vs. contrato de prestación de servicios)"]
[]
[null,"Solicitud de retiro de cesantías para estudio"]
[]
[null,"Casos prácticos de deterioro de cartera fiscal (provisión individual y general)"]
[]
[null,"Caso práctico de contabilización de compras a crédito"]
[]
[null,"Caso práctico de contabilización de compras de contado"]
[]
[null,"Liquidador de refinanciación de deuda: método ecuación de valor equivalente"]
[]
[null,"Derecho de petición para solicitar información a entidad financiera"]
[]
[null,"Liquidador del nivel de endeudamiento de una persona"]
[]
[null,"Solicitud de inversión de capital"]
[]
[null,"Simulador de CDT"]
[]
[null,"Caso práctico de contabilización de impuestos asumidos"]
[]
[null,"Casos prácticos de contabilización de ventas de contado y a crédito"]
[]
[null,"Modelo para proyectar el presupuesto personal del contador"]
[]
[null,"Solicitud de certificado de inversiones realizadas en una entidad"]
[]
[null,"Modelo de propuesta de proyecto empresarial"]
[]
[null,"Caso práctico de contabilización de incapacidades laborales"]
[]
[null,"Modelo de autorización para el tratamiento y la protección de datos personales"]
[]
[null,"Modelo de carta de solicitud de corrección de información exógena"]
[]
[null,"Caso práctico de declaración de renta a partir de información reportada por terceros"]
[]
[null,"Modelo de contrato de teletrabajo"]
[]
[null,"Comparativo de normas del DUT 1625 de 2016 sobre el beneficio de obras por impuestos afectadas con el Decreto 1208 de 2022"]
[]
[null,"20 liquidadores de sanciones y procedimiento tributario 2022"]
[]
[null,"Caso práctico de contabilización de prestaciones sociales y vacaciones"]
[]
[null,"Liquidador de sanción por extemporaneidad antes del emplazamiento"]
[]
[null,"Liquidador de sanción por extemporaneidad después del emplazamiento"]
[]
[null,"Beneficio de auditoría para personas naturales AG 2021: casos prácticos en Excel"]
[]
[null,"Casos prácticos del cálculo de la materialidad en auditoría"]
[]
[null,"Formato de circularización de clientes automatizado"]
[]
[null,"Contabilización de sobregiros bancarios (caso práctico)"]
[]
[null,"Cálculo del anticipo de impuesto de renta (casos prácticos)"]
[]
[null,"Carta de solicitud de inmovilización de cesantías para adquisición de vivienda"]
[]
[null,"Formato de control de vacaciones de empleados"]
[]
[null,"Modelo para tramitar una queja ante la Superintendencia Financiera de Colombia"]
[]
[null,"Modelo para calcular cuota variable de un crédito con abonos a capital iguales"]
[]
[null,"Abonos a capital realizados a un préstamo en un rango de tiempo"]
[]
[null,"Cálculo de intereses pagados por un préstamo en un rango de tiempo determinado"]
[]
[null,"Número de cuotas o pagos de un proyecto de financiación o inversión"]
[]
[null,"Modelo para calcular cuota variable de un crédito con abonos a capital iguales"]
[]
[null,"Calculadora de fechas"]
[]
[null,"Solicitud de acuerdo de pago para saldar obligación financiera"]
[]
[null,"Simulador de préstamo para vivienda: modalidad de cuota fija en pesos"]
[]
[null,"Simulador de préstamo para vivienda: modalidad de cuota fija en pesos"]
[]
[null,"Formato de flujo de caja real y presupuestado"]
[]
[null,"Casos prácticos del valor patrimonial de los vehículos en la declaración de renta de personas naturales"]
[]
[null,"Plantilla para elaborar el presupuesto de consumo de materiales (costos variables)"]
[]
[null,"Ejercicios para determinar si una persona natural está obligada a presentar renta por el AG 2021"]
[]
[null,"Caso práctico del tratamiento de las cesantías en la declaración de renta"]
[]
[null,"Formato de quejas y reclamos"]
[]
[null,"Formulario 160 AG 2022 para la declaración de activos en el exterior"]
[]
[null,"Modelo de carta para notificar vacaciones a empleados"]
[]
[null,"Liquidador de sanciones por incumplir con la obligación de inscribirse en el RUT"]
[]
[null,"Liquidador de sanción por inexactitud con macros"]
[]
[null,"Sanción por inexactitud para declarantes de ingresos y patrimonio"]
[]
[null,"Simulador para comparar créditos bancarios con tabla de amortización"]
[]
[null,"Casos prácticos de contabilización de sanciones e intereses tributarios a la Dian"]
[]
[null,"Liquidador de actualización de sanciones tributarias"]
[]
[null,"Caso práctico de impuesto diferido por mejoras en propiedades ajenas"]
[]
[null,"Caso práctico sobre liquidación de sucesión ilíquida e impuesto de ganancia ocasional"]
[]
[null,"Caso práctico: aportes del Paef en la declaración de renta de personas naturales"]
[]
[null,"Casos prácticos de sanción por extemporaneidad después de emplazamiento"]
[]
[null,"Casos prácticos de contabilización de inventarios en pymes"]
[]
[null,"Formato en Excel para la toma de inventario físico (con macros)"]
[]
[null,"Ejercicios sobre la determinación de la renta líquida de trabajo cuando hay rentas laborales y honorarios"]
[]
[null,"Formato de solicitud de permiso compensatorio por votaciones"]
[]
[null,"Plantilla para el control del incremento de salario de empleados"]
[]
[null,"[Pack de formatos] Guías laborales para notificaciones por parte del empleador"]
[]
[null,"Plantilla automática para el control y auditoría del gasto de servicios públicos"]
[]
[null,"Casos prácticos de sanción por extemporaneidad antes de emplazamiento"]
[]
[null,"Valor patrimonial de acciones y aportes en la declaración de renta de personas naturales AG 2021"]
[]
[null,"Modelo de política de desconexión laboral"]
[]
[null,"Acta de diligencia de descargos"]
[]
[null,"Carta de recomendación"]
[]
[null,"Carta de terminación del contrato por dificultades económicas del empleador"]
[]
[null,"Notificación de vacaciones colectivas"]
[]
[null,"Modelo de certificación para notificar al empleado exámenes médicos ocupacionales"]
[]
[null,"Certificado de prácticas laborales realizadas por el estudiante o pasante"]
[]
[null,"Carta para retiro de cesantías por terminación del contrato laboral"]
[]
[null,"Casos prácticos de contabilización de ingresos en pymes bajo Estándares Internacionales"]
[]
[null,"Diferencias principales en el impuesto de renta AG 2021 para personas naturales obligadas y no obligadas a llevar contabilidad"]
[]
[null,"Acuerdo para pago de auxilios extralegales o no salariales"]
[]
[null,"Carta de bienvenida para un nuevo trabajador"]
[]
[null,"Carta deseando felices fiestas a empleados"]
[]
[null,"Carta para invitar al empleado a disfrutar del día de la familia"]
[]
[null,"Control de disfrute del día de la familia (planilla en Excel)"]
[]
[null,"Guía y casos prácticos de tributación en el impuesto de renta de los dividendos y participaciones AG 2021"]
[]
[null,"Notificación a empleado de la reducción de la jornada laboral"]
[]
[null,"Casos prácticos de liquidación de intereses moratorios de obligaciones tributarias"]
[]
[null,"Liquidador automático de utilidad por venta de activo fijo depreciable que será renta por recuperación de deducciones"]
[]
[null,"Caso práctico de liquidación de nómina en junio de trabajador que devenga el salario mínimo 2022"]
[]
[null,"Liquidador de sanción por no presentar la conciliación fiscal"]
[]
[null,"Casos prácticos de retención en la fuente sobre prima de servicios"]
[]
[null,"Casos prácticos de contabilización de donaciones"]
[]
[null,"Matriz y 9 ejemplos de residencia fiscal de las personas naturales"]
[]
[null,"Liquidador de sanciones aplicables a la documentación comprobatoria"]
[]
[null,"Liquidador de sanciones relacionadas con la declaración informativa de precios de transferencia"]
[]
[null,"Carta para solicitar acuerdo de pago para obligaciones vencidas ante la Dian"]
[]
[null,"Carta de solicitud de desembargo de bienes ante la Dian"]
[]
[null,"Formato de estado de flujos de efectivo"]
[]
[null,"Formato de cotización comercial"]
[]
[null,"Caso práctico de contabilización de un préstamo bancario en pymes y microempresas"]
[]
[null,"Casos prácticos de determinación del valor patrimonial de los bienes inmuebles de personas naturales"]
[]
[null,"Pack de 33 formatos para la declaración de renta de personas naturales 2021"]
[]
[null,"Modelo de carta de renuncia del revisor fiscal"]
[]
[null,"Guía para muestra de auditoría simple y aleatoria"]
[]
[null,"Modelo de certificación del revisor fiscal sobre pagos a la seguridad social y parafiscales"]
[]
[null,"Calendario tributario 2022 – versión para imprimir"]
[]
[null,"Calendario tributario 2022 – versión automatizada en Excel"]
[]
[null,"Liquidador de topes de ingresos para presentar formatos de conciliación fiscal 2516 y 2517"]
[]
[null,"Casos prácticos sobre AIU: cálculo del IVA y retención en la fuente en esta figura"]
[]
[null,"Modelo de certificación del tamaño de una empresa en Colombia"]
[]
[null,"Liquidador con macros para calcular la renta gravable por comparación patrimonial"]
[]
[null,"Simulador del impuesto de renta de personas naturales (honorarios o compensación de servicios)"]
[]
[null,"Modelo de convenio de prácticas estudiantiles profesionales"]
[]
[null,"Modelo de acta de reunión de junta directiva"]
[]
[null,"Modelo de contrato de prestación de servicios de revisoría fiscal"]
[]
[null,"Implicaciones básicas de ser residente fiscal frente al impuesto de renta de personas naturales AG 2021"]
[]
[null,"Listado de contribuyentes inscritos en el régimen simple"]
[]
[null,"Plantilla para el control y auditoría del gasto de celulares"]
[]
[null,"Casos prácticos de retención en la fuente por compras, servicios y honorarios"]
[]
[null,"Liquidador de porcentaje fijo de retención en la fuente sobre salarios en junio de 2022 – procedimiento 2"]
[]
[null,"20 formatos para elaborar contratos de trabajo"]
[]
[null,"Modelo de solicitud de permiso para autorizar el trabajo en horas extra"]
[]
[null,"Modelo de contrato de aprendizaje"]
[]
[null,"Formato de acuerdo de confidencialidad"]
[]
[null,"Contrato de trabajo de servicio doméstico al día"]
[]
[null,"Carta de preaviso de terminación del contrato a término fijo"]
[]
[null,"Contrato de trabajo con salario integral a término fijo e indefinido"]
[]
[null,"Contrato de obra o labor"]
[]
[null,"Acuerdo de suspensión del contrato de trabajo"]
[]
[null,"Contrato de trabajo con menor de edad a término indefinido"]
[]
[null,"Casos prácticos de depuración del impuesto de ganancia ocasional en 4 escenarios"]
[]
[null,"Formulario 110 y formato 2516 AG 2021 – declaración de renta de personas naturales no residentes que llevan contabilidad"]
[]
[null,"Liquidador del componente inflacionario de los rendimientos o costos financieros"]
[]
[null,"Caso práctico de descuento por pronto pago en pymes y microempresas"]
[]
[null,"Lista de chequeo: documentos para elaborar la declaración de renta de personas naturales"]
[]
[null,"Simulador para determinar si una persona natural es residente fiscal en Colombia"]
[]
[null,"Normas del impuesto de renta de personas naturales que sufrieron cambios para el AG 2021"]
[]
[null,"Lista de documentos para la terminación laboral cuando el trabajador se retira"]
[]
[null,"Modelo de comunicación para la habilitación del trabajo en casa"]
[]
[null,"Formulario 110 AG 2021 – declaración de renta de personas naturales no residentes que no llevan contabilidad"]
[]
[null,"Modelo de contrato de trabajo de servicio doméstico a término fijo"]
[]
[null,"Modelo de contrato de trabajo de auxiliar contable a término indefinido"]
[]
[null,"Formulario 210 y formato 2517 para la declaración de renta AG 2021 – residentes que llevan contabilidad"]
[]
[null,"Liquidador para la clasificación de empresas en Colombia según sus ingresos y sector económico"]
[]
[null,"10 liquidadores de sanción por no declarar"]
[]
[null,"Caso práctico de criptoactivos de una persona natural en la declaración de renta AG 2021"]
[]
[null,"Comparativo de normas del DUT 1625 de 2016 relacionadas con el RUT y afectadas por el Decreto 678 de 2022"]
[]
[null,"Modelo de contrato de trabajo remoto"]
[]
[null,"Simulador para el cálculo del límite del descuento por impuestos pagados en el exterior"]
[]
[null,"Caso práctico de liquidación de un trabajador doméstico que devenga el salario mínimo en 2022"]
[]
[null,"Simulador del impuesto sobre dividendos y participaciones gravados de 2016 y anteriores"]
[]
[null,"Ejercicio en Excel de depreciación en línea recta según la limitación del artículo 137 del ET"]
[]
[null,"Excel del formulario 2593 AG 2022: declaración de anticipos bimestrales – régimen simple"]
[]
[null,"Modelo de citación a descargos en la propiedad horizontal"]
[]
[null,"Modelo de notificación de sanción disciplinaria a trabajador"]
[]
[null,"Lista de chequeo de documentos para contratación laboral a solicitar al trabajador"]
[]
[null,"Modelo de contrato de prestación de servicios de auditoría externa"]
[]
[null,"Matriz de características básicas de la depuración de las 3 cédulas del formulario 210 AG 2021"]
[]
[null,"Modelo para el incremento anual del arrendamiento comercial"]
[]
[null,"Liquidador para determinar la periodicidad del IVA"]
[]
[null,"Simulador: cálculo de la distribución de rentas exentas y deducciones limitadas"]
[]
[null,"Simulador del impuesto para dividendos y participaciones no gravados de 2017 y siguientes"]
[]
[null,"Simulador para que independientes decidan si restan costos o gastos, o renta exenta del 25 %"]
[]
[null,"Caso práctico de contabilización de devoluciones en ventas"]
[]
[null,"Modelos de certificación de dependientes para deducción en declaración de renta"]
[]
[null,"Ejemplo de la depuración de la sección de rentas de capital del formulario 210"]
[]
[null,"Modelo de autorización de descuento por libranza"]
[]
[null,"Modelo de derecho de petición para solicitar certificado laboral"]
[]
[null,"Simulador del impuesto para dividendos y participaciones gravados de 2017 y siguientes"]
[]
[null,"Caso práctico de determinación de la ganancia ocasional gravable de una persona natural residente"]
[]
[null,"Aplicación del impuesto a los dividendos recibidos por personas naturales (caso práctico en Excel)"]
[]
[null,"Caso práctico de determinación de la renta líquida cedular por pensiones del exterior"]
[]
[null,"Depuración de la sección de rentas no laborales del formulario 210 (caso práctico en Excel)"]
[]
[null,"Modelo de contrato de trabajo a término indefinido"]
[]
[null,"Modelo de contrato de trabajo a término fijo"]
[]
[null,"Tratamiento del ICA como descuento o deducción para personas naturales: caso práctico en Excel"]
[]
[null,"Formulario 260 AG 2021 – declaración anual del régimen simple (personas naturales que no llevan contabilidad)"]
[]
[null,"Formulario 260 AG 2021 – declaración anual régimen simple (personas naturales y jurídicas que llevan contabilidad)"]
[]
[null,"Certificado de no declarante del impuesto de renta y complementario 2021"]
[]
[null,"[Pack de Formatos] 30 formatos para elaborar la declaración de renta de personas jurídicas año gravable 2021"]
[]
[null,"Matriz de categorías para el reporte de información exógena y los formatos para el año gravable 2021"]
[]
[null,"Plantilla del formato 1001 por el año gravable 2021: reporte de exógena de pagos o abonos en cuenta"]
[]
[null,"Plantilla del formato 2276 y del 2280 para el reporte de información exógena de 2021"]
[]
[null,"Plantilla de los formatos 1005 y 1006 para el reporte de exógena 2021: reportes de IVA generados y descontables"]
[]
[null,"Plantilla del formato 1003 para el reporte de exógena 2021: retenciones que le practicaron al informante"]
[]
[null,"Plantilla de formatos 1011, 1012 y 2275 de exógena: reporte de otros datos en renta e IVA en 2021"]
[]
[null,"Plantilla del formato 1009 para el reporte de exógena 2021: información de cuentas por pagar"]
[]
[null,"Plantilla de los formatos de exógena por el año gravable 2021: reportes de los mandatarios"]
[]
[null,"Plantilla del formato 1008 para el reporte de exógena 2021: información de cuentas por cobrar"]
[]
[null,"Plantilla del formato 1010 para reporte de exógena 2021: información de socios, cooperados o comuneros"]
[]
[null,"Plantilla del formato 1007 para el reporte de exógena 2021: información de ingresos propios"]
[]
[null,"Plantilla del formato 1647 para el reporte de ingresos recibidos para terceros – exógena 2021"]
[]
[null,"Plantilla del formato 1004 de exógena de 2021: reporte de descuentos al impuesto de renta y el SIMPLE"]
[]
[null,"[Pack de Formatos] Guías para el reporte de información exógena 2021: ¡descárgalas ya!"]
[]
[null,"Ejemplo en Excel de la declaración de renta de un pensionado en Colombia"]
[]
[null,"Liquidador del impuesto sobre la renta líquida de las cédulas general y de pensiones"]
[]
[null,"Simulador del límite de pagos en efectivo a partir de 2018"]
[]
[null,"Modelo de certificado laboral para deducción del primer empleo"]
[]
[null,"31 casos prácticos sobre el reporte de información exógena por el año gravable 2021"]
[]
[null,"Guía en Excel para evitar errores en la presentación de información exógena"]
[]
[null,"Liquidador del costo de renovación de matrícula mercantil y de establecimientos de comercio (2022)"]
[]
[null,"Histórico de la TRM en 2021"]
[]
[null,"Formulario 310 AG 2022: declaración del impuesto nacional al consumo (plantilla para borrador)"]
[]
[null,"Listado de códigos de usuario aduanero para diligenciar la casilla 54 del RUT"]
[]
[null,"[2022] Histórico de salario mínimo y auxilio de transporte"]
[]
[null,"[2022] Histórico de la variación nominal del salario mínimo vs. la inflación 1993-2022"]
[]
[null,"Guía para auditar el formato 2516 AG 2021: conciliación fiscal de las personas jurídicas"]
[]
[null,"Modelo de certificado de retención en la fuente por conceptos diferentes a rentas laborales"]
[]
[null,"Herramienta en Excel para la consulta de terceros en la Dian"]
[]
[null,"Liquidador del anticipo del impuesto de renta 2022 para personas jurídicas y naturales"]
[]
[null,"Liquidador del formulario 110 y formato 2516: declaración de renta de personas jurídicas AG 2021"]
[]
[null,"Contabilización de los ingresos del Paef y otros beneficios laborales: ejercicio en Excel"]
[]
[null,"Cálculo del límite de subcapitalización: casos prácticos en Excel"]
[]
[null,"Casos prácticos en Excel sobre ventas en los días sin IVA en 2022"]
[]
[null,"Certificado de ingresos y retenciones: plantilla del formulario 220 y del formato 2276 – AG 2021"]
[]
[null,"Modelo de certificado de donación para que proceda descuento tributario en la declaración de renta"]
[]
[null,"Certificación de baja de inventarios por obsolescencia"]
[]
[null,"Modelo de certificado laboral"]
[]
[null,"Carta para notificar un incremento de salario"]
[]
[null,"Calendario de implementación del documento soporte de pago de nómina electrónica"]
[]
[null,"Listado de códigos de responsabilidades tributarias (casilla 53 del RUT)"]
[]
[null,"Informe del revisor fiscal al finalizar el encargo"]
[]
[null,"Informe del revisor fiscal sobre irregularidades y deficiencias en el control interno"]
[]
[null,"[Carta] Propuesta para la prestación de servicios de revisoría fiscal en una copropiedad"]
[]
[null,"Tabla de retención en la fuente 2022"]
[]
[null,"Informe NISR 4400 de revisión de ingresos para acceder al apoyo a empresas afectadas por el paro nacional"]
[]
[null,"Ingresos por venta de criptoactivos en la declaración de renta: caso práctico en Excel"]
[]
[null,"Plantilla para elaborar el formulario 300 para las declaraciones del IVA en 2022"]
[]
[null,"Simulador de tributación en el régimen simple vs. régimen ordinario – año gravable 2022"]
[]
[null,"Clasificación de las personas jurídicas frente al impuesto de renta y al SIMPLE – año gravable 2021"]
[]
[null,"Simulador para determinar el valor patrimonial de los criptoactivos"]
[]
[null,"Matriz: rentas exentas y descuentos tributarios de las personas jurídicas en 2021"]
[]
[null,"Liquidador del cálculo de retención en la fuente por pensiones obtenidas en 2022"]
[]
[null,"Liquidador del costo fiscal de los inventarios para obligados a llevar contabilidad"]
[]
[null,"Liquidador del impuesto de normalización tributaria 2022 y su anticipo para 2021"]
[]
[null,"Modelo en Excel: cálculo de intereses presuntivos en 2021 sobre préstamos entre socios y sociedades"]
[]
[null,"Plantilla en Excel del formulario 350 AG 2022 – declaración de retención en la fuente"]
[]
[null,"Tributación sobre dividendos y el cálculo de su retención luego de la Ley 2010 de 2019"]
[]
[null,"Simulador de casos de deducciones y costos estimados para la declaración de renta 2021"]
[]
[null,"Modelo del certificado anual para socios y/o accionistas por el año 2021"]
[]
[null,"Rentas exentas para empresas de economía naranja – año gravable 2021"]
[]
[null,"Casos de ganancia ocasional por venta de activos fijos depreciables del año gravable 2021"]
[]
[null,"Simulador del límite de costos y gastos no soportados en factura electrónica"]
[]
[null,"[Guía] Información laboral 2022"]
[]
[null,"Aviso de pago de salarios y prestaciones sociales de trabajador fallecido"]
[]
[null,"Tablas de retención en la fuente 2022 a título de impuestos nacionales"]
[]
[null,"Formato de autorización de descuentos sobre salarios por préstamos al trabajador"]
[]
[null,"Liquidador de retención en la fuente con procedimiento 1 sobre rentas de trabajo durante 2022"]
[]
[null,"Liquidador de la prima legal de servicios semestral"]
[]
[null,"Guía sobre propiedad horizontal en Colombia: 379 preguntas resueltas"]
[]
[null,"Calendario tributario distrital 2022"]
[]
[null,"Herramienta Interactiva para elaborar la hoja de vida de un contador público"]
[]
[null,"Nota por aplicar la exención de contabilización del impuesto diferido de 2021"]
[]
[null,"Liquidador de sanciones por no facturar"]
[]
[null,"Liquidador de sanciones por expedir facturas sin los requisitos legales"]
[]
[null,"Carta para solicitar el certificado de donación para efectuar descuento tributario"]
[]
[null,"Liquidadores de sanciones relacionadas con la información exógena resueltas en 2022"]
[]
[null,"Liquidador de sanción por inexactitud en Excel"]
[]
[null,"Carta para solicitar licencia por luto"]
[]
[null,"Listado de ingresos de fuente extranjera – período gravable 2021"]
[]
[null,"[Pack de Formatos] Guías para profundizar las novedades de la reforma tributaria Ley de Inversión Social 2155 de 2021"]
[]
[null,"Derecho de petición para retiro de centrales de riesgo"]
[]
[null,"Formato de solicitud de licencia de calamidad doméstica"]
[]
[null,"Cuestionario de control interno de provisiones y contingencias en Excel"]
[]
[null,"Liquidador de intereses moratorios reducidos con la tasa transitoria de la Ley de Inversión Social"]
[]
[null,"Casos prácticos de reducción de sanción por corrección: reforma tributaria 2021"]
[]
[null,"Liquidador de indicadores de detrimento patrimonial e insolvencia financiera"]
[]
[null,"Cuestionario para definir obligados a declarar renta por 2021"]
[]
[null,"Auditoría de nómina: informe de control interno"]
[]
[null,"Porcentaje fijo de retención en la fuente sobre salarios en diciembre de 2021 – procedimiento 2"]
[]
[null,"Ejemplos de aplicación de los beneficios de la ley de borrón y cuenta nueva"]
[]
[null,"Modelo de informe de control interno"]
[]
[null,"Casos de reducción de sanción por extemporaneidad antes del emplazamiento: reforma tributaria 2021"]
[]
[null,"Casos de reducción de sanción por extemporaneidad después del emplazamiento: reforma tributaria 2021"]
[]
[null,"Informe sobre el control interno por parte del revisor fiscal"]
[]
[null,"Solicitud de retiro parcial de cesantías para vivienda"]
[]
[null,"Notificación al empleador sobre el fondo donde debe consignar el auxilio de cesantías"]
[]
[null,"Cuestionario de control interno de inventarios en Excel"]
[]
[null,"Inscripción en el RUT: lista de chequeo para inscribirse a través de las cámaras de comercio"]
[]
[null,"Apoyo a empresas afectadas por el paro nacional: matriz en Excel y casos prácticos"]
[]
[null,"Casos prácticos en Excel sobre ventas en los días sin IVA"]
[]
[null,"Matriz sobre las nuevas condiciones para aplicar a la exención de los 3 días sin IVA"]
[]
[null,"Guía con casos de verificación de requisitos para acceder al apoyo por generar nuevos empleos"]
[]
[null,"Lista de chequeo de revelaciones de la sección 18 – “Activos intangibles distintos de la plusvalía”"]
[]
[null,"Lista de chequeo de revelaciones de la sección 20 – “Arrendamientos”"]
[]
[null,"Lista de chequeo de revelaciones de la NIC 38 – “Activos intangibles”"]
[]
[null,"Modelos y guías sobre aspectos laborales y comerciales que deben atender los trabajadores independientes"]
[]
[null,"Liquidador del número de empleados y cálculo del aporte del Paef"]
[]
[null,"Simulador de la reducción de multas de tránsito contemplada en la Ley de Inversión Social"]
[]
[null,"Plantilla para auditar la declaración del impuesto sobre las ventas –IVA–"]
[]
[null,"Matriz: nuevas condiciones para postularse al Programa de Apoyo al Empleo Formal –Paef–"]
[]
[null,"Matriz: novedades en el sistema de facturación con la reforma tributaria Ley 2155 de 2021"]
[]
[null,"Cuestionario de auditoría para las propiedades, planta y equipo"]
[]
[null,"Matriz: requisitos y condiciones para la normalización tributaria de 2022"]
[]
[null,"Comparativo de normas afectadas con la Ley de Inversión Social 2155 de septiembre 14 de 2021"]
[]
[null,"Liquidador para revisar aportes a salud y pensión de independientes a partir del reporte de exógena"]
[]
[null,"Lista de chequeo de revelaciones de la sección 28: “Beneficios a los empleados”"]
[]
[null,"Modelo de política contable de las cuentas por cobrar: presentación y revelación"]
[]
[null,"Lista de chequeo de revelaciones de la sección 21: “Provisiones y contingencias”"]
[]
[null,"Lista de chequeo de revelaciones de la sección 11 – Instrumentos financieros básicos"]
[]
[null,"Casos prácticos en Excel sobre impuesto diferido para el cierre contable y fiscal de 2021"]
[]
[null,"Modelo para elaborar políticas contables sobre el tratamiento a los intangibles"]
[]
[null,"Ejercicios de verificación de requisitos para acceder al apoyo por contratar jóvenes"]
[]
[null,"Lista de chequeo de revelaciones de la sección 12: “Otros temas relacionados con los instrumentos financieros”"]
[]
[null,"Impuesto diferido en la depreciación de propiedad, planta y equipo (caso práctico para 2021)"]
[]
[null,"Cuadro temático con los cambios introducidos por la Ley de Inversión Social 2155 de 2021"]
[]
[null,"Impuesto diferido por venta de bienes inmuebles a largo plazo en 2021: caso práctico en Excel"]
[]
[null,"Matriz: costos y deducciones de las personas jurídicas en 2021"]
[]
[null,"Valorización de activos intangibles: caso de impuesto diferido en 2021"]
[]
[null,"Guía para diligenciar la planilla integrada de liquidación de aportes de los independientes"]
[]
[null,"Casos de descuentos tributarios vigentes en el año gravable 2021 (liquidador en Excel)"]
[]
[null,"Lista de chequeo para trasladarse de régimen de pensiones"]
[]
[null,"[Pack de Formatos] Formatos para la implementación del control de calidad y ética en la ejecución de encargos de auditoría"]
[]
[null,"Formulario 260 AG 2020 – declaración anual régimen simple (personas naturales que no llevan contabilidad)"]
[]
[null,"Formulario 260 AG 2020 – declaración anual régimen simple (personas naturales y jurídicas que llevan contabilidad)"]
[]
[null,"Modelo de derecho de petición para el pago de incapacidades de trabajadores independientes"]
[]
[null,"Formato de evaluación de desempeño laboral para un auditor"]
[]
[null,"Impuesto diferido por activos biológicos en 2021: caso práctico en Excel"]
[]
[null,"Liquidador para calcular la contribución 2021 a la Supersociedades"]
[]
[null,"Calendario para pago de aportes a seguridad social para empleadores e independientes 2021-2022"]
[]
[null,"Carta para notificar deficiencias en el proceso de inspección del seguimiento del control de calidad"]
[]
[null,"Lista de chequeo para el control de calidad aplicado a recursos humanos en un encargo de auditoría"]
[]
[null,"Lista de chequeo para revisar el control de calidad en un encargo de auditoría"]
[]
[null,"Acta de entrega del manual de procedimientos y políticas de calidad"]
[]
[null,"Acta de entrega de normas de ética aplicables a encargos de auditoría"]
[]
[null,"Lista de chequeo para la planeación de la ejecución de un encargo NICC 1"]
[]
[null,"Lista de chequeo para la etapa de seguimiento en encargo de auditoría bajo la NICC 1"]
[]
[null,"Matriz para identificar quiénes están obligados a aplicar la NICC 1"]
[]
[null,"Carta para comunicar asuntos que generan amenazas a la independencia"]
[]
[null,"Acta de investigación para la aceptación de los clientes del revisor fiscal"]
[]
[null,"Notificación de la asignación de responsabilidad en el sistema de control de calidad"]
[]
[null,"Impuesto diferido ante deterioro de cartera en 2021: ejercicio práctico en Excel"]
[]
[null,"Impuesto diferido por valoración de propiedades de inversión en 2021: caso práctico en Excel"]
[]
[null,"Impuesto diferido por deterioro de inventario en 2021: caso práctico en Excel"]
[]
[null,"Liquidador de aportes a caja de compensación para trabajadores independientes"]
[]
[null,"Matriz de licencias de maternidad y paternidad: tipos y características"]
[]
[null,"Solicitud de licencia de paternidad a la EPS por parte de un trabajador independiente"]
[]
[null,"Solicitud de licencia de maternidad ante la EPS por parte de una trabajadora independiente"]
[]
[null,"Matriz de lineamientos del Código de Ética del contador público: principios fundamentales, amenazas y salvaguardas"]
[]
[null,"Impuesto diferido por diferencia en cambio en 2021: caso práctico en Excel"]
[]
[null,"Tratamientos contable y fiscal de la depreciación de activos en desuso: casos prácticos en Excel"]
[]
[null,"Solicitud de licencia de paternidad"]
[]
[null,"Modelo de acción de tutela para reclamo de pago de licencia de maternidad"]
[]
[null,"Modelo de declaración de confidencialidad de los miembros de la firma de auditoría"]
[]
[null,"Impuesto diferido por gastos de establecimiento en 2021: caso práctico en Excel"]
[]
[null,"Guías y casos para preparar la declaración de renta de personas naturales por el año gravable 2020"]
[]
[null,"Cuestionario de independencia para el personal de una firma de auditoría"]
[]
[null,"Clasificación de pasivos entre corrientes y no corrientes: caso práctico en Excel"]
[]
[null,"Beneficio de auditoría para personas naturales año gravable 2020: casos prácticos en Excel"]
[]
[null,"Liquidador de la licencia de maternidad cuando procede pago proporcional"]
[]
[null,"Modelo para proyectar el presupuesto de un encargo de auditoría o revisoría fiscal"]
[]
[null,"Plantilla para la revisión de la declaración sugerida del impuesto sobre las ventas –IVA–"]
[]
[null,"Modelo de certificado para acceder a los beneficios por contratar adultos mayores no pensionados"]
[]
[null,"Cuestionario en Excel para la aceptación de clientes en una firma de auditoría"]
[]
[null,"Listado de códigos para diligenciar la casilla 51 del RUT con la ocupación de las personas naturales"]
[]
[null,"Modelo de las políticas sobre conservación de los papeles de trabajo de una firma de auditoría"]
[]
[null,"Lista de convenios internacionales para evitar la doble tributación – año gravable 2020"]
[]
[null,"Liquidador del costo fiscal de la propiedad, planta y equipo y de las propiedades de inversión"]
[]
[null,"Poder especial para tramitar solicitud de reconocimiento y pago de la pensión de sobrevivencia"]
[]
[null,"Matriz: comparativo de las diferencias al emprender como persona natural o sociedad"]
[]
[null,"Liquidador del anticipo de renta 2021 para personas jurídicas y naturales"]
[]
[null,"Liquidador del pago faltante de aportes al sistema general de pensiones de abril y mayo de 2020"]
[]
[null,"Liquidador del monto del salario y de prestaciones sociales que se puede embargar a un trabajador"]
[]
[null,"Formulario 110 y formato 2516 para declaración de renta 2020 de personas naturales obligadas a llevar contabilidad"]
[]
[null,"Ejercicios para determinar si una persona natural está obligada a presentar renta por el AG 2020"]
[]
[null,"[Pack de formatos] Modelos para elaborar contratos comerciales en Colombia"]
[]
[null,"Cuestionario para clasificar una obligación como provisión o pasivo contingente"]
[]
[null,"Formulario 310 AG 2021: declaración del impuesto nacional al consumo (plantilla para borrador)"]
[]
[null,"Formulario 110 AG 2020: declaración de renta de personas naturales no residentes que no llevan contabilidad"]
[]
[null,"Modelo en Excel: cálculo de intereses presuntivos sobre préstamos entre socios y sociedades en 2020"]
[]
[null,"Formulario 210 y formato 2517 para declaración de renta AG 2020 – residentes que llevan contabilidad"]
[]
[null,"Liquidador de porcentaje fijo de retención en la fuente sobre salarios en junio de 2021 – procedimiento 2"]
[]
[null,"Formulario 210: declaración de renta personas naturales residentes que no llevan contabilidad – AG 2020"]
[]
[null,"Modelo de contrato de permuta"]
[]
[null,"Simulador del impuesto si la renta presuntiva es mayor a la renta líquida gravable de la cédula general"]
[]
[null,"Modelo de contrato de comisión o corretaje"]
[]
[null,"Matriz de características básicas de la depuración de las 3 cédulas del formulario 210 AG 2020"]
[]
[null,"Formulario 420: declaración de impuesto al patrimonio 2021"]
[]
[null,"Plantilla para elaborar el formulario 300 para las declaraciones del IVA durante 2021"]
[]
[null,"Cuestionario de auditoría para el área de compras"]
[]
[null,"Carta para designar al responsable del seguimiento del sistema de control de calidad – NICC 1"]
[]
[null,"Plantilla en Excel para la declaración de anticipos bimestrales en 2021 – régimen simple"]
[]
[null,"Modelo de contrato de prestación de servicios – servicios generales"]
[]
[null,"Contrato de prestación de servicios para mensajería externa"]
[]
[null,"Cuestionario de auditoría para área de nómina"]
[]
[null,"Cuestionario de auditoría para el área de ventas"]
[]
[null,"Acta de análisis de rotación del equipo de auditoría o revisoría fiscal"]
[]
[null,"Simulador de deducciones por GMF, fiestas a empleados, publicidad e inversiones en transporte aéreo"]
[]
[null,"Liquidador del formulario 110 y formato 2516: declaración de renta de personas jurídicas AG 2020"]
[]
[null,"Contrato de promesa de compraventa de carro o motocicleta"]
[]
[null,"Modelo de contrato de cuentas en participación"]
[]
[null,"Contrato de prestación de servicios"]
[]
[null,"Plantilla para elaborar un contrato de unión temporal"]
[]
[null,"Carta de aceptación de los términos del encargo de revisoría fiscal conforme a la NIA 210"]
[]
[null,"Contrato de prestación de servicios contables"]
[]
[null,"Matriz para definir casos en que las personas naturales son agentes de retención a título de renta"]
[]
[null,"Guías para el reporte de exógena 2020: ¡descárgalas ya!"]
[]
[null,"Contrato de prestación de servicios de administración de propiedad horizontal"]
[]
[null,"Acta de criterios que debe cumplir el revisor de control de calidad de un encargo de auditoría"]
[]
[null,"Matriz de categorías de informantes de exógena por el año gravable 2020 y los formatos que deben usar"]
[]
[null,"Plantilla de los formatos exógena por el año gravable 2020: reportes de los mandatarios"]
[]
[null,"Plantilla del formato exógena 1647 por el año gravable 2020: reporte de ingresos recibidos para terceros"]
[]
[null,"Plantilla de los formatos 2276 y 2280 para el reporte de información exógena de 2020"]
[]
[null,"Plantilla del formato exógena 1003 por el año gravable 2020: retenciones que le practicaron al informante"]
[]
[null,"Plantilla de los formatos exógena 1011, 1012 y 2275 por el año gravable 2020: reporte de otros datos en renta e IVA"]
[]
[null,"Plantilla del formato exógena 1008 por el año gravable 2020: reporte de cuentas por cobrar"]
[]
[null,"Plantilla del formato de exógena 1007 por el año gravable 2020: reportes de ingresos propios"]
[]
[null,"Plantilla del formato de exógena 1009 por el año gravable 2020: reporte de cuentas por pagar"]
[]
[null,"Plantilla del formato 1004 exógena de 2020: reporte de descuentos al impuesto de renta y el SIMPLE"]
[]
[null,"Plantilla de los formatos exógena 1005 y 1006 del año gravable 2020: reportes de IVA generados y descontables"]
[]
[null,"Plantilla del formato exógena 1010 por el año gravable 2020: reporte de socios, cooperados o comuneros"]
[]
[null,"Plantilla del formato exógena 1001 por el año gravable 2020: reporte de pagos o abonos en cuenta"]
[]
[null,"Modelo de contrato de maquila"]
[]
[null,"Carta de ofrecimiento de servicios de una empresa"]
[]
[null,"Notificación de sanción disciplinaria para el empleado de una firma de auditoría"]
[]
[null,"Modelo de contrato de mercancías en consignación"]
[]
[null,"Modelo de contrato de arrendamiento de vivienda urbana"]
[]
[null,"Modelos de notas a los estados financieros 2020: 5 casos que pueden presentarse por el COVID-19"]
[]
[null,"27 formatos para preparar la declaración de renta de personas jurídicas por el año gravable 2020"]
[]
[null,"Simulador de casos de beneficios tributarios por donaciones en el año gravable 2020"]
[]
[null,"Modelo de contrato de arrendamiento de local comercial, oficina o bodega"]
[]
[null,"Modelo de contrato de mandato"]
[]
[null,"[Pack de formatos] Dictámenes e informes del revisor fiscal actualizados al 2021"]
[]
[null,"Simulador de 4 casos de deducciones y costos estimados para la declaración de renta"]
[]
[null,"Notificación de entrega de manual de funciones del auditor dentro de la firma"]
[]
[null,"Simulador de casos de descuentos y donaciones especiales: conciliación contable y tributaria"]
[]
[null,"Modelo de inventario de entrega de inmueble"]
[]
[null,"Modelo de contrato de obra civil"]
[]
[null,"Desistimiento de la acción de tutela"]
[]
[null,"Liquidador del costo de renovación de matrícula mercantil y de establecimientos de comercio (2021)"]
[]
[null,"Clasificación de las personas jurídicas frente al impuesto de renta y al SIMPLE – año gravable 2020"]
[]
[null,"Carta para notificar un incidente de desacato de acción de tutela"]
[]
[null,"Modelo de acción de tutela para reclamar incapacidades"]
[]
[null,"Plantilla en Excel para diligenciar el formulario 350 de retención en la fuente en 2021"]
[]
[null,"Carta para comunicarle a los proveedores las operaciones con facturadores electrónicos"]
[]
[null,"Calendario tributario 2021 – automatizado en Excel"]
[]
[null,"Certificado de persona natural no declarante del impuesto de renta y complementario 2020"]
[]
[null,"Modelo de acción de tutela contra entidades financieras"]
[]
[null,"Plantilla para elaborar formulario 220: certificado de ingresos y retenciones – año gravable 2020"]
[]
[null,"[Pack de formatos] Formatos para la liquidación de nómina paso a paso"]
[]
[null,"Rentas exentas para personas jurídicas – período gravable 2020"]
[]
[null,"Modelo del certificado anual para socios y/o accionistas por el año 2020"]
[]
[null,"Normativa relacionada con la liquidación de nómina"]
[]
[null,"Información laboral 2021"]
[]
[null,"[2021] Histórico de salario mínimo y auxilio de transporte"]
[]
[null,"Régimen sancionatorio: 15 formatos para liquidar obligaciones en 2021"]
[]
[null,"Liquidador de retención en la fuente con procedimiento 1 sobre rentas de trabajo durante 2021"]
[]
[null,"[2021] Formularios e instructivos de la Dian 2021"]
[]
[null,"[2021] Histórico de la variación nominal del salario mínimo vs. la inflación 1993 – 2020"]
[]
[null,"[Guía] Tabla de retención en la fuente para el año fiscal 2021"]
[]
[null,"Tablas de retención en la fuente a título de impuestos nacionales durante el año fiscal 2021"]
[]
[null,"Histórico de la tasa representativa del mercado –TRM– 2020"]
[]
[null,"Comparativo de normas tributarias afectadas con las leyes 2068, 2069 y 2070 de diciembre 31 de 2020"]
[]
[null,"[Calendario] Calendario tributario 2021 – versión para imprimir"]
[]
[null,"[Calendario] Calendario tributario distrital 2021"]
[]
[null,"[ORO] Liquidador de sanciones por no enviar información exógena, enviarla con errores o de forma extemporánea"]
[]
[null,"[ORO] Modelo para cálculo de depreciación por el método de reducción de saldos"]
[]
[null,"[ORO] Acta administrativa para la baja de activos fijos dañados y obsoletos"]
[]
[null,"[ORO] Modelo para identificar ingresos que no se consideran de fuente nacional – período gravable 2020"]
[]
[null,"[ORO] Modelo para identificar ingresos que no se consideran de fuente nacional – período gravable 2020"]
[]
[null,"[ORO] Contabilización de los rubros asociados a la dotación a empleados"]
[]
[null,"21 formatos para preparar el cierre contable de 2020"]
[]
[null,"[ORO] Nuevos descuentos tributarios para el cierre fiscal 2020: casos prácticos"]
[]
[null,"[ORO] Liquidador de procedimiento 2 con porcentaje fijo para la retención sobre salarios en diciembre de 2020"]
[]
[null,"[ORO] Plantilla para definir el perfil del cargo de un empleado y sus funciones"]
[]
[null,"[ORO] Políticas contables para las propiedades de inversión"]
[]
[null,"[ORO] Nota sobre la determinación de valores razonables"]
[]
[null,"[ORO] Liquidador de nómina en un contrato de aprendizaje"]
[]
[null,"[ORO] Venta de bienes inmuebles a largo plazo: caso práctico de impuesto diferido"]
[]
[null,"[ORO] Impuesto diferido de propiedades de inversión en un contrato de leasing operativo"]
[]
[null,"[ORO] Impuesto diferido por diferencias en la tasa de depreciación de propiedades, planta y equipo"]
[]
[null,"[ORO] Plantilla en Excel para la declaración de anticipos bimestrales en 2020 – régimen simple"]
[]
[null,"Calendario automatizado de implementación de la facturación electrónica"]
[]
[null,"[ORO] Tratamiento contable y fiscal de los gastos de establecimiento: caso práctico"]
[]
[null,"[ORO] Liquidador para el cálculo de la renta presuntiva del año gravable 2020"]
[]
[null,"[ORO] Depreciación y valor máximo a deducir en impuesto de renta"]
[]
[null,"Carta de finalización del contrato de arrendamiento por vencimiento del término"]
[]
[null,"[ORO] Carta de terminación de contrato de arrendamiento de vivienda urbana"]
[]
[null,"[ORO] Contabilización de impuesto diferido ante deterioro de cartera"]
[]
[null,"[ORO] Modelo de contrato de mutuo comercial o préstamo con intereses"]
[]
[null,"[ORO] Modelo de contrato de franquicia"]
[]
[null,"[ORO] Contrato de permuta"]
[]
[null,"[ORO] Modelo de contrato de concesión comercial"]
[]
[null,"[ORO] Modelo de contrato de anticresis"]
[]
[null,"[ORO] Modelo de contrato de edición"]
[]
[null,"[ORO] Modelo de acuerdo de dación en pago"]
[]
[null,"[ORO] Modelo de contrato de preposición"]
[]
[null,"[ORO] Modelo de contrato de agencia comercial"]
[]
[null,"[ORO] Formato de promesa de compraventa de bien inmueble"]
[]
[null,"​[ORO] Contrato de comisión o corretaje"]
[]
[null,"[ORO] Certificación de bienes y derechos recibidos por donaciones inter vivos"]
[]
[null,"[ORO] Formulario 260 AG 2019 – régimen simple (personas naturales y jurídicas que llevan contabilidad)"]
[]
[null,"[ORO] Formulario 260 AG 2019 – declaración anual del SIMPLE (personas naturales que no llevan contabilidad)"]
[]
[null,"[ORO] Planilla automatizada para controlar la asistencia a pausas activas"]
[]
[null,"¿Cómo liquidar un contrato de trabajo?"]
[]
[null,"[Pack de formatos] 17 herramientas para mejorar tu análisis financiero"]
[]
[null,"[ORO] Compensación de pérdidas fiscales y exceso de renta presuntiva (caso impuesto diferido)"]
[]
[null,"[ORO] Impuesto diferido cuando hay compensación de pérdidas fiscales"]
[]
[null,"[ORO] Formato de entrega de dotación (elementos físicos)"]
[]
[null,"[ORO] Constancia de entrega de equipos y elementos de protección personal"]
[]
[null,"[ORO] Certificado de prestación de servicios"]
[]
[null,"[ORO] Simulador de retenciones a practicar entre regímenes"]
[]
[null,"[ORO] Certificado de normalización de actividades afectadas por el COVID-19"]
[]
[null,"[ORO] Formulario 210 de declaración de renta, año gravable 2019 – residentes no obligados a llevar contabilidad"]
[]
[null,"[ORO] Formulario 210 y formato 2517 para declaración de renta AG 2019 – residentes que llevan contabilidad"]
[]
[null,"[ORO] Contrato de aprendizaje: certificado de desempeño y descripción de logros en la etapa práctica"]
[]
[null,"[ORO] Cálculo de la contribución 2020 a Supersociedades"]
[]
[null,"[Pack de formatos] 21 herramientas para facilitar la elaboración de solicitudes emitidas por un empleado"]
[]
[null,"[ORO] Solicitud de información sobre afiliaciones a salud y riesgos laborales en un contrato de aprendizaje"]
[]
[null,"[ORO] Notificación de suspensión del contrato de aprendizaje"]
[]
[null,"[ORO] Solicitud de no pago de cheque"]
[]
[null,"[ORO] Solicitud de intervención de la inspección de trabajo"]
[]
[null,"[ORO] Formulario 420: declaración de impuesto al patrimonio 2020"]
[]
[null,"[ORO] Formulario 445 – impuesto de normalización tributaria 2020 (plantilla en Excel)"]
[]
[null,"[ORO] Derecho de petición para solicitar al empleador información sobre afiliaciones al sistema de seguridad integral"]
[]
[null,"[ORO] Poder para adelantar trámite de solicitud de calificación de pérdida de capacidad laboral"]
[]
[null,"[ORO] Porcentaje fijo de retención en la fuente sobre pagos laborales en junio de 2020 – procedimiento 2"]
[]
[null,"[ORO] Modelo para definir el IVA sobre el AIU en los servicios del artículo 462-1 del ET"]
[]
[null,"[ORO] Cálculo de intereses presuntivos sobre préstamos entre socios y sociedades durante 2019"]
[]
[null,"[ORO] Certificación de contador para acceder al subsidio de la prima de servicios"]
[]
[null,"[ORO] Acuerdo para no laborar el sábado y distribuir jornada entre semana (sin generar horas extra)"]
[]
[null,"[ORO] Formulario 110 y formato 2516 para declaración de renta 2019 de personas naturales obligadas a llevar contabilidad"]
[]
[null,"[ORO] Aplicación de las rentas exentas en la renta presuntiva en el formulario 210"]
[]
[null,"[ORO] Formulario 110 de declaración de renta de personas naturales, AG 2019 – no obligados a llevar contabilidad"]
[]
[null,"[Contrato] Otrosí – nuevos plazos para pago de la prima de servicios de 2020 (primer semestre)"]
[]
[null,"[Carta] Solicitud de no cobro del IVA en arrendamiento de local o establecimiento comercial"]
[]
[null,"[ORO] Plantilla en Excel para diligenciar el formulario 350 de retención en la fuente en 2020"]
[]
[null,"[ORO] Solicitud de trabajador para incorporarse al teletrabajo"]
[]
[null,"[ORO] Formulario 110 y formato 2516: declaración de renta o ingresos y patrimonio – personas jurídicas AG 2019"]
[]
[null,"Calendario tributario 2020 – Versión para imprimir"]
[]
[null,"[Liquidador] Liquidador del número de trabajadores por los cuales se tiene derecho al subsidio de nómina del Paef"]
[]
[null,"[Certificaciones] Certificación para subsidio de nómina Paef – entidad sin ánimo de lucro"]
[]
[null,"[Certificaciones] Certificación para subsidio de nómina Paef – entidad del régimen tributario especial"]
[]
[null,"[Certificaciones] Certificación para que una persona natural acceda al subsidio de nómina – Paef –"]
[]
[null,"[Certificaciones] Informe del contador o revisor fiscal para que una entidad acceda al subsidio de nómina"]
[]
[null,"[Certificaciones] Certificado para modificar o suspender beneficios extralegales a causa del COVID-19"]
[]
[null,"[Liquidador] Simulador de crédito en período de gracia: estrategia de entidades financieras ante el COVID-19"]
[]
[null,"[Guía] Cuadro temático: cambios de la Resolución 000042 de 2020 sobre facturación electrónica"]
[]
[null,"[Pack de formatos] Guías para el reporte de exógena 2019: ¡descárgalas ya!"]
[]
[null,"[ORO] Categorías de informantes de exógena por el año gravable 2019 y los formatos que deben usar"]
[]
[null,"[ORO] Formatos de exógena por el año gravable 2019: reportes de los mandatarios"]
[]
[null,"[Certificaciones] Certificado de licencia remunerada compensable: protección al empleo ante el COVID-19"]
[]
[null,"[ORO] Plantilla para elaborar el formulario 300 para las declaraciones del IVA durante 2020"]
[]
[null,"[ORO] Modelo del certificado anual para socios y/o accionistas por el año 2019"]
[]
[null,"[ORO] Modificación de la jornada laboral y concertación de salario – COVID-19"]
[]
[null,"[Liquidador] Pago parcial del aporte al sistema general de pensiones – COVID-19"]
[]
[null,"[ORO] Sanciones relacionadas con la declaración informativa de precios de transferencia"]
[]
[null,"Solicitud de retiro parcial de cesantías con ocasión del COVID-19"]
[]
[null,"[ORO] Formato exógena 1010 por el año gravable 2019: reporte de socios, cooperados o comuneros"]
[]
[null,"[ORO] Formato exógena 1004 de 2019: reporte de descuentos al impuesto de renta y régimen simple"]
[]
[null,"[ORO] Formato exógena 5253 por el año gravable 2019: información de los beneficiarios efectivos"]
[]
[null,"[ORO] Formato exógena 1007 por el año gravable 2019: reportes de ingresos propios"]
[]
[null,"[ORO] Formato exógena 1647 por el año gravable 2019: reporte de ingresos recibidos para terceros"]
[]
[null,"[ORO] Formato exógena 1009 por el año gravable 2019: reporte de cuentas por pagar"]
[]
[null,"[ORO] Formato exógena 1008 por el año gravable 2019: reporte de cuentas por cobrar"]
[]
[null,"[ORO] Formato exógena 1003 por el año gravable 2019: retenciones que le practicaron al informante"]
[]
[null,"[ORO] Formatos exógena 1005 y 1006 del año gravable 2019: reportes de IVA generados y descontables"]
[]
[null,"[ORO] Formatos exógena 1011, 1012 y 2275 por el año gravable 2019: reporte de otros datos en renta e IVA"]
[]
[null,"[ORO] Formato exógena 1001 por el año gravable 2019: reporte de pagos o abonos en cuenta"]
[]
[null,"[ORO] Formatos 2276 y 2280 para el reporte de información exógena de 2019"]
[]
[null,"[Pack de formatos] Asamblea de accionistas y junta de socios: realice una correcta convocatoria"]
[]
[null,"[ORO] Plantilla para elaborar formulario 220: certificado de ingresos y retenciones – año gravable 2019"]
[]
[null,"[Calendario] Calendario tributario 2019 – versión para imprimir"]
[]
[null,"[Pack de formatos] Dictámenes e informes del revisor fiscal actualizados al 2020"]
[]
[null,"[ORO] Clasificación de las personas jurídicas frente al impuesto de renta y al SIMPLE – año gravable 2019"]
[]
[null,"Informe de revisión de información financiera intermedia con conclusión adversa"]
[]
[null,"[ORO] Cálculo del costo de renovación de matrícula mercantil y de establecimientos de comercio (año 2020)"]
[]
[null,"[ORO] Impuesto de renta de personas naturales residentes en el régimen ordinario, año gravable 2019 vs. 2020"]
[]
[null,"[ORO] Sanciones aplicables a la documentación comprobatoria"]
[]
[null,"[ORO] Listado de contribuyentes inscritos en el régimen simple con corte a septiembre 30 de 2019"]
[]
[null,"[ORO] Proyección del impuesto al patrimonio y cálculo del de normalización y/o saneamiento 2020"]
[]
[null,"[ORO] Simulador de tributación en el régimen simple vs. régimen ordinario – año gravable 2020"]
[]
[null,"[ORO] Tablas de retención en la fuente a título de impuestos nacionales durante el año fiscal 2020"]
[]
[null,"[ORO] Comparativo de normas afectadas con la Ley de crecimiento económico 2010 de diciembre 27 de 2019"]
[]
[null,"[Guía] Cálculo de renta presuntiva para el período gravable 2019"]
[]
[null,"[ORO] Carta para solicitar un incremento de salario al empleador"]
[]
[null,"Tributación sobre dividendos y su respectiva retención fue reglamentada por el Ministerio de Hacienda"]
[]
[null,"[ORO] Retención en la fuente con procedimiento 1 sobre rentas de trabajo durante 2020"]
[]
[null,"Tabla de retención en la fuente para el año fiscal 2020"]
[]
[null,"[ORO] Tasa representativa del mercado –TRM– 2019"]
[]
[null,"[2020] Histórico de la variación nominal del salario mínimo vs. la inflación 1993 – 2019"]
[]
[null,"Novedades en la clasificación de bienes y servicios frente al IVA y el INC con la Ley 2010 de 2019"]
[]
[null,"[Calendario] Calendario tributario distrital 2020"]
[]
[null,"[ORO] Cuadro temático con los cambios introducidos por la Ley de crecimiento 2010 de 2019"]
[]
[null,"[2020] Histórico de salario mínimo y auxilio de transporte"]
[]
[null,"[Guía] Información laboral 2020"]
[]
[null,"[ORO] Porcentaje fijo de retención en la fuente sobre salarios en diciembre de 2019 – Procedimiento 2"]
[]
[null,"[Guía] Certificado de persona natural no declarante del impuesto de renta y complementario 2019"]
[]
[null,"[Lista de chequeo] Cuestionario control interno – Efectivo y equivalentes de efectivo"]
[]
[null,"[Guía] Lista de chequeo información ESF Patrimonio – Formato de conciliación fiscal 2516 versión 3 AG 2020"]
[]
[null,"[Guía] Convenios para evitar la doble tributación aplicables al año gravable 2019"]
[]
[null,"[Guía] Ingresos que no se consideran de fuente nacional – período gravable 2019"]
[]
[null,"[ORO] Rentas exentas para personas jurídicas – período gravable 2019"]
[]
[null,"[ORO] Aportes a seguridad social para trabajadores independientes con un contrato por días"]
[]
[null,"Carta para notificar terminación de contrato mercantil de forma unilateral"]
[]
[null,"[Liquidador] Simulador de subsidio de vivienda de interés social o prioritario"]
[]
[null,"[Liquidador] Formulario 350: Declaración Mensual de Retenciones en la Fuente"]
[]
[null,"[ORO] Plantilla para elaborar el formulario 445 complementario de normalización tributaria 2019"]
[]
[null,"[ORO] Formulario 350: Declaración Mensual de Retención en la Fuente (plantilla avanzada)"]
[]
[null,"[Guía] Conozca quiénes están obligados a aplicar la NICC 1"]
[]
[null,"[Guía] Lista de chequeo: requisitos por cumplir para solicitar ser autorretenedor de renta"]
[]
[null,"[ORO] Recomendaciones a la junta directiva emitida por empleado que renuncia con justa causa"]
[]
[null,"[ORO] Terminación de contrato justa causa"]
[]
[null,"[Guía] Evaluación de las competencias y recursos de la firma"]
[]
[null,"[ORO] Formulario 310: declaración del impuesto nacional al consumo (plantilla para borrador)"]
[]
[null,"[Poder] Diligencias en la Dian"]
[]
[null,"[ORO] Cálculo de intereses presuntivos sobre préstamos entre socios y sociedades durante 2018"]
[]
[null,"[Guía] Tablas para el cálculo del tiempo entre dos fechas"]
[]
[null,"[Guía] Cálculo de la contribución 2019 a Supersociedades"]
[]
[null,"[Guía] Convenios para evitar la doble tributación aplicables al año gravable 2018"]
[]
[null,"[ORO] Formulario 420 – Declaración de impuesto al patrimonio"]
[]
[null,"[ORO] Aspectos generales del contrato de aprendizaje"]
[]
[null,"[ORO] Indicadores financieros de liquidez, endeudamiento, actividad y rentabilidad"]
[]
[null,"[ORO] Consecuencias derivadas de la obligación de llevar contabilidad"]
[]
[null,"[ORO] Tabla para liquidar indemnizaciones por pérdida de capacidad laboral"]
[]
[null,"[ORO] Calendario tributario 2019 avanzado"]
[]
[null,"[ORO] Depuración del impuesto de renta para personas naturales por el año gravable 2018"]
[]
[null,"[ORO] Residentes vs. no residentes frente al impuesto de renta y ganancia ocasional 2018"]
[]
[null,"[ORO] Certificación del socio gestor en contratos de cuentas en participación"]
[]
[null,"[ORO] Certificación del mandatario en contratos de mandato"]
[]
[null,"[ORO] Formulario 210 declaración de renta año gravable 2018 – Residentes no obligados a llevar contabilidad"]
[]
[null,"[ORO] Formulario 110 declaración de renta de personas naturales AG 2018 – No obligados a llevar contabilidad"]
[]
[null,"[ORO] Formulario 210 y formato 2517 para renta AG 2018 – Residentes obligados a llevar contabilidad"]
[]
[null,"[ORO] Formulario 110 y formato 2516 declaración de renta 2018 de personas naturales obligadas a llevar contabilidad"]
[]
[null,"[ORO] Reglamentación a tener en cuenta en la declaración de renta de personas naturales año gravable 2018"]
[]
[null,"[Guía] Indicadores básicos para la declaración de renta de personas naturales por el año gravable 2018"]
[]
[null,"[Liquidador] Retención en la fuente sobre pagos laborales en junio de 2019 – Procedimiento 2"]
[]
[null,"[ORO] Modelo para determinar quién puede pertenecer al régimen simple de tributación"]
[]
[null,"[Guía] Diferencias entre el registro de una marca y una empresa"]
[]
[null,"[Guía] Plantilla para elaborar el formulario 300 para las declaraciones del IVA durante 2019"]
[]
[null,"[Guía] Inscripción de libros en las cámaras de comercio"]
[]
[null,"[Guía] Requisitos a verificar de la factura electrónica de venta antes de su emisión"]
[]
[null,"[ORO] Formato exógena 1011, 1012 y 2275 por el año gravable 2018: reporte de otros datos en renta e IVA"]
[]
[null,"[ORO] Categorías de informantes de exógena por el año gravable 2018 y los formatos que deben usar"]
[]
[null,"[ORO] Formatos 2276 y 2280 para el reporte de información exógena de 2018"]
[]
[null,"[ORO] Formato exógena 5253 por el año gravable 2018: información de los beneficiarios efectivos"]
[]
[null,"[ORO] Formatos de exógena por el año gravable 2018: reportes de los mandatarios"]
[]
[null,"[ORO] Formato exógena 1647 por el año gravable 2018: reporte de ingresos recibidos para terceros"]
[]
[null,"[ORO] Formato exógena 1010 por el año gravable 2018: reporte de socios, cooperados o comuneros"]
[]
[null,"[ORO] Formato exógena 1009 por el año gravable 2018: reporte de cuentas por pagar"]
[]
[null,"[ORO] Formato exógena 1008 por el año gravable 2018: reporte de cuentas por cobrar"]
[]
[null,"[ORO] Formato exógena 1004 de 2018: reporte de descuentos al impuesto de renta y ganancia ocasional"]
[]
[null,"[Guía] Comunicación de asuntos que generan amenazas a la independencia"]
[]
[null,"[ORO] Formato exógena 1007 por el año gravable 2018: reportes de ingresos propios"]
[]
[null,"[ORO] Formato exógena 1001 por el año gravable 2018: reporte de pagos o abonos en cuenta"]
[]
[null,"[ORO] Formatos exógena 1005 y 1006 del año gravable 2018: reportes de IVA generados y descontables"]
[]
[null,"[ORO] Formato exógena 1003 por el año gravable 2018: retenciones que le practicaron al informante"]
[]
[null,"[Guía] Devolución del IVA pagado en adquisición de materiales para construcción de VIS"]
[]
[null,"[ORO] Listado de actividades económicas (códigos CIIU)"]
[]
[null,"[Lista de chequeo] Seguimiento de control de calidad en un encargo de auditoría bajo NICC 1"]
[]
[null,"[ORO] Reglamentación para la declaración de renta de personas jurídicas por el año gravable 2018"]
[]
[null,"[ORO] Formulario 110 y formato 2516 para declaración de renta o ingresos y patrimonio 2018"]
[]
[null,"[ORO] Estructura general del Decreto único tributario 1625 de 2016"]
[]
[null,"[ORO] Clasificación general de personas jurídicas frente al impuesto de renta por el año gravable 2018"]
[]
[null,"[Guía] Indicadores básicos para declaración de renta de personas jurídicas año gravable 2018"]
[]
[null,"[Guía] Lista de chequeo: estándares mínimos de seguridad para empresas grandes y medianas"]
[]
[null,"[Guía] Requisitos para acceder a beneficios de la economía naranja y desarrollo del campo colombiano"]
[]
[null,"[Guía] Lista de chequeo: estándares mínimos de seguridad para empresas medianas"]
[]
[null,"[Guía] Comunicación de deficiencias en el proceso de inspección del seguimiento del control de calidad"]
[]
[null,"[Guía] Lista de chequeo: estándares mínimos de seguridad para pequeñas empresas"]
[]
[null,"[Liquidador] Costo de renovación de matrícula mercantil y establecimientos de comercio en 2019"]
[]
[null,"[Contrato] Compraventa de un establecimiento de comercio"]
[]
[null,"[ORO] Proyección del impuesto al patrimonio y cálculo del de normalización y/o saneamiento 2019"]
[]
[null,"[Guía] Modelo del certificado anual a socios o accionistas por el año 2018"]
[]
[null,"[ORO] Cambios en la tributación sobre dividendos, luego de la Ley de financiamiento"]
[]
[null,"[ORO] Depuración del impuesto de renta de personas jurídicas en el régimen ordinario 2018 vs. 2019"]
[]
[null,"[ORO] Cambios en el impuesto de renta de las personas naturales luego de la Ley de financiamiento"]
[]
[null,"[ORO] Comparativo entre la depuración de la renta en el régimen ordinario y en el régimen simple"]
[]
[null,"[ORO] Formulario 220: certificado por rentas de trabajo año gravable 2018"]
[]
[null,"[Liquidador] Impuesto de renta ordinario vs impuesto simple: ¿cuál es la decisión más conveniente?"]
[]
[null,"[Guía] Requisitos para acceder al subsidio de desempleo"]
[]
[null,"[Guía] Tarifas de autorretención especial en renta automatizado"]
[]
[null,"[Guía] Indicadores básicos para tener en cuenta durante 2019"]
[]
[null,"[ORO] Novedades en clasificación de bienes y servicios frente a IVA e INC"]
[]
[null,"[Guía] Requisitos para pertenecer al régimen simple de tributación"]
[]
[null,"[ORO] Porcentaje fijo y retención en la fuente con procedimiento 2 durante 2019 tras Ley de financiamiento"]
[]
[null,"[ORO] Retención en la fuente con procedimiento 1 sobre rentas de trabajo 2019 tras Ley de financiamiento"]
[]
[null,"[Liquidador] Retención en la fuente con procedimiento 1 sobre rentas de trabajo durante 2019"]
[]
[null,"[Liquidador] Porcentaje fijo diciembre 2018 y junio 2019, y retención en la fuente con procedimiento 2 por 2019"]
[]
[null,"[Guía] Información laboral 2019"]
[]
[null,"[Formato] Radicación de licencia de maternidad ante EPS al no cotizar todo el período de gestación"]
[]
[null,"[Guía] Tasa representativa del mercado -TRM- 2018"]
[]
[null,"Histórico de la variación nominal del salario mínimo vs. la inflación 1993 – 2018"]
[]
[null,"[Guía avanzada] Tablas de retención en la fuente a título de impuestos nacionales 2019"]
[]
[null,"[Guía] Tabla de retenciones en la fuente por renta para el año fiscal 2019"]
[]
[null,"[Calendario] Calendario tributario distrital 2019"]
[]
[null,"[ORO] Matriz de cambios introducidos por la Ley de financiamiento 1943 de 2018"]
[]
[null,"[ORO] Comparativo de normas afectadas por la Ley de financiamiento 1943 de diciembre 28 de 2018"]
[]
[null,"[Guía] Dictamen para empresas que aplican el Estándar Internacional para Pymes"]
[]
[null,"[Certificación] Certificado de ingresos por rendimientos financieros expedido por contador público"]
[]
[null,"[2019] Histórico de salario mínimo y auxilio de transporte"]
[]
[null,"[ORO] Disminución de la base de retención por pagos a terceros por concepto de alimentación"]
[]
[null,"[Carta] Solicitud de aplicación de tarifa superior de retención en la fuente"]
[]
[null,"[ORO] Equivalencias entre cuentas contables y formato de conciliación fiscal 2516"]
[]
[null,"[Carta] Anuncio de modificación a términos de descuento por pronto pago"]
[]
[null,"[Guía] Proveedores tecnológicos autorizados para prestar servicios de facturación electrónica"]
[]
[null,"[Certificado] Certificación para efectos de retención en la fuente de trabajador independiente"]
[]
[null,"[Carta] Carta otorgando poder"]
[]
[null,"[Liquidador] Histórico de reajustes fiscales"]
[]
[null,"[ORO] Demanda de nulidad y restablecimiento del derecho contra la Dian"]
[]
[null,"[ORO] Recurso de reconsideración presentado ante la Dian"]
[]
[null,"[Guía] Modelo recurso de súplica – proceso laboral"]
[]
[null,"[ORO] Carta de agradecimiento a empleador"]
[]
[null,"[Guía] Modelo recurso de queja – proceso laboral"]
[]
[null,"[Guía] Conceptos y orientaciones que abordan el tratamiento contable de los contratos de concesión"]
[]
[null,"[Carta] Ofrecimiento de disculpas a un cliente por la no prestación de un servicio"]
[]
[null,"[Guía] Acuerdo de terminación voluntaria del contrato de trabajo con bonificación por servicios prestados"]
[]
[null,"[Guía] Normas del Estatuto Tributario sobre el patrimonio y renta según obligación de llevar contabilidad"]
[]
[null,"[ORO] Solicitud de empleo"]
[]
[null,"[Guía] Sistema de control de calidad aplicado a recursos humanos en un encargo de auditoría"]
[]
[null,"[Guía] Resoluciones y circulares para declaración de renta de personas naturales año gravable 2017"]
[]
[null,"[Guía] Modelo recurso de apelación – audiencia laboral"]
[]
[null,"[Guía] Decretos para la declaración de renta de personas naturales por el año gravable 2017"]
[]
[null,"[ORO] Solicitud pago de acreencias laborales"]
[]
[null,"[Guía] Informe de un auditor sobre el diseño y la eficacia de los controles de la entidad"]
[]
[null,"[Guía] Personas naturales no residentes obligadas o no a declarar impuesto de renta"]
[]
[null,"[Guía] Tratamiento contable arrendamiento financiero con opción de compra"]
[]
[null,"[Guía] Residencia fiscal y sus implicaciones fiscales"]
[]
[null,"[Guía] Impuesto de renta y ganancia ocasional según residencia fiscal de la persona natural"]
[]
[null,"[Formato] Solicitud compensación de vacaciones"]
[]
[null,"[Guía] Política contable de arrendamientos para entidades de grupo 1"]
[]
[null,"[Guía] Requisitos para que persona natural quede exonerada de declarar renta por el año gravable 2017"]
[]
[null,"[Guía] Personas naturales obligadas o no a llevar contabilidad, e implicaciones contables y tributarias"]
[]
[null,"[Guía] Políticas contables en pymes para los intangibles"]
[]
[null,"[ORO] Porcentaje fijo de retención en la fuente sobre salarios en junio de 2018 – Procedimiento 2"]
[]
[null,"[ORO] Contestación de demanda – proceso ordinario laboral"]
[]
[null,"[Liquidador] Cálculo de la contribución 2018 a Supersociedades"]
[]
[null,"[ORO] Conceptos que se someten o no a límites de rentas y deducciones especiales"]
[]
[null,"[Guía] Recurso de reposición – proceso laboral"]
[]
[null,"[Liquidador] Liquidador de vacaciones"]
[]
[null,"[Poder] Poder de sustitución"]
[]
[null,"[Guía] Informe sobre los hallazgos obtenidos en las propiedades, planta y equipo"]
[]
[null,"[ORO] Doctrinas de la Dian para tener en cuenta al elaborar declaración de renta personas naturales 2017"]
[]
[null,"[ORO] Depuración a efectuar dentro de las 5 cédulas de la declaración de renta de personas naturales"]
[]
[null,"[ORO] Formulario 210 para declaración renta año gravable 2017 – obligados a llevar contabilidad"]
[]
[null,"[Carta] Solicitud de depósito de recursos a cuenta AFC para que no se practique retefuente"]
[]
[null,"[ORO] Formulario 110 – declaración de renta 2017 de personas naturales obligadas a llevar contabilidad"]
[]
[null,"[ORO] Notificación de no renovación de contrato laboral a término fijo"]
[]
[null,"[ORO] Formulario 210 para declaración renta año gravable 2017 – no obligados a llevar contabilidad"]
[]
[null,"[Guía] Informe sobre los hallazgos obtenidos en las cuentas por cobrar en una pyme"]
[]
[null,"[ORO] Beneficios tributarios por venta o herencia de bien inmueble"]
[]
[null,"[Guía] Declaración de renta año gravable 2017: indicadores y otros datos básicos para su elaboración"]
[]
[null,"[Liquidador] Cobro coactivo: conozca si la Dian debería levantar medida cautelar sobre un bien del contribuyente"]
[]
[null,"[Carta] Revocatoria de poder otorgado a un abogado"]
[]
[null,"[ORO] Formulario 110 – declaración de renta 2017 de personas naturales no obligadas a llevar contabilidad"]
[]
[null,"[Guía] Rentas exentas y deducciones aplicables a cada cédula"]
[]
[null,"[Carta] Notificación de último cobro extrajudicial"]
[]
[null,"[Certificado] Cumplimiento de requisitos para solicitar permanencia en el régimen tributario especial"]
[]
[null,"[Certificado] Antecedentes de directivos en entidades del régimen especial"]
[]
[null,"[ORO] Plantilla para elaborar XML de formatos 1004, 1011 y 2275 para el año gravable 2017"]
[]
[null,"[ORO] Registro web de las entidades del régimen especial: trámites que debe realizar cada tipo de entidad"]
[]
[null,"[Guía] Reforma al acuerdo de reorganización"]
[]
[null,"[ORO] Clasificación general de personas jurídicas en relación con el impuesto de renta por el 2017"]
[]
[null,"[Guía] Informe de revisión de estados financieros de una pyme conforme a la NIER 2400"]
[]
[null,"[Guía] Solicitud de normalización de acreencias"]
[]
[null,"[Guía] Normalización de acreencias incumplidas en proceso de reorganización"]
[]
[null,"[Guía] Levantamiento de medida cautelar en proceso de reorganización"]
[]
[null,"[Guía] Incorporación de procesos ejecutivos en proceso de reorganización empresarial"]
[]
[null,"[Guía] Remisión de documentos reunión de acreedores"]
[]
[null,"[Guía] Presentación de reforma de acuerdo de reorganización"]
[]
[null,"[Guía] Denuncia por incumplimiento de obligación de hacer en acuerdo de reorganización"]
[]
[null,"[Guía] Denuncia de incumplimiento de acuerdo de reestructuración"]
[]
[null,"[Certificación] Certificación trimestral de cumplimiento total de la Circular 156–000005 de 2011"]
[]
[null,"[Certificación] Oficio de cumplimiento de la Circular 156–000005 de 2011"]
[]
[null,"[Certificación] Certificación de cumplimiento de Circular 156–000005 de 2011"]
[]
[null,"[ORO] Formatos exógena 1011, 1012 y 2275 por el año gravable 2017: reporte de otros datos en renta e IVA"]
[]
[null,"[ORO] Formato exógena 1009 por el año gravable 2017: reporte de cuentas por pagar"]
[]
[null,"Formatos de exógena por el año gravable 2017: reportes de los mandatarios"]
[]
[null,"[ORO] Formato exógena 1008 por el año gravable 2017: reporte de cuentas por cobrar"]
[]
[null,"[ORO] Formato exógena 1007 por el año gravable 2017: reportes de ingresos propios"]
[]
[null,"[ORO] Formatos exógena 1005 y 1006 por el año gravable 2017: reportes de IVA generados y descontables"]
[]
[null,"[ORO] Formato exógena 1003 por el año gravable 2017: retenciones que le practicaron al informante"]
[]
[null,"[ORO] Resumen de categorías de informantes de exógena por el año gravable 2017 y formatos que deben usar"]
[]
[null,"[ORO] Formato exógena 1004 por 2017: reporte de descuentos al impuesto de renta y ganancia ocasional"]
[]
[null,"Formatos 2276, 2278 y 2280 para el reporte de información exógena por 2017"]
[]
[null,"Formato exógena 1647 por el año gravable 2017: reporte de ingresos recibidos para terceros"]
[]
[null,"Formato exógena 1010 por el año gravable 2017: reporte de socios, cooperados o comuneros"]
[]
[null,"[ORO] Formato exógena 1001 por el año gravable 2017: reporte de pagos o abonos en cuenta"]
[]
[null,"[Guía] Reglamentación para la declaración de renta de personas jurídicas 2017"]
[]
[null,"[ORO] Formulario 110 y formato 2516 para declaración de renta o ingresos y patrimonio 2017"]
[]
[null,"[ORO] Arqueo de caja"]
[]
[null,"[Liquidador] Beneficio neto o excedente de las entidades del régimen tributario especial"]
[]
[null,"[ORO] Liquidador básico de nómina"]
[]
[null,"[Certificación] Explotación de áreas comunes por copropiedades comerciales o mixtas"]
[]
[null,"[ORO] Costo de renovación 2018 de matrícula mercantil y establecimientos de comercio"]
[]
[null,"[Liquidador] Formulario 220 certificado por rentas de trabajo del año gravable 2017: ejemplo de asalariados"]
[]
[null,"[Guía] Testamento abierto o público cuando no hay hijos herederos"]
[]
[null,"[Liquidador] Aplicativo simulador y comparativo de créditos cuota fija"]
[]
[null,"[Calendario] Calendarios tributarios 2018 de los distritos y municipios principales de Colombia"]
[]
[null,"[Guía] Amparo de pobreza"]
[]
[null,"[Guía] Sanciones relacionadas con ICA, impuesto predial y de vehículos en Bogotá"]
[]
[null,"[Liquidador] Cálculo de tasa de interés efectiva implícita en una cuota"]
[]
[null,"[Poderes] Poder para adelantar sucesión ante Notaría"]
[]
[null,"[Liquidador] Conversión de tasas de interés"]
[]
[null,"[Calendario] Calendario tributario de Cali 2018"]
[]
[null,"[Calendario] Calendario tributario de Medellín 2018"]
[]
[null,"[Calendario] Calendarios tributarios de las tres principales ciudades de Colombia 2018"]
[]
[null,"[Guía] Escritura pública de disolución de sociedad comercial"]
[]
[null,"[ORO] Plantilla para elaborar formulario 220 certificado por rentas de trabajo del año gravable 2017"]
[]
[null,"[Guía] Decretos reglamentarios de la Ley de reforma tributaria 1819 de 2016 expedidos a finales de 2017"]
[]
[null,"[Guía] Demanda para fijación de nuevo valor de arrendamiento de local comercial"]
[]
[null,"[Guía] Impuesto diferido aplicado a propiedades de inversión: caso práctico"]
[]
[null,"[Guía] Indicadores básicos a tener en cuenta en el 2018"]
[]
[null,"[Guía] Declaración de extinción de la obligación hipotecaria"]
[]
[null,"[Liquidador] Límite de pagos en efectivo a tener en cuenta para 2018"]
[]
[null,"[Guía] Demanda de cancelación y reposición de título valor contra entidad bancaria"]
[]
[null,"[Lista de chequeo] Revisión de control de calidad en un encargo de auditoría"]
[]
[null,"[Liquidador] Retención en la fuente con procedimiento 1 sobre rentas de trabajo durante el 2018"]
[]
[null,"[Contrato] Contrato de comodato"]
[]
[null,"[Guía] Tipos de términos de firmeza de las declaraciones tributarias"]
[]
[null,"[Guía] Información laboral 2018"]
[]
[null,"[2018] Histórico de salario mínimo y auxilio de transporte"]
[]
[null,"[Calendario] Calendario para personas naturales 2018"]
[]
[null,"[Calendario] Calendario tributario distrital 2018"]
[]
[null,"[Guía] Tasa representativa de mercado –TRM–"]
[]
[null,"[ORO] Calendario tributario automatizado 2018"]
[]
[null,"[ORO] Tabla de retenciones en la fuente por renta para año fiscal 2018"]
[]
[null,"[Calendario] Calendario tributario 2018"]
[]
[null,"[Guía] Modelo del certificado anual a socios y/o accionistas por el año 2017"]
[]
[null,"[ORO] Porcentaje fijo de retención en la fuente sobre salarios en diciembre de 2017 – Procedimiento 2"]
[]
[null,"[Poder] Para constituir una sociedad anónima otorgado por persona jurídica extranjera"]
[]
[null,"[Carta] Independencia del revisor fiscal o auditor de la firma"]
[]
[null,"[ORO] Categorías de informantes de exógena por el año gravable 2017 y formatos que deben usar"]
[]
[null,"[Guía] Demanda de restitución de bien inmueble arrendado – Local de comercio"]
[]
[null,"[Carta] Confirmación del auditor de un componente"]
[]
[null,"[Guía] Régimen simplificado del IVA y del impuesto al consumo: diferencias y similitudes"]
[]
[null,"[Guía] Persona natural, empresa unipersonal o SAS: características frente a obligaciones tributarias"]
[]
[null,"[Guía] Recurso de queja por denegar liquidación de crédito en proceso ejecutivo"]
[]
[null,"[Poder] Solicitud de pruebas extraprocesales"]
[]
[null,"[ORO] Conciliación contable y tributaria: casos de descuentos y deducciones (parte IV)"]
[]
[null,"[ORO] Conciliación contable y tributaria: casos de descuentos tributarios"]
[]
[null,"[Guía] Demanda de proceso ejecutivo singular (letra de cambio)"]
[]
[null,"[Guía] Conciliación contable y tributaria: casos de costos y deducciones (parte II)"]
[]
[null,"[Guía] Descuentos tributarios para personas jurídicas y sus límites al momento de aplicarlos"]
[]
[null,"[Contrato] Distribución exclusiva"]
[]
[null,"[ORO] Conciliación contable y tributaria: casos de costos y deducciones (parte I)"]
[]
[null,"[Guía] Formatos para acceder a exclusión de IVA en equipos en pro del medio ambiente"]
[]
[null,"[Contrato] Compromiso de fusión"]
[]
[null,"[Guía] Lista de chequeo: evidencia relativa a los controles en una organización de servicios"]
[]
[null,"[Guía] Zomac: listado automatizado de municipios pertenecientes a estas zonas"]
[]
[null,"[Guía] Convocatoria de integración de tribunal de arbitramento comercial"]
[]
[null,"[Guía] Beneficio en renta para sociedades ubicadas en Zomac: requisitos según el tamaño de la empresa"]
[]
[null,"[Acta] Acta final de arreglo directo"]
[]
[null,"[Contrato] Cesión de derechos litigiosos"]
[]
[null,"[ORO] Cuenta de cobro para una persona que presta servicios en el régimen simplificado del IVA"]
[]
[null,"[Demanda] Levantamiento de fuero sindical"]
[]
[null,"​[Guía] Requisitos para no estar obligado a declarar renta por el año gravable 2016"]
[]
[null,"[Guía] Patrimonio y rentas a declarar según la residencia fiscal del contribuyente"]
[]
[null,"[Guía] Demanda para iniciar proceso ejecutivo laboral"]
[]
[null,"[Guía] Conducta sancionable, ¿en qué consiste para efectos de liquidar sanción reducida?"]
[]
[null,"[ORO] Contrato de outsourcing"]
[]
[null,"[Guía] Convenios para evitar la doble tributación aplicables al año gravable 2016"]
[]
[null,"[Guía] Declaración de renta año gravable 2016: indicadores y otros datos básicos para su elaboración"]
[]
[null,"[Guía] Lista de chequeo de requisitos para obtener la tarjeta profesional de contador público"]
[]
[null,"[Matriz] Clasificación tributaria de una persona natural según el Concepto 885 de julio 31 de 2014"]
[]
[null,"[Guía] Lista de chequeo de requisitos para la expedición de la tarjeta de registro de entidades"]
[]
[null,"​[Guía] Conducta sancionable, comisión de la misma conducta no permite liquidar sanción reducida"]
[]
[null,"[Carta] Modelo de circularización con compañías de seguros"]
[]
[null,"[Liquidador] Prorrateo de IVA comunes: hoja de trabajo con cálculos básicos"]
[]
[null,"[Guía] Personas naturales obligadas y no obligadas a llevar contabilidad"]
[]
[null,"[Certificación] Certificación laboral"]
[]
[null,"[Liquidador] Cálculo de la contribución 2017 a la Supersociedades"]
[]
[null,"[Guía] Lista de chequeo de revelaciones para microempresas"]
[]
[null,"​[Matriz] Clasificación tributaria de una persona natural según Decreto 3032 de 2013"]
[]
[null,"[Contrato] Transacción para terminar contrato de obra en propiedad horizontal"]
[]
[null,"[Matriz] Residente para efectos fiscales"]
[]
[null,"[ORO] Carta de interrupción de la prescripción de las acciones laborales"]
[]
[null,"[Guía] Tabla de equivalencias de términos sobre Normas Internacionales de Auditoría"]
[]
[null,"[Guía] Habilitación para expedir factura electrónica: proceso a seguir"]
[]
[null,"[Contrato] Contrato de obra para construcción"]
[]
[null,"[ORO] Pasos que debe seguir el consumidor financiero para exponer una inconformidad"]
[]
[null,"[Guía] Términos a tener en cuenta en el trámite de solicitud de devolución de saldos a favor"]
[]
[null,"[Formato] Cuestionario de auditoría para área de sistemas"]
[]
[null,"​[Matriz] Cédula rentas de capital y su renta líquida según Concepto 5984 de marzo 17 de 2017"]
[]
[null,"[ORO] Renta presuntiva y las novedades de la reforma tributaria en su determinación"]
[]
[null,"[Carta] Radicación de licencia de maternidad cuando no se cotizó todo el embarazo"]
[]
[null,"[ORO] Cuestionario de auditoría para área de producción"]
[]
[null,"[Guía] Listado de relaciones de intercambio de información de cuentas financieras que tiene Colombia"]
[]
[null,"[Guía] Tasas: generalidades y conceptos"]
[]
[null,"[ORO] Contribuyentes de monotributo ARL y valor a pagar por cada componente por 2017"]
[]
[null,"[Acta] Reclamación ante empresas de telefonía celular por reporte negativo a centrales de riesgo"]
[]
[null,"[ORO] Intereses moratorios sobre deudas tributarias luego de la Ley 1819 de 2016"]
[]
[null,"[ORO] Formularios 210 y 230 con anexos para declaración de renta año gravable 2016"]
[]
[null,"[ORO] ​Formularios 110 y 240 con anexos para declaración de renta año gravable 2016"]
[]
[null,"​[ORO] Modelo para proyectar efectos de IMAN e IMAS en declaraciones de renta 2016 de empleados"]
[]
[null,"[ORO] Clasificación tributaria de las personas naturales y sucesiones ilíquidas por el año 2016"]
[]
[null,"​[ORO] Modelo para proyectar efectos de IMAS por 2016 de trabajadores por cuenta propia"]
[]
[null,"[Guía] Contribuyentes de monotributo BEPS y valor a pagar por cada componente"]
[]
[null,"[Acta] Aprobación de disolución de sociedad de responsabilidad limitada"]
[]
[null,"[Acta] Acta de junta para transformación de SA a SAS"]
[]
[null,"[Certificación] Requisitos para acceder a beneficios en registro mercantil de la Ley Projoven"]
[]
[null,"[ORO] Porcentaje fijo de retención en la fuente sobre salarios en junio de 2017 – Procedimiento 2"]
[]
[null,"[Acta] Acta de junta para transformación de Ltda a SAS"]
[]
[null,"[ORO] Manifestación de temas a tratar en informes de control interno"]
[]
[null,"Retefuente con procedimiento 1 para quienes perciban rentas de trabajo"]
[]
[null,"[Guía] Régimen tributario especial: información que debe contener el registro de inscripción"]
[]
[null,"​[ORO] Formulario 300 para declaraciones de IVA bimestrales y/o cuatrimestrales durante 2017"]
[]
[null,"[Contrato] Escrituras de venta de inmueble que no está ubicado en propiedad horizontal"]
[]
[null,"[Contrato] Escrituras de venta de inmueble ubicado en propiedad horizontal"]
[]
[null,"[Guía] Información requerida para agendar cita en la DIAN"]
[]
[null,"[Guía] Elementos conceptuales para informe de control interno"]
[]
[null,"[Guía] Modelo de manifestación de la gerencia dirigida a la revisoría fiscal"]
[]
[null,"[ORO] Formato 1003 por 2016: reportes de retenciones que le practicaron a la persona o entidad informante"]
[]
[null,"[ORO] Formato 1009 por 2016: reportes de cuentas por pagar"]
[]
[null,"[ORO] Formato 1004 por 2016: reporte de descuentos al impuesto de renta o de ganancia ocasional"]
[]
[null,"[ORO] Formato 1647 por 2016: reportes de ingresos recibidos para terceros"]
[]
[null,"[ORO] Formato 1007 por 2016: reportes de ingresos propios"]
[]
[null,"[ORO] Formato 1001 por 2016: reportes de pagos o abonos en cuenta y sus retenciones a terceros"]
[]
[null,"[ORO] Formatos 2276, 2278 y 2280 para el reporte de información exógena por 2016"]
[]
[null,"[ORO] Formatos 1005 y 1006 por 2016: reportes de IVA generados y descontables"]
[]
[null,"[ORO] Formato 1010 por 2016: reportes de socios, cooperados o comuneros"]
[]
[null,"[ORO] Formato 1008 por 2016: reportes de cuentas por cobrar"]
[]
[null,"[Guía] Incentivos de la reforma tributaria que fueron reglamentados a nivel territorial"]
[]
[null,"[ORO] Formatos 1011, 1012 y 2275 por 2016: reportes de otros datos en renta o en ingresos y patrimonio"]
[]
[null,"[Contrato] Solicitud al banco de cheques originales pagados"]
[]
[null,"[Guía] Dictamen de la revisoría fiscal para una empresa del Grupo 2 por el año 2016"]
[]
[null,"[Guía] Matriz para definir si pertenece al régimen simplificado del IVA"]
[]
[null,"[Contrato] Contrato de depósito"]
[]
[null,"[Guía] Matriz para definir si pertenece al régimen simplificado del impuesto nacional al consumo"]
[]
[null,"[Contrato] Distribución de productos"]
[]
[null,"[Contrato] Arrendamiento de oficina, local o bodega"]
[]
[null,"[Guía] Modelo de certificación de Estados Financieros (versión extendida)"]
[]
[null,"[Guía] Cambios en conceptos de exógena para reportar descuentos tributarios solicitados"]
[]
[null,"[ORO] Formularios 110 y 140 y formato 1732 para personas jurídicas por año gravable 2016"]
[]
[null,"[ORO] Derecho de petición de interés particular contra empresa de servicios públicos -ESP-"]
[]
[null,"[Guía] Política contable sobre moneda funcional y transacciones en moneda extranjera para Pymes"]
[]
[null,"[ORO] Plantilla para elaborar borrador de formulario 350 de marzo de 2017 en adelante"]
[]
[null,"[Guía] Nuevos conceptos de exógena para reportar ingresos por operaciones con IVA"]
[]
[null,"[Acta] Reunión de junta directiva"]
[]
[null,"[Acta] Autorización de aumento del capital"]
[]
[null,"[Guía] Cambios en conceptos de exógena para reportar valores de costos y deducciones"]
[]
[null,"[Acta] Iniciación de arreglo directo"]
[]
[null,"[Guía] Modelo informe del Revisor Fiscal con ISAE"]
[]
[null,"[Guía] Cambios en los conceptos de exógena para reportar valores de rentas exentas"]
[]
[null,"[ORO] Calendario Tributario 2017 automatizado"]
[]
[null,"[Liquidador] Matrícula Mercantil y establecimientos de comercio: costo de renovación año 2017"]
[]
[null,"[Guía] Cambios en los conceptos para reportar ingresos no constitutivos de renta ni ganancia ocasional"]
[]
[null,"[Guía] Convocatoria junta de socios o asamblea general extraordinaria"]
[]
[null,"[Guía] Síntesis de las modificaciones de la Ley 1819 de 2016 a rentas exentas del artículo 207-2"]
[]
[null,"[ORO] Plantilla para elaborar Formulario 220 certificado de ingresos y retenciones a empleados año gravable 2016"]
[]
[null,"[Guía] Políticas contables más significativas en Pymes"]
[]
[null,"[Formato] Comprobante de préstamos sobre salarios"]
[]
[null,"[Formato] Allanamiento a las pretensiones de la demanda"]
[]
[null,"​[ORO] Cálculo de retención sobre dividendos de 2016, anteriores, de 2017 y siguientes"]
[]
[null,"[Formato] Demanda de divorcio de matrimonio civil"]
[]
[null,"[ORO] Cuadro temático con los cambios introducidos por la Ley de reforma tributaria 1819 de 2016"]
[]
[null,"[Guía] Matriz para clasificar empresas que inicien actividades en ZOMAC y tarifa en renta a aplicar por 2017"]
[]
[null,"[Formato] Cesión de derechos hereditarios"]
[]
[null,"[Formato] Tabla de retención en la fuente sobre ingresos laborales"]
[]
[null,"[Guía] Matriz para determinar valor de excesos de renta presuntiva y de base mínima a compensar"]
[]
[null,"[Guía] Matriz para determinar valor de pérdidas fiscales susceptibles de compensación según reforma"]
[]
[null,"[Guía] Información laboral 2017"]
[]
[null,"[Formato] Poder especial para adelantar proceso ejecutivo"]
[]
[null,"[Liquidador] Sobretasa del impuesto de renta y complementario de personas jurídicas"]
[]
[null,"[Guía] Matriz para definir periodicidad de declaración y pago de IVA en 2017 según reforma tributaria 2016"]
[]
[null,"[Formato] Liquidador de seguridad social y provisión de prestaciones sociales para servicio doméstico"]
[]
[null,"[ORO] Listado de bienes y servicios cuya clasificación frente al IVA fue modificada con la Ley 1819"]
[]
[null,"[ORO] Tablas de retención en la fuente a título de los impuestos nacionales durante el año fiscal 2017"]
[]
[null,"[ORO] Gravamen progresivo en impuesto de renta de personas naturales"]
[]
[null,"​[Guía] Matriz para definir quién puede acogerse al Monotributo por el año 2017 según reforma tributaria"]
[]
[null,"[Guía] Matriz para definir categoría en Monotributo y valor a pagar en 2017 según reforma tributaria 2016"]
[]
[null,"[Formato] Poder especial otorgado por representante legal de persona jurídica"]
[]
[null,"[Guía] Tabla de retenciones en la fuente por renta año fiscal 2017"]
[]
[null,"[Calendario] Calendario tributario distrital 2017"]
[]
[null,"[Formato] Cédula de control para valoración de riesgos en compras"]
[]
[null,"[Guía] Matriz para definir categoría en Monotributo y valor a pagar en 2017 según reforma tributaria"]
[]
[null,"​[Guía] Matriz para definir la periodicidad de declaración y pago del IVA en 2017 según reforma tributaria"]
[]
[null,"[Guía] Lista de chequeo de revelaciones Sección 27: deterioro del valor de los activos"]
[]
[null,"[Guía] Matriz para definir obligados a declarar renta según reforma tributaria aprobada en primer debate"]
[]
[null,"[ORO] Modelo para definir porcentaje fijo de retefuente sobre salarios en diciembre 2016 – Procedimiento 2"]
[]
[null,"[Formato] Modelo de carta para solicitar a la empresa de servicios públicos la suspensión del contrato de telefonía e internet"]
[]
[null,"[Guía] Lista de chequeo de revelaciones Sección 26: pagos basados en acciones"]
[]
[null,"[Calendario] Calendario tributario 2017"]
[]
[null,"[Acta] Modelo para otorgar poder de representación ante una junta de socios o asamblea de accionistas"]
[]
[null,"[Guía] Lista de chequeo de revelaciones Sección 24: subvenciones del gobierno"]
[]
[null,"[Guía] Matriz para definir si puede acogerse al Monotributo por el año 2017 según proyecto reforma tributaria"]
[]
[null,"[Autorización] Formato autorización permiso de salida del país para menores"]
[]
[null,"[Guía] Lista de chequeo de revelaciones Sección 23: ingresos de actividades ordinarias"]
[]
[null,"[Guía] Matriz para definir obligados a declarar renta por el 2017 según proyecto reforma tributaria"]
[]
[null,"[Liquidador] Cálculos para determinar valores susceptibles de ser compensados"]
[]
[null,"[Poder] Representación ante la Superintendencia de Sociedades"]
[]
[null,"[Liquidador] Tarifas en impuesto y sobretasa en renta para empresas editoriales según proyecto de reforma"]
[]
[null,"[Guía] Matriz para determinar el valor de las pérdidas fiscales susceptibles de ser compensadas"]
[]
[null,"[ORO] Impuesto de renta de persona natural según proyecto de reforma tributaria"]
[]
[null,"[Liquidador] Tablas de gravamen progresivo en impuesto y retención por renta de personas naturales"]
[]
[null,"[Guía] Estatuto Tributario concordado con el Proyecto de Ley de Reforma Tributaria"]
[]
[null,"[Guía] Dictamen de modelo (limpio o sin salvedades) del revisor fiscal"]
[]
[null,"[Guía] Estructura general del Proyecto Ley Reforma Tributaria Estructural"]
[]
[null,"[ORO] Contrato de trabajo con salario integral"]
[]
[null,"[Guía] Matriz para establecer cumplimiento de criterios para ser calificado como Gran Contribuyente"]
[]
[null,"[ORO] ESFA y Estados financieros 2015 y 2016: Caso práctico"]
[]
[null,"[Guía] Matriz para definir la periodicidad para declarar y pagar la autorretención del CREE"]
[]
[null,"[ORO] Aplicación del Estándar para Pymes por representante legal y contador"]
[]
[null,"[Guía] Matriz para definir la periodicidad de declaración y pago del impuesto sobre las ventas"]
[]
[null,"[Guía] Informe de directivos: Aplicación de los Estándares Internacionales – Grupo 2"]
[]
[null,"[Formato] “Especificaciones de los servicios” para acceder a incentivos de la Ley 1715 del 2014"]
[]
[null,"[Acta] Reglamento para la emisión de acciones"]
[]
[null,"[Formato] “Especificaciones del elemento, equipo y/o maquinaria” para acceder a incentivos de la Ley 1715"]
[]
[null,"[Acta] Disolución de una sociedad"]
[]
[null,"[Formato] Formato único de solicitud de certificación de beneficios ambientales"]
[]
[null,"[Guía] Cuadro sinóptico de la generación del IVA en operaciones con empresas en zonas francas"]
[]
[null,"[Acta] Modelos de autorización para obtener, renovar o cancelar la firma digital"]
[]
[null,"[Formato] Modelo de memorial para solicitarle al juez librar medida cautelar"]
[]
[null,"[Acta] Modelo de reclamación por garantía"]
[]
[null,"[Guía] Matriz para definir el sistema mediante el cual puede declarar un trabajador por cuenta propia"]
[]
[null,"[Acta] Acta de Junta Directiva para autorizar al Gerente a suscribir contratos"]
[]
[null,"[Guía] Modelo de política contable para el valor residual"]
[]
[null,"[Acta] Modelo de comprobante de pago con caja menor"]
[]
[null,"[ORO] Matriz para definir el sistema mediante el cual puede declarar un empleado por el año gravable 2015"]
[]
[null,"[Acta] Modelo de circularización con abogados"]
[]
[null,"[Liquidador] Cuota mensual en el pago de una obligación financiera"]
[]
[null,"[Liquidador] Flujo de caja especial para una microempresa"]
[]
[null,"[Guía] Matriz para definir si una persona natural está obligada a declarar renta por el 2015"]
[]
[null,"[Poder] Poder de representación en asamblea/junta general de asociados"]
[]
[null,"[Convocatoria] Segunda convocatoria a asamblea general ordinaria de socios/accionistas"]
[]
[null,"[Guía] Modelo simple de programa de auditoría a inversiones en pymes"]
[]
[null,"[Acta] Modelo de acta para nombramiento de junta directiva y/o revisor fiscal"]
[]
[null,"[Liquidador] Herramienta calculadora de tarifas en la Contaduría Pública"]
[]
[null,"[Guía] Modelo para la aprobación de políticas contables para entidades del sector público (Resolución 414)"]
[]
[null,"[ORO] Matriz para definir contribuyentes no obligados a presentar declaración de renta"]
[]
[null,"[Guía] Servicios y contratos en los cuales se puede aplicar AIU"]
[]
[null,"[Guía] Lista de Chequeo de Revelaciones Sección 19: combinaciones de negocio y plusvalía"]
[]
[null,"[Liquidador] Modelo para el cálculo de la «sanción por corrección» en una declaración de renta"]
[]
[null,"[Guía] Navegación en el marco normativo de las NAI"]
[]
[null,"[Guía] Lista de Chequeo de Revelaciones Sección 17: propiedades, planta y equipo"]
[]
[null,"[Guía] Diferencias en la declaración de renta de personas naturales obligadas o no a llevar contabilidad"]
[]
[null,"[ORO] Modelo de renuncia por falta de pago de salarios"]
[]
[null,"[Formato] Carta de compromiso de auditoría bajo NIA"]
[]
[null,"[Guía] Lista de Chequeo de Revelaciones Sección 16: propiedades de inversión"]
[]
[null,"[ORO] Beneficios tributarios por vinculación laboral de personas con condiciones especiales"]
[]
[null,"[ORO] Documentos necesarios para elaborar la declaración de renta de personas naturales año gravable 2015"]
[]
[null,"[ORO] Formato “otro sí” para modificar promesa de compraventa"]
[]
[null,"[Certificado] Modelo del certificado anual a socios y/o accionistas por el año gravable 2015"]
[]
[null,"[Guía] Lista de Chequeo de Revelaciones Sección 10: políticas contables, estimaciones y errores"]
[]
[null,"[Liquidador] IMAS en el impuesto de renta de los trabajadores por cuenta propia: modelo para proyectar efectos 2015"]
[]
[null,"[Liquidador] IMAN e IMAS en el impuesto de renta para empleados: modelo para proyectar efectos 2015"]
[]
[null,"[Carta] Solicitud de autorización para venta de propiedad de un menor de edad"]
[]
[null,"[Guía] Lista de Chequeo de Revelaciones Sección 7: Estado de Flujos de Efectivo"]
[]
[null,"[ORO] Cálculo de la contribución 2016 a la Supersociedades"]
[]
[null,"[ORO] Formularios 210 y 230 con anexos para la declaración de renta de personas naturales año gravable 2015"]
[]
[null,"[Guía] Lista de Chequeo de Revelaciones Sección 5: Estado de Resultado Integral y Estado de Resultados"]
[]
[null,"[Liquidador avanzado] ​Formularios 110 y 240 con anexos para la declaración de renta año gravable 2015"]
[]
[null,"[Guía] Lista de Chequeo de Revelaciones Sección 4: Estado de Situación Financiera"]
[]
[null,"[Liquidador básico] Formulario 210 Declaración de Renta Personas Naturales y Sucesiones ilíquidas año gravable 2015"]
[]
[null,"[Guía] Clasificación tributaria de personas naturales y sucesiones ilíquidas frente al impuesto de renta por el año gravable 2015"]
[]
[null,"[ORO] Derecho de petición para solicitar documentos a exempleador"]
[]
[null,"[Guía] Lista de chequeo de revelaciones Sección 3: presentación de Estados Financieros"]
[]
[null,"[ORO] Cálculo de la sanción por extemporaneidad después del emplazamiento por no declarar"]
[]
[null,"[ORO] Acta de Asamblea General para aprobación de estados financieros 2015 en entidad del Grupo 1"]
[]
[null,"[ORO] Modelo para definir porcentaje fijo de retención en la Fuente sobre salarios en junio del 2016 – Procedimiento 2"]
[]
[null,"Modelo básico para proyectar el impuesto a la riqueza 2015 a 2018 y su complementario de normalización tributaria"]
[]
[null,"[ORO] Cálculo de intereses presuntivos por préstamos en dinero a socios durante el 2015"]
[]
[null,"[Guía] Lista de chequeo de revelaciones: NIC 36 Deterioro del valor de los activos"]
[]
[null,"[Contrato] Finalización del contrato por parte del arrendatario por vencimiento del contrato"]
[]
[null,"[Guía] Lista de chequeo de revelaciones: NIC 26 – Contabilización e información financiera sobre planes de beneficio por retiro"]
[]
[null,"[ORO] Cálculo de la sanción por extemporaneidad antes del emplazamiento"]
[]
[null,"[Acta] Acta de nombramiento del Vigía en Seguridad y Salud en el Trabajo"]
[]
[null,"[Guía] Normatividad aplicable a los impuestos de renta, CREE y riqueza contenida en la Ley 1739 del 2014"]
[]
[null,"[Formato] Formato para presentar quejas sobre situaciones que puedan constituir acoso laboral"]
[]
[null,"[ORO] Hoja de trabajo para el control de activos fijos"]
[]
[null,"[Guía] Plantilla para elaborar el Informe de Prácticas Empresariales por el 2015"]
[]
[null,"[Guía] Generación del IVA en operaciones con empresas en zonas francas"]
[]
[null,"[Guía] Certificado por Retención en la Fuente a título del impuesto de Timbre"]
[]
[null,"[Autorización] Autorización de salida de bienes por finalización del contrato de arrendamiento – Propiedad Horizontal"]
[]
[null,"[ORO] Proyección de descuentos en Renta, CREE y Sobretasa al CREE por impuestos pagados en el exterior"]
[]
[null,"[ORO] Cuentas a reportar en los formatos de información exógena año gravable 2015"]
[]
[null,"[Guía] Clasificación de las personas jurídicas en el impuesto de Renta y CREE del año gravable 2015"]
[]
[null,"[Guía] Plantilla de Estados Financieros 2015 bajo Estándares Internacionales Plenos para Supersociedades con XBRL Express"]
[]
[null,"[Liquidador] Impuesto a la riqueza: cálculo valor patrimonial neto para acciones poseídas de forma indirecta en sociedades nacionales"]
[]
[null,"​[Calendario] Calendario tributario automatizado para el 2016"]
[]
[null,"[Liquidador] Efectos de las ventas de activos fijos depreciables que constituyen ganancia ocasional"]
[]
[null,"[Guía] Categorías de informantes de exógena por el año gravable 2015 y formatos a utilizar"]
[]
[null,"[Liquidador] Depuración del Impuesto de Renta año gravable 2015 para copropiedades que explotan áreas comunes"]
[]
[null,"[Guía] Cálculo de intereses de mora sobre obligaciones tributarias"]
[]
[null,"[Formato] Formato 2278: información de compras a terceros de bonos, vales y otros documentos para pagos a trabajadores en el 2015"]
[]
[null,"[ORO] Formato 2280: deducción en el 2015 por empleadas víctimas de la violencia"]
[]
[null,"[ORO] Poder especial para compraventa de inmueble"]
[]
[null,"[Guía] Simulación del Sistema de Registro de Diferencias"]
[]
[null,"[Liquidador] Cálculo de deducción en renta por inversiones en proyectos de investigación tecnológica"]
[]
[null,"[Formato] Certificación de estados financieros año 2015 a entregar a la Supersociedades"]
[]
[null,"[ORO] Formulario 220: certificación de pagos y retenciones a empleados por el año gravable 2015"]
[]
[null,"[ORO] Promesa de compraventa de apartamento con usufructo para cancelar"]
[]
[null,"[Formato] Dictamen Revisoría Fiscal (auditoría externa) con Estándares Internacionales"]
[]
[null,"[Formato] Formatos 1005 y 1006: reporte de IVA descontables, e IVA e INC generados en el 2015"]
[]
[null,"[Formato] Formatos 1011, 1012 y 2275: reportes de otros datos de la declaración de Renta o de Ingresos y Patrimonio del 2015"]
[]
[null,"[ORO] Formato 1004: reporte de los descuentos al impuesto de Renta o de Ganancia Ocasional en el 2015"]
[]
[null,"[Formato] Formato 1010: reporte de socios, cooperados o comuneros a diciembre 31 del 2015"]
[]
[null,"[Formato] Formatos 1016, 1017, 1018, 1027, 1054 y 1055: reportes de los mandatarios en contratos de mandato año gravable 2015"]
[]
[null,"[ORO] Formularios 110 y 140 con anexos y formato 1732 año gravable 2015"]
[]
[null,"[Certificado] Participación patrimonial anual a socios y/o accionistas por el 2015"]
[]
[null,"[ORO] Formato 1009: reporte de cuentas por pagar a diciembre 31 del 2015"]
[]
[null,"[ORO] Formato 1008: reporte de cuentas por cobrar a diciembre 31 del 2015"]
[]
[null,"[ORO] Convocatoria para Asamblea General de Copropietarios"]
[]
[null,"[ORO] Formato 2276: información de los certificados de ingresos y retenciones a empleados año 2015"]
[]
[null,"[ORO] Formato 1007: información de ingresos propios recibidos durante el 2015"]
[]
[null,"[ORO] Formato 1001: información de pagos o causaciones a terceros durante el 2015 y las retenciones practicadas o asumidas sobre los mismos. Caso 1"]
[]
[null,"[ORO] Formato 1001: información de pagos o causaciones a terceros durante el 2015 y las retenciones practicadas o asumidas sobre los mismos. Caso 2"]
[]
[null,"[ORO] Formato 1647: reportes de ingresos recibidos (facturados) para terceros durante el 2015"]
[]
[null,"[ORO] Formato 1003: reportes de retenciones que le practicaron a la persona o entidad informante durante el 2015"]
[]
[null,"[Carta] Carta de finalización del contrato individual de trabajo por pensión del trabajador"]
[]
[null,"[Guía] Plantilla de estados financieros 2015 bajo Estándares Internacionales para Supersociedades con XBRL Express"]
[]
[null,"[Guía] Cierre contable: proceso de verificación de la información del 2015"]
[]
[null,"[Calendario] Declaración anual del Impuesto de Industria y Comercio en Cali"]
[]
[null,"[Calendario] Calendario Tributario para Personas Naturales"]
[]
[null,"[Guía] Tabla de recargos y aportes para salario mínimo 2016"]
[]
[null,"[Liquidador] Costo de renovación de la Matrícula Mercantil para el 2016"]
[]
[null,"[ORO] Sanción por extemporaneidad en declaración del Régimen Simplificado del Impuesto al Consumo"]
[]
[null,"[Poder] Otorgamiento de poder para cancelar línea telefónica"]
[]
[null,"[Guía] Cuestionario para la revisión y evaluación de los saldos, movimientos y el control de las cuentas de caja y bancos"]
[]
[null,"[Guía] Lista de chequeo de revelaciones: NIC 26 − Planes de beneficio por retiro"]
[]
[null,"[Guía] Requisitos para pertenecer al régimen simplificado del IVA en el 2016"]
[]
[null,"[Contrato] Contrato de compraventa de vehículo automotor (automóvil o motocicleta)"]
[]
[null,"[Guía] Indicadores básicos para tener en cuenta en el 2016"]
[]
[null,"[Guía] Lista de chequeo de revelaciones: NIC 23 costos por préstamos y NIC 24 partes relacionadas"]
[]
[null,"[ORO] Parámetros claves en la elaboración de declaraciones tributarias durante el año 2016"]
[]
[null,"[Guía] Tarifas de la autorretención del CREE"]
[]
[null,"[Guía] Información laboral 2016"]
[]
[null,"[Calendario] Calendario Tributario de Bogotá D.C."]
[]
[null,"Ejercicios de conversión: caso práctico para la elaboración del ESFA en pymes"]
[]
[null,"[Guía] Tabla de retenciones en la fuente por renta año fiscal 2016"]
[]
[null,"[Guía] Cuestionario para la revisión y evaluación del Sistema de Control Interno"]
[]
[null,"[Guía] Lista de chequeo de revelaciones: NIC 21 -Efectos de las variaciones en las tasas de cambio de la moneda extranjera"]
[]
[null,"[Formato] Auditoría de conciliaciones bancarias"]
[]
[null,"[Guía] Lista de chequeo de revelaciones: NIC 19 -Beneficios a los empleados"]
[]
[null,"[Contrato] Modelo de contrato de corretaje inmobiliario"]
[]
[null,"[Calendario] Calendario Tributario 2016"]
[]
[null,"[Guía] Lista de chequeo de revelaciones: NIC 18 – Ingresos de actividades ordinarias"]
[]
[null,"[ORO] Retención en la fuente con procedimiento 1 para asalariados y demás empleados durante el 2016"]
[]
[null,"[Carta] Autorización para desocupar inmueble por finalización del contrato de arrendamiento –PH"]
[]
[null,"[Formato] Auditoría del disponible"]
[]
[null,"[ORO] Ejercicio de conciliación entre el resultado contable y los resultados fiscales"]
[]
[null,"[ORO] Retención en la fuente con procedimiento 2 para determinar porcentaje en diciembre de 2015"]
[]
[null,"[Acta] Constitución y Posesión de miembros del Comité Paritario de Seguridad y Salud en el Trabajo"]
[]
[null,"[Guía] Lista de chequeo de revelaciones: NIC 17 – Arrendamientos"]
[]
[null,"[Guía] Normatividad reglamentaria del impuesto a la riqueza y su complementario"]
[]
[null,"[Guía] Básica de Trabajo: Auxilio de transporte y dotación"]
[]
[null,"[Guía] Exógena: Estructura final del contenido de la Resolución DIAN 000220 de octubre 31 del 2014"]
[]
[null,"[Guía] Normatividad reglamentaria del Impuesto Nacional al Consumo"]
[]
[null,"[Guía] Básica de Trabajo: Incapacidad"]
[]
[null,"[Guía] Documento de Orientación Técnica 015. Copropiedades de Uso Residencial o Mixto (Grupo 1, 2 y 3)"]
[]
[null,"[Guía] Documento de Orientación Técnica 014. Entidades Sin Ánimo de Lucro"]
[]
[null,"[Guía] Documentos de Orientación Pedagógica para la aplicación de las NIIF, NIF y NAI"]
[]
[null,"[Guía] Documentos sobre Combinaciones de Negocios. Orientaciones Técnicas 010 y 011 del CTCP"]
[]
[null,"[Guía] Documentos sobre Activos y Pasivos Financieros. Orientaciones Técnicas 008 y 009 del CTCP"]
[]
[null,"[Guía] Documentos de Regulación sobre Propiedades, Planta y Equipos. Orientaciones Técnicas 006 y 007 del CTCP"]
[]
[null,"[Guía] Documentos de Adopción por primera vez. Orientaciones Técnicas 004 y 005 del CTCP"]
[]
[null,"[Guía] Documentos de Marco Conceptual. Orientaciones Técnicas 002 y 003 del CTCP"]
[]
[null,"[Guía] Documento de Orientación Técnica 001. Contabilidad bajo los nuevos marcos técnicos normativos"]
[]
[null,"[Guía] Estructura del contenido de la Resolución DIAN 112 de octubre 29 del 2015"]
[]
[null,"[Guía] Normatividad reglamentaria del CREE"]
[]
[null,"[Guía] Básica de Trabajo: acoso laboral"]
[]
[null,"[Formato] Planilla de Circularizaciones"]
[]
[null,"[Guía] Lista de chequeo de revelaciones: NIC 16 -Propiedades, Planta y Equipo"]
[]
[null,"[Guía] Obligaciones Tributarias de los Consorcios y Uniones Temporales"]
[]
[null,"[Guía] Básica de Trabajo: salario y jornada laboral"]
[]
[null,"[Guía] Lista de chequeo de revelaciones: NIC 12 – Impuesto a las Ganancias"]
[]
[null,"[Guía] Doctrinas de la DIAN sobre el CREE"]
[]
[null,"[Guía] Atención Integral en Seguridad y Salud en el Trabajo 2015 – Hipocausia neurosensorial inducida por ruido u ototóxicos"]
[]
[null,"[Guía] Atención Integral en Seguridad y Salud en el Trabajo 2015 – Bencenos y sus derivados"]
[]
[null,"[Guía] Atención Integral en Seguridad y Salud en el Trabajo 2015 – Trabajadores expuestos a organofosforados o carbamatos"]
[]
[null,"[Guía] Atención Integral en Seguridad y Salud en el Trabajo 2015 – Neumoconiosis"]
[]
[null,"[Guía] Atención Integral en Seguridad y Salud en el Trabajo 2015 – Hombro doloroso"]
[]
[null,"[Guía] Atención Integral en Seguridad y Salud en el Trabajo 2015 – Dermatitis de origen ocupacional"]
[]
[null,"[Guía] Atención Integral en Seguridad y Salud en el Trabajo 2015 – Cáncer de pulmón de origen ocupacional"]
[]
[null,"[Guía] Atención Integral en Seguridad y Salud en el Trabajo 2015 – Asma de origen ocupacional"]
[]
[null,"[Guía] Contratación del servicio doméstico"]
[]
[null,"[Guía] Atención Integral en Seguridad y Salud en el Trabajo 2015 – Desorden músculo esquelético de miembro superior"]
[]
[null,"[Guía] Atención Integral en Seguridad y Salud en el Trabajo 2015 – Dolor lumbar inespecífico y enfermedad discal de origen ocupacional"]
[]
[null,"[Carta] Carta de Gerencia"]
[]
[null,"[Guía] Lista de chequeo de revelaciones: NIC 11 – Contratos de Construcción"]
[]
[null,"[Dictamen] Modelo de certificación para acreditar que la empresa se encuentra al día en pagos de parafiscales y Seguridad Social"]
[]
[null,"[Guía] Lista de chequeo de revelaciones: NIC 10 – Hechos ocurridos después del período sobre el que se informa"]
[]
[null,"[Guía] Acuerdos sobre Promoción y Protección Recíproca de Inversiones"]
[]
[null,"[Guía] Diferencias existentes entre los distintos tipos societarios"]
[]
[null,"[Carta] Modelo de Circularización Proveedores"]
[]
[null,"[Guía] Revelaciones exigidas por la NIC 8 – Políticas Contables, Cambios en las Estimaciones Contables y Errores"]
[]
[null,"[Guía] Convenios para evitar la doble tributación de las Empresas de Navegación"]
[]
[null,"[Carta] De manifestaciones de la dirección al auditor, en una revisión de información financiera intermedia"]
[]
[null,"[Guía] Revelaciones exigidas por la NIC 7: Estado de Flujos de Efectivo"]
[]
[null,"[Guía] Revelaciones exigidas por la NIC 2: lista de chequeo"]
[]
[null,"[Guía] Obligaciones tributarias con vencimiento en septiembre del 2015"]
[]
[null,"[Carta] Modelo de Circularización Cartera"]
[]
[null,"[Formato] Medición de cuentas por cobrar sin intereses"]
[]
[null,"[Guía] Tabla de tarifas del IMAS para trabajadores por cuenta propia"]
[]
[null,"[Contrato] Promesa de Compraventa de Inmueble"]
[]
[null,"[Formato] Dictamen revisor fiscal con salvedades según Decreto 302 del 2015"]
[]
[null,"[Guía] Resumen de normas tributarias recopiladas en los decretos únicos reglamentarios de mayo del 2015"]
[]
[null,"[Formato] Dictamen Revisor Fiscal con abstención según Decreto 302 del 2015"]
[]
[null,"[Certificado] Modelo Declaración Grupo Empresarial o Situación de Control (personas jurídicas)"]
[]
[null,"[Contrato] Contrato de Suministro"]
[]
[null,"[Dictamen] Modelo dictamen Revisor Fiscal, Decreto 302"]
[]
[null,"[Guía] Modificaciones realizadas por la Ley 1739 del 2014 en materia de declaración de renta"]
[]
[null,"[Contrato] Cesión de Derechos Patrimoniales de Autor"]
[]
[null,"[Guía] Normatividad a tener en cuenta en la preparación de la declaración de renta personas naturales año gravable 2014"]
[]
[null,"[Liquidador] Modelo liquidación trabajadores periodos inferiores a 30 días"]
[]
[null,"[Contrato] Acta compromisoria para delegación de Tribunal de Arbitramento"]
[]
[null,"[Guía] Tablas para definir el impuesto de renta de «empleados» por el sistema ordinario, IMAN e IMAS"]
[]
[null,"[Acta] Constitución de COPASST"]
[]
[null,"[ORO] Formularios 110 y 140 declaración Renta y CREE personas jurídicas fracción año gravable 2015 – versión básica"]
[]
[null,"[Guía] Requisitos para acceder al beneficio tributario por la generación de nuevos puestos de trabajo"]
[]
[null,"[Guía] Propuesta aplicación NIIF en propiedad horizontal"]
[]
[null,"[Guía] Declaración renta personas naturales: requisitos para exoneración en el año gravable 2014"]
[]
[null,"[Acta] Derecho de Petición reliquidación de pensión"]
[]
[null,"[Guía] Declaración de renta personas naturales 2014: Documentos necesarios para elaborarla"]
[]
[null,"[Guía] Modelo Política Contable de presentación y revelación de cuentas por cobrar"]
[]
[null,"[Guía] Guía para determinar si una persona natural es residente para efectos fiscales"]
[]
[null,"[Contrato] Contrato de Prestación de Servicios"]
[]
[null,"[Guía] Modelo Política Contable de instrumentos financieros: cuentas por cobrar"]
[]
[null,"[ORO] Formularios 110 y 240 con anexos y formato 1732 para declaración de renta de persona natural comerciante año gravable 2014"]
[]
[null,"[ORO] Formularios 210 y 230 con anexos de persona natural para declaración de renta año gravable 2014"]
[]
[null,"[Guía] Modelo de política contable de medición posterior de cuentas por cobrar"]
[]
[null,"[ORO] Formulario 210 para Declaración de Renta 2014 de Personas Naturales. Versión básica"]
[]
[null,"[ORO] Consecuencias contables y tributarias de las personas naturales y/o sucesiones ilíquidas obligadas o no a llevar contabilidad por el año 2014"]
[]
[null,"[Contrato] Arrendamiento de Local Comercial"]
[]
[null,"[Contrato] Contrato de Depósito"]
[]
[null,"[Guía] Revelaciones exigidas por la NIC 1: lista de chequeoFO"]
[]
[null,"[Liquidador] Modelo para definir porcentaje fijo de retención en la fuente sobre salarios en junio del 2015 (procedimiento 2)"]
[]
[null,"[Liquidador] Modelo básico para la elaboración de la nómina para pago de salarios"]
[]
[null,"[ORO] Formulario 110 adaptado para Declaración de Renta 2014 de Personas Naturales. Versión básica"]
[]
[null,"[Guía] Cuadro resumen de las características básicas de cada tipo de persona natural"]
[]
[null,"[Acta] Derecho de Petición requiriendo visita para inspección de sanidad"]
[]
[null,"[Formato] Modelo de Contrato de Transporte Terrestre de Carga"]
[]
[null,"[Guía] Plantilla elaboración Estados Financieros en NIIF para Supersociedades con XBRL EXPRESS"]
[]
[null,"​[ORO] Modelo para proyectar efectos 2014 del IMAN y el IMAS en el impuesto de renta de los empleados"]
[]
[null,"[Guía] Requisitos para acceder a la exención del impuesto de renta en San Andrés, Providencia y Santa Catalina"]
[]
[null,"[Guía] Presentación de solicitud para registro de Contratos de Importación de Tecnología"]
[]
[null,"[ORO] Modelo para proyectar efectos 2014 del IMAS en la declaración de renta de los trabajadores por cuenta propia"]
[]
[null,"[Guía] Clasificación tributaria por el año gravable 2014 de las personas naturales y sucesiones ilíquidas frente al impuesto de renta y ganancia ocasional"]
[]
[null,"[Contrato] Oferta de Seriedad"]
[]
[null,"[Formato] Modelo de Presupuesto y cálculo de la cuota de administración de una propiedad horizontal"]
[]
[null,"[Certificación] Modelo de Certificado de Retenciones en la Fuente año gravable 2014"]
[]
[null,"[Acta] Derecho de Petición informando apertura de establecimiento de comercio"]
[]
[null,"[Formato] Modelo de Contrato de Comodato Precario"]
[]
[null,"[Formato] Superfinanciera: valoración de Instrumentos Financieros Derivados Básicos"]
[]
[null,"[Formato] Modelo de Política general contable"]
[]
[null,"[Guía] Categorías de informantes de exógena por el año gravable 2014 y los formatos que deben usar"]
[]
[null,"[Contrato] Convenio de colaboración programa empresarial"]
[]
[null,"[Contrato] Modelo de Contrato de Maquila"]
[]
[null,"[Liquidador] Proyección de posibles resultados del «CREE menos sus autorretenciones» y de la «Sobretasa al CREE más y menos sus anticipos»"]
[]
[null,"[Plantillas] Reportes de Información exógena Tributaria a la DIAN año gravable 2014"]
[]
[null,"[Formato] Control Interno en la entrada de Inventarios"]
[]
[null,"[Guía] Casos de la depuración del Impuesto de Renta en las entidades del régimen tributario especial"]
[]
[null,"[Guía] Comparativo de partidas con que se depura el Impuesto de Renta y Complementarios y el CREE"]
[]
[null,"[ORO] Liquidación del Impuesto de Renta y CREE año gravable 2014 para pequeñas empresas de la Ley 1429 de 2010"]
[]
[null,"[Certificado] Modelo del certificado anual a socios y/o accionistas por el año 2014"]
[]
[null,"[Formato] Medición de pasivos financieros a costo amortizado"]
[]
[null,"[Acta] Notificación del arrendatario de no renovación del contrato"]
[]
[null,"[ORO] Formularios 110 y 140 declaración Renta y CREE personas jurídicas año gravable 2014 – versión básica"]
[]
[null,"[ORO] Formularios 110 y 140 con anexos y formato 1732 para personas jurídicas año gravable 2014"]
[]
[null,"[Formato] Tabla amortización de CDT"]
[]
[null,"[Contrato] Contrato de Fianza"]
[]
[null,"[Contrato] Contrato de Confidencialidad"]
[]
[null,"[Contrato] Fideicomiso Civil"]
[]
[null,"[Calendario] Calendario tributario automatizado para el 2015"]
[]
[null,"[Formato] Análisis de la situación financiera a largo plazo"]
[]
[null,"[Guía] Modelo para obligados a presentar las declaraciones tributarias de forma virtual"]
[]
[null,"[Guía] Plantilla para elaborar Estado de Situación Financiera de Apertura para reportar a Supersociedades"]
[]
[null,"[Liquidador] Cálculo costo renovación año 2015 de la Matrícula Mercantil y de los establecimientos de comercio"]
[]
[null,"[Certificación] Persona natural no obligada a llevar contabilidad para acreditar los indicadores de capacidad financiera para proponentes"]
[]
[null,"[Guía] Preguntas para clasificación de empresas en grupos de convergencia"]
[]
[null,"[Guía] Plantilla para elaborar Formulario Empresarial por el año 2014 a Supersociedades"]
[]
[null,"[Guía] Revisión Autorretención del CREE"]
[]
[null,"[Acta] Modelo de certificación para acreditar el pago de aportes a la seguridad social y aportes parafiscales de proponentes"]
[]
[null,"[Guía] Indice del Marco Técnico Normativo de las Normas de Aseguramiento de la Información"]
[]
[null,"[Formato] Plan de Implementación NIIF para empresas del Grupo 2"]
[]
[null,"[Guía] Cumplimiento oportuno de obligaciones tributarias"]
[]
[null,"[Reclamación] Demanda para iniciar Proceso Ordinario Laboral"]
[]
[null,"[Formato] Cuestionario de Auditoría para Área de Tesorería"]
[]
[null,"[Formato] Informe de Gestión año 2014"]
[]
[null,"[Formato] Documento Constitución Comité NIIF"]
[]
[null,"[Guía] Informes Superintendencia de Sociedades"]
[]
[null,"[Certificación] Formulario 220 certificación pagos y retenciones a “empleados” por el año gravable 2014"]
[]
[null,"[Contrato] Solicitud de transacción ante Juez Laboral"]
[]
[null,"[Guía] Planeación obligaciones tributarias 2015"]
[]
[null,"[Acta] Estructuración de la Auditoría"]
[]
[null,"[Formato] Política contable de Presentación de Estados Financieros"]
[]
[null,"[Guía] Conciliación entre resultado contable y resultados fiscales 2014"]
[]
[null,"[Formato] Anexo declaración de renta o balance"]
[]
[null,"[Liquidador] Retención en la fuente con procedimiento 1 a asalariados y demás empleados durante el 2015"]
[]
[null,"[Contrato] Encargo fiduciario con destinación específica"]
[]
[null,"[Formato] Concordancias entre las NIIF y los PCGA"]
[]
[null,"[Guía] Modelo cesión de acciones"]
[]
[null,"[Guía] Factura de Venta"]
[]
[null,"[Dictamen] Modelo de dictamen de entidades del Grupo 1"]
[]
[null,"[Guía] Información a tener en cuenta para realizar el cierre contable 2014"]
[]
[null,"[Guía] Parámetros claves en la elaboración de declaraciones tributarias durante el año 2015"]
[]
[null,"[Calendario] Calendario Tributario 2015"]
[]
[null,"[Acta] Carta de compromiso de auditoría"]
[]
[null,"[Guía] Indicadores básicos 2015"]
[]
[null,"[Guía] Información laboral a tener en cuenta a partir del 1° de enero de 2015"]
[]
[null,"Guía de Referencia 2015"]
[]
[null,"6 Liquidadores a tener en cuenta para este año 2015"]
[]
[null,"[Guía] Retención en la fuente a título de los impuestos nacionales durante el 2015"]
[]
[null,"[Guía] Cuadro temático con los cambios introducidos por la Reforma Tributaria Ley 1739 de 2014"]
[]
[null,"[Liquidador] Modelo para definir porcentaje fijo retención sobre salarios en diciembre de 2014 (procedimiento 2)"]
[]
[null,"[Guía] Plantilla para clasificar una entidad en un Grupo de aplicación de las NIIF en Colombia"]
[]
[null,"[Guía] Estructura del contenido de la Resolución DIAN 000220 de oct. 31 de 2014"]
[]
[null,"[Liquidador] Liquidador contrato de trabajo a término fijo – Héctor Fernando Muñoz E."]
[]
[null,"[Guía] Manejo del IVA y retención por renta de las empresas que manejan A.I.U."]
[]
[null,"[Guía] Casos de aplicación del A.I.U."]
[]
[null,"[Guía] Códigos de responsabilidades tributarias que le pueden figurar a un contribuyente en su RUT"]
[]
[null,"[Certificaciones] Modelo para certificación de experiencia técnico contable en trámite de solicitud tarjeta profesional"]
[]
[null,"[Certificaciones] Modelo Certificación de Contador para solicitar autorización reducción retención de IVA"]
[]
[null,"[Contratos] Acuerdo confidencialidad para miembros del Comité de Convivencia"]
[]
[null,"[Guía] Cronograma para aplicación de Estándares NIIF"]
[]
[null,"[Liquidador] Formulario 210 para Declaración de Renta 2013 de Personas Naturales. Versión básica"]
[]
[null,"[Liquidador avanzado] Diligenciamiento de formularios 210 y 230 con anexos para la declaración de renta 2013 de una persona natural no obligada a llevar contabilidad"]
[]
[null,"[Certificación] Modelo certificación de contador para actualizar el RUT por cese de actividades gravadas con IVA"]
[]
[null,"[Liquidador] Cálculo de intereses presuntivos sobre préstamos entre sociedades y socios durante 2014"]
[]
[null,"[Liquidador] Modelo para definir porcentaje fijo de retención en la fuente sobre salarios en Junio de 2014 (procedimiento 2)"]
[]
[null,"[Guía] Plantilla para elaborar el ESFA individual a enero 1 de 2014 en entidades del grupo 1"]
[]
[null,"[Liquidador] Proyección de efectos del IMAS en la declaración de renta de los trabajadores por cuenta propia"]
[]
[null,"[Liquidador] Proyección de efectos del IMAN y el IMAS en el impuesto de renta de los empleados"]
[]
[null,"[Liquidador] Plantilla para cálculo automático impuesto IMAS de trabajadores por cuenta propia"]
[]
[null,"[Liquidador Avanzado] Diligenciamiento de formularios 110 y 240 con anexos y formato 1732 para la declaración de renta de una persona natural comerciante año gravable 2013"]
[]
[null,"[Liquidador] Formulario 110 adaptado para Declaración de Renta 2013 Personas Naturales. Versión básica"]
[]
[null,"[Guía] Clasificación de las personas naturales frente al impuesto de renta luego de la Ley 1607"]
[]
[null,"[Guía] Modelo básico con la estructura del nuevo formato 1001 para el reporte de exógena tributaria 2013"]
[]
[null,"[Guía] Plantilla para elaborar Informe de Prácticas Empresariales por el 2013"]
[]
[null,"[Certificado] Modelo del certificado anual a socios y/o accionistas por el año 2013"]
[]
[null,"[Liquidadores] Reportes de Información exógena Tributaria a la DIAN año gravable 2013"]
[]
[null,"[Guía] Clasificación general de personas jurídicas en relación con el impuesto de renta y complementarios y del CREE, por el año gravable 2013"]
[]
[null,"[Liquidador] Cálculo costo renovación año 2014 de la matrícula mercantil y los establecimientos de comercio"]
[]
[null,"[Liquidador] Formulario 110 y 140 Declaración renta y CREE de Personas jurídicas año gravable 2013. Plantilla básica"]
[]
[null,"[Guía] Resumen de las categorías de informantes de Exógena por el año gravable 2013 y los formatos que deben usar"]
[]
[null,"[Certificaciones] Certificado anual exigido a los contratistas que cobren rentas de trabajo y depuración de la base para efectos de retención en la fuente"]
[]
[null,"[ORO] Formularios 110 y 140 con anexos y formato 1732 año gravable 2013"]
[]
[null,"[Liquidador] Depuración impuesto renta año gravable 2013 para las copropiedades comerciales y mixtas"]
[]
[null,"[Guía] Cierre contable 2013. Lista de chequeo para verificación de información"]
[]
[null,"[Guía] Llegó el momento de utilizar las tarifas de honorarios profesionales y remuneración para Contadores Públicos"]
[]
[null,"[Guías] Solicitudes de devolución y/o compensación por saldos a favor generados en declaraciones de renta y ventas"]
[]
[null,"[Certificación] Formulario 220 certificación pagos y retenciones a «empleados» por el año gravable 2013"]
[]
[null,"[Liquidación] Conciliación entre la renta contable y la renta fiscal"]
[]
[null,"[Liquidador] Retención en la fuente con procedimiento 1 a asalariados y demás «empleados» durante el 2014"]
[]
[null,"[Calendario] Calendario tributario automatizado para el 2014"]
[]
[null,"[Guía] Requisitos para pertenecer al Régimen Simplificado en el 2014"]
[]
[null,"[Guía] Cambios a los textos de los Decretos 2706 y 2784 de 2012 efectuados con Decretos 3019 y 3024 de 2013"]
[]
[null,"[Guía] Retención en la fuente a título de los impuestos nacionales, año fiscal 2014"]
[]
[null,"[Calendario] Calendario Tributario 2014"]
[]
[null,"[Guía] Información laboral a tener en cuenta a partir del 1° de enero de 2014"]
[]
[null,"[Formularios] Formato Único Nacional de Autorización de Trabajo para niños, niñas o adolescentes (NNA)"]
[]
[null,"[Liquidador] Modelo para estimar reducción de aportes parafiscales y EPS según la Ley 1607"]
[]
[null,"[Guía] ABC de la afiliación a Riesgos Laborales de Independientes. Decreto 723 de 2013"]
[]
[null,"[Liquidador] Cálculo del punto de equilibrio y simulación de utilidad deseada – Ower Cassetta"]
[]
[null,"[Formato] Reclamación directa (Propuesto por la SIC)"]
[]
[null,"[Formato] Circularización bancaria de información financiera"]
[]
[null,"[Acta] Circular a contratistas por pago de seguridad social"]
[]
[null,"[Autorización] Descuento en salario de libranza"]
[]
[null,"[Autorización] Pagaré y Carta de Instrucción"]
[]
[null,"[Guía] Glosario básico para aplicación de estándares internacionales de información financiera"]
[]
[null,"[Guía] Conoce como esta clasificada su empresa de acuerdo a las NIIF"]
[]
[null,"[Guía] Comunicado para notificar en la DIAN la delegación de la responsabilidad para firmar las declaraciones"]
[]
[null,"[Liquidador] Cálculo valores por salud y pensiones que al independiente se le restarían en el proceso de retención"]
[]
[null,"[Liquidador] Convertir tasa efectiva a nominal – Jhony José Duran"]
[]
[null,"[Guía] Las preguntas más frecuentes sobre la contratación del trabajo doméstico"]
[]
[null,"[Contrato] Contrato de EXW (Ex – Works)"]
[]
[null,"[Certificado] Donaciones en dinero o en especie para entidades sin ánimo de lucro"]
[]
[null,"[Guía] Cuadro sinóptico sobre quiénes deben actuar como agentes de retención de IVA y con qué tarifas"]
[]
[null,"[Cuadro sinóptico] Diferencias entre Contribuyentes y No Contribuyentes del Impuesto de Renta y Complementarios"]
[]
[null,"[Liquidador] Modelo para cálculo de retención en la fuente a independientes con tabla de la Ley 1527 de 2012"]
[]
[null,"[Guía] Consejos prácticos sobre el nuevo estatuto del consumidor – SuperIndustria y Comercio"]
[]
[null,"[Guía] Cartilla. Mincomercio pública documento unificado sobre NIIF"]
[]
[null,"[Autorización] Para que un tercero solicite en la DIAN los mecanismos de firma digital"]
[]
[null,"[Guía] Indicadores básicos a tener en cuenta al finalizar 2011 e iniciar el 2012"]
[]
[null,"[Liquidador] Anexo a nota contable para actualización de valorizaciones o provisiones sobre activos fijos al cierre del año"]
[]
[null,"[Acta] Acta de constitución y estatutos de Entidad Sin Ánimo de Lucro (fundación, corporación, asociación)"]
[]
[null,"[Acta] Informe en propiedad horizontal, con salvedad – Jesús S. Blanquicett Carmona"]
[]
[null,"[Liquidador] Modelo para definir límite de pagos no salariales y su aporte a seguridad social"]
[]
[null,"[Guía] Cuestionario de control para verificar cumplimiento de requisitos de facturación en papel o por computador"]
[]
[null,"[Acta] Reunión extraordinaria, Junta Directiva autorizando a Representante Legal a suscribir créditos"]
[]
[null,"[Liquidador] Conversión de Tasas de Interés – Edicson Ortiz Dicelis"]
[]
[null,"[Derecho de Petición] Devolución de pagarés o letras pagadas"]
[]
[null,"[Liquidador] Modelo para determinar obligaciones comerciales o fiscales según el patrimonio o los ingresos"]
[]
[null,"[Edicto] Aviso de trabajador fallecido para pago de salarios y prestaciones adeudadas"]
[]
[null,"[Liquidador] Liquidador de intereses de mora de obligaciones tributarias – Jose Miguel Barbosa M."]
[]
[null,"[Liquidador] Cálculo de retención a independientes con un único contrato no superior a 300 UVT"]
[]
[null,"[Convocatoria] Citación a Asamblea de Propietarios de Propiedad Horizontal"]
[]
[null,"[Certificado] Comprobante de Pago de los Intereses de Cesantía"]
[]
[null,"[Acta] Modelo de Acción y nota de Cesión"]
[]
[null,"[Contrato] Contrato de Arrendamiento de Vehículo Automotor para Carga o Transporte"]
[]
[null,"[Liquidador] Liquidador contrato de trabajo a término fijo – Fredy Robinson Gil Zea"]
[]
[null,"[Acta] Acta para transformación de Sociedad Comanditaria por Acciones a SAS"]
[]
[null,"[Acta] Modelo Acción de Tutela para reclamar incapacidad o licencia negada según el Decreto 1804 de 1999"]
[]
[null,"[Acta] Acta de Junta para transformar Sociedad en Comandita en SAS"]
[]
[null,"[Contrato] Minuta de Comodato o Préstamo de uso"]
[]
[null,"[Acta] Minuta compraventa de inmueble con reserva de usufructo"]
[]
[null,"[Acta] Asamblea Extraordinaria de Accionistas para la entrega de Acciones a Acreedores"]
[]
[null,"[Guía] Cuadro comparativo de modificaciones hechas por la Ley 1328/09 al Estatuto Orgánico Financiero"]
[]
[null,"[Acta] Reforma al Componente Social de una Sociedad Limitada – (Cesión de Cuotas)"]
[]
[null,"[Contrato] Contrato de Suministro de Alimentos (Outsourcing de Casino)"]
[]
[null,"[Liquidador] Liquidador de jornadas ordinarias y extraordinarias de trabajo – Juan M. Beltrán V."]
[]
[null,"[Acta] Modelo de Minuta para la Constitución de una SAS. Sociedad por Acciones Simplificada – Francisco Reyes"]
[]
[null,"[Liquidador] Herramienta calculadora de tarifas en la profesión de Contador Público"]
[]
[null,"[Guía] Listado de los códigos para identificar en la PILA a las distintas administradoras de la seguridad social"]
[]
[null,"[Contrato] Contrato de Fabricación de Productos"]
[]
[null,"[Acta] Segunda Convocatoria a Asamblea General Ordinaria de Socios"]
[]
[null,"[Acta] Cesión y Venta de Cuotas entre los mismos Socios"]
[]
[null,"[Guía] Resumen de Parámetros Clave para la elaboración de Declaraciones Tributarias durante el 2009"]
[]
[null,"[Contrato] Modelo para la elaboración de un Contrato de Suministro"]
[]
[null,"[Guía] Diferencias entre Contribuyentes y No Contribuyentes del Impuesto sobre la Renta y Complementarios"]
[]
[null,"[Acta] Modelo Acción de Tutela para reclamar incapacidades"]
[]
[null,"[Acta] Acta de Asamblea Ordinaria de Socios o Accionistas"]
[]
[null,"[Contrato] Modelo de Contrato de Compraventa de Carro o Moto"]
[]
[null,"[Guía] Cuestionario para preparar la DR 2007 de Personas Naturales"]
[]
[null,"[Acta] Modelo de dictamen sin salvedades que la Revisoría Fiscal expediría para el cierre del periodo 2007"]
[]
[null,"[Guía] Clasificación actual de los Bienes Corporales Muebles en relación con el Impuesto sobre las Ventas"]
[]
[null,"[Acta] Modelo para la Elaboración de un Reglamento Interno de Trabajo"]
[]
[null,"[Liquidador] Modelo de Consolidación accionaria exigida en el artículo 130 del decreto 2649 de 1993"]
[]
[null,"[Guía] Información necesaria para efectos contables, laborales y tributarios tanto en el cierre contable como para la Declaración de Renta de año gravables 2006-2007"]
[]
[null,"[Liquidador] Modelo para elaborar un Resumen de Ajustes propuestos a los Estados Financieros en el desarrollo de una auditoría externa o Revisoría Fiscal"]